Workbook

Sheet Introduction

Sheet Statewide Exposure Estimates
A1: Statewide Exposure Estimates
B4: State: | C4: New York | E4: 1. Select State of interest | H4: 2. Select the source (Default or User Input) of the required inputs. For the User Input option, values are required in the cell below.
C7: Walking
C8: 2009 | D8: 2010 | E8: 2011 | F8: 2012 | G8: 2013 | H8: 2014 | I8: 2015 | J8: 2016
A9: Daily Persons Commuting | C9: =SUMIFS('State Default Data'!$F:$F,'State Default Data'!$A:$A,$C$4,'State Default Data'!$B:$B,C$8,'State Default Data'!$C:$C,"Walk") -> 574322 | D9: =SUMIFS('State Default Data'!$F:$F,'State Default Data'!$A:$A,$C$4,'State Default Data'!$B:$B,D$8,'State Default Data'!$C:$C,"Walk") -> 542579 | E9: =SUMIFS('State Default Data'!$F:$F,'State Default Data'!$A:$A,$C$4,'State Default Data'!$B:$B,E$8,'State Default Data'!$C:$C,"Walk") -> 575553 | F9: =SUMIFS('State Default Data'!$F:$F,'State Default Data'!$A:$A,$C$4,'State Default Data'!$B:$B,F$8,'State Default Data'!$C:$C,"Walk") -> 568540 | G9: =SUMIFS('State Default Data'!$F:$F,'State Default Data'!$A:$A,$C$4,'State Default Data'!$B:$B,G$8,'State Default Data'!$C:$C,"Walk") -> 574861 | H9: =SUMIFS('State Default Data'!$F:$F,'State Default Data'!$A:$A,$C$4,'State Default Data'!$B:$B,H$8,'State Default Data'!$C:$C,"Walk") -> 576752 | I9: =SUMIFS('State Default Data'!$F:$F,'State Default Data'!$A:$A,$C$4,'State Default Data'!$B:$B,I$8,'State Default Data'!$C:$C,"Walk") -> 583151 | J9: =SUMIFS('State Default Data'!$F:$F,'State Default Data'!$A:$A,$C$4,'State Default Data'!$B:$B,J$8,'State Default Data'!$C:$C,"Walk") -> 577983
A10: Commute-to-Total Trips Adjustment Factor | C10: =SUMIFS('State Default Data'!$G:$G,'State Default Data'!$A:$A,$C$4,'State Default Data'!$B:$B,C$8,'State Default Data'!$C:$C,"Walk") -> 25.49 | D10: =SUMIFS('State Default Data'!$G:$G,'State Default Data'!$A:$A,$C$4,'State Default Data'!$B:$B,D$8,'State Default Data'!$C:$C,"Walk") -> 25.49 | E10: =SUMIFS('State Default Data'!$G:$G,'State Default Data'!$A:$A,$C$4,'State Default Data'!$B:$B,E$8,'State Default Data'!$C:$C,"Walk") -> 25.49 | F10: =SUMIFS('State Default Data'!$G:$G,'State Default Data'!$A:$A,$C$4,'State Default Data'!$B:$B,F$8,'State Default Data'!$C:$C,"Walk") -> 25.49 | G10: =SUMIFS('State Default Data'!$G:$G,'State Default Data'!$A:$A,$C$4,'State Default Data'!$B:$B,G$8,'State Default Data'!$C:$C,"Walk") -> 25.49 | H10: =SUMIFS('State Default Data'!$G:$G,'State Default Data'!$A:$A,$C$4,'State Default Data'!$B:$B,H$8,'State Default Data'!$C:$C,"Walk") -> 25.49 | I10: =SUMIFS('State Default Data'!$G:$G,'State Default Data'!$A:$A,$C$4,'State Default Data'!$B:$B,I$8,'State Default Data'!$C:$C,"Walk") -> 25.49 | J10: =SUMIFS('State Default Data'!$G:$G,'State Default Data'!$A:$A,$C$4,'State Default Data'!$B:$B,J$8,'State Default Data'!$C:$C,"Walk") -> 25.49
A11: Population Adjustment Factor | C11: =SUMIFS('State Default Data'!$H:$H,'State Default Data'!$A:$A,$C$4,'State Default Data'!$B:$B,C$8,'State Default Data'!$C:$C,"Walk") -> 1 | D11: =SUMIFS('State Default Data'!$H:$H,'State Default Data'!$A:$A,$C$4,'State Default Data'!$B:$B,D$8,'State Default Data'!$C:$C,"Walk") -> 0.99 | E11: =SUMIFS('State Default Data'!$H:$H,'State Default Data'!$A:$A,$C$4,'State Default Data'!$B:$B,E$8,'State Default Data'!$C:$C,"Walk") -> 1 | F11: =SUMIFS('State Default Data'!$H:$H,'State Default Data'!$A:$A,$C$4,'State Default Data'!$B:$B,F$8,'State Default Data'!$C:$C,"Walk") -> 1 | G11: =SUMIFS('State Default Data'!$H:$H,'State Default Data'!$A:$A,$C$4,'State Default Data'!$B:$B,G$8,'State Default Data'!$C:$C,"Walk") -> 1.01 | H11: =SUMIFS('State Default Data'!$H:$H,'State Default Data'!$A:$A,$C$4,'State Default Data'!$B:$B,H$8,'State Default Data'!$C:$C,"Walk") -> 1.01 | I11: =SUMIFS('State Default Data'!$H:$H,'State Default Data'!$A:$A,$C$4,'State Default Data'!$B:$B,I$8,'State Default Data'!$C:$C,"Walk") -> 1.01 | J11: =SUMIFS('State Default Data'!$H:$H,'State Default Data'!$A:$A,$C$4,'State Default Data'!$B:$B,J$8,'State Default Data'!$C:$C,"Walk") -> 1.01
A12: Estimated Annual Pedestrian Trips | C12: =C9*C10*C11*365 -> 5343405740 | D12: =D9*D10*D11*365 -> 4997592893 | E12: 5354858779 | F12: 5289610879 | G12: 5401904720 | H12: 5419674236 | I12: 5479804926 | J12: 5431241806
A13: Average Trip Length (Miles) | B13: Source: | C13: Default | D13: Default | E13: Default | F13: Default | G13: Default | H13: Default | I13: Default | J13: Default
B14: Default Value: | C14: =SUMIFS('State Default Data'!$D:$D,'State Default Data'!$A:$A,$C$4,'State Default Data'!$B:$B,C$8,'State Default Data'!$C:$C,"Walk") -> 0.76 | D14: =SUMIFS('State Default Data'!$D:$D,'State Default Data'!$A:$A,$C$4,'State Default Data'!$B:$B,D$8,'State Default Data'!$C:$C,"Walk") -> 0.76 | E14: =SUMIFS('State Default Data'!$D:$D,'State Default Data'!$A:$A,$C$4,'State Default Data'!$B:$B,E$8,'State Default Data'!$C:$C,"Walk") -> 0.76 | F14: =SUMIFS('State Default Data'!$D:$D,'State Default Data'!$A:$A,$C$4,'State Default Data'!$B:$B,F$8,'State Default Data'!$C:$C,"Walk") -> 0.76 | G14: =SUMIFS('State Default Data'!$D:$D,'State Default Data'!$A:$A,$C$4,'State Default Data'!$B:$B,G$8,'State Default Data'!$C:$C,"Walk") -> 0.76 | H14: =SUMIFS('State Default Data'!$D:$D,'State Default Data'!$A:$A,$C$4,'State Default Data'!$B:$B,H$8,'State Default Data'!$C:$C,"Walk") -> 0.76 | I14: =SUMIFS('State Default Data'!$D:$D,'State Default Data'!$A:$A,$C$4,'State Default Data'!$B:$B,I$8,'State Default Data'!$C:$C,"Walk") -> 0.76 | J14: =SUMIFS('State Default Data'!$D:$D,'State Default Data'!$A:$A,$C$4,'State Default Data'!$B:$B,J$8,'State Default Data'!$C:$C,"Walk") -> 0.76
B15: User Input Value:
A16: Estimated Annual Pedestrian Miles of Travel | C16: =C12*IF(C13="Default",C14,C15) -> 4060988362 | D16: =D12*IF(D13="Default",D14,D15) -> 3798170599 | E16: 4069692672 | F16: 4020104268 | G16: 4105447587 | H16: 4118952419 | I16: 4164651744 | J16: 4127743772
A17: Average Trip Duration (Minutes) | B17: Source: | C17: Default | D17: Default | E17: Default | F17: Default | G17: Default | H17: Default | I17: Default | J17: Default
B18: Default Value: | C18: =SUMIFS('State Default Data'!$E:$E,'State Default Data'!$A:$A,$C$4,'State Default Data'!$B:$B,C$8,'State Default Data'!$C:$C,"Walk") -> 14.82 | D18: =SUMIFS('State Default Data'!$E:$E,'State Default Data'!$A:$A,$C$4,'State Default Data'!$B:$B,D$8,'State Default Data'!$C:$C,"Walk") -> 14.82 | E18: =SUMIFS('State Default Data'!$E:$E,'State Default Data'!$A:$A,$C$4,'State Default Data'!$B:$B,E$8,'State Default Data'!$C:$C,"Walk") -> 14.82 | F18: =SUMIFS('State Default Data'!$E:$E,'State Default Data'!$A:$A,$C$4,'State Default Data'!$B:$B,F$8,'State Default Data'!$C:$C,"Walk") -> 14.82 | G18: =SUMIFS('State Default Data'!$E:$E,'State Default Data'!$A:$A,$C$4,'State Default Data'!$B:$B,G$8,'State Default Data'!$C:$C,"Walk") -> 14.82 | H18: =SUMIFS('State Default Data'!$E:$E,'State Default Data'!$A:$A,$C$4,'State Default Data'!$B:$B,H$8,'State Default Data'!$C:$C,"Walk") -> 14.82 | I18: =SUMIFS('State Default Data'!$E:$E,'State Default Data'!$A:$A,$C$4,'State Default Data'!$B:$B,I$8,'State Default Data'!$C:$C,"Walk") -> 14.82 | J18: =SUMIFS('State Default Data'!$E:$E,'State Default Data'!$A:$A,$C$4,'State Default Data'!$B:$B,J$8,'State Default Data'!$C:$C,"Walk") -> 14.82
B19: User Input Value:
A20: Estimated Annual Pedestrian Hours of Travel | C20: =C12*(IF(C17="Default",C18,C19)/60) -> 1319821218 | D20: =D12*(IF(D17="Default",D18,D19)/60) -> 1234405445 | E20: 1322650118 | F20: 1306533887 | G20: 1334270466 | H20: 1338659536 | I20: 1353511817 | J20: 1341516726
A21: Fatalities | C21: =SUMIFS('FARS State Summary'!$C:$C,'FARS State Summary'!$B:$B,C8,'FARS State Summary'!$A:$A,$C$4) -> 290 | D21: =SUMIFS('FARS State Summary'!$C:$C,'FARS State Summary'!$B:$B,D8,'FARS State Summary'!$A:$A,$C$4) -> 288 | E21: =SUMIFS('FARS State Summary'!$C:$C,'FARS State Summary'!$B:$B,E8,'FARS State Summary'!$A:$A,$C$4) -> 273 | F21: =SUMIFS('FARS State Summary'!$C:$C,'FARS State Summary'!$B:$B,F8,'FARS State Summary'!$A:$A,$C$4) -> 287 | G21: =SUMIFS('FARS State Summary'!$C:$C,'FARS State Summary'!$B:$B,G8,'FARS State Summary'!$A:$A,$C$4) -> 293 | H21: =SUMIFS('FARS State Summary'!$C:$C,'FARS State Summary'!$B:$B,H8,'FARS State Summary'!$A:$A,$C$4) -> 262 | I21: =SUMIFS('FARS State Summary'!$C:$C,'FARS State Summary'!$B:$B,I8,'FARS State Summary'!$A:$A,$C$4) -> 295 | J21: =SUMIFS('FARS State Summary'!$C:$C,'FARS State Summary'!$B:$B,J8,'FARS State Summary'!$A:$A,$C$4) -> 300
A22: Fatalities/Million Hours of Travel | C22: =C21/(C20/1000000) -> 0.2197267297 | D22: =D21/(D20/1000000) -> 0.2333107013 | E22: 0.2064037921 | F22: 0.2196651789 | G22: 0.2195956573 | H22: 0.195718174 | I22: 0.2179515512 | J22: 0.2236274764
C25: Bicycling
C26: 2009 | D26: 2010 | E26: 2011 | F26: 2012 | G26: 2013 | H26: 2014 | I26: 2015 | J26: 2016
A27: Daily Persons Commuting | C27: =SUMIFS('State Default Data'!$F:$F,'State Default Data'!$A:$A,$C$4,'State Default Data'!$B:$B,C$26,'State Default Data'!$C:$C,"Bike") -> 39185 | D27: =SUMIFS('State Default Data'!$F:$F,'State Default Data'!$A:$A,$C$4,'State Default Data'!$B:$B,D$26,'State Default Data'!$C:$C,"Bike") -> 41232 | E27: =SUMIFS('State Default Data'!$F:$F,'State Default Data'!$A:$A,$C$4,'State Default Data'!$B:$B,E$26,'State Default Data'!$C:$C,"Bike") -> 44418 | F27: =SUMIFS('State Default Data'!$F:$F,'State Default Data'!$A:$A,$C$4,'State Default Data'!$B:$B,F$26,'State Default Data'!$C:$C,"Bike") -> 53119 | G27: =SUMIFS('State Default Data'!$F:$F,'State Default Data'!$A:$A,$C$4,'State Default Data'!$B:$B,G$26,'State Default Data'!$C:$C,"Bike") -> 62021 | H27: =SUMIFS('State Default Data'!$F:$F,'State Default Data'!$A:$A,$C$4,'State Default Data'!$B:$B,H$26,'State Default Data'!$C:$C,"Bike") -> 58198 | I27: =SUMIFS('State Default Data'!$F:$F,'State Default Data'!$A:$A,$C$4,'State Default Data'!$B:$B,I$26,'State Default Data'!$C:$C,"Bike") -> 61618 | J27: =SUMIFS('State Default Data'!$F:$F,'State Default Data'!$A:$A,$C$4,'State Default Data'!$B:$B,J$26,'State Default Data'!$C:$C,"Bike") -> 66595
A28: Commute-to-Total Trips Adjustment Factor | C28: =SUMIFS('State Default Data'!$G:$G,'State Default Data'!$A:$A,$C$4,'State Default Data'!$B:$B,C$26,'State Default Data'!$C:$C,"Bike") -> 11.54 | D28: =SUMIFS('State Default Data'!$G:$G,'State Default Data'!$A:$A,$C$4,'State Default Data'!$B:$B,D$26,'State Default Data'!$C:$C,"Bike") -> 11.54 | E28: =SUMIFS('State Default Data'!$G:$G,'State Default Data'!$A:$A,$C$4,'State Default Data'!$B:$B,E$26,'State Default Data'!$C:$C,"Bike") -> 11.54 | F28: =SUMIFS('State Default Data'!$G:$G,'State Default Data'!$A:$A,$C$4,'State Default Data'!$B:$B,F$26,'State Default Data'!$C:$C,"Bike") -> 11.54 | G28: =SUMIFS('State Default Data'!$G:$G,'State Default Data'!$A:$A,$C$4,'State Default Data'!$B:$B,G$26,'State Default Data'!$C:$C,"Bike") -> 11.54 | H28: =SUMIFS('State Default Data'!$G:$G,'State Default Data'!$A:$A,$C$4,'State Default Data'!$B:$B,H$26,'State Default Data'!$C:$C,"Bike") -> 11.54 | I28: =SUMIFS('State Default Data'!$G:$G,'State Default Data'!$A:$A,$C$4,'State Default Data'!$B:$B,I$26,'State Default Data'!$C:$C,"Bike") -> 11.54 | J28: =SUMIFS('State Default Data'!$G:$G,'State Default Data'!$A:$A,$C$4,'State Default Data'!$B:$B,J$26,'State Default Data'!$C:$C,"Bike") -> 11.54
A29: Population Adjustment Factor | C29: =SUMIFS('State Default Data'!$H:$H,'State Default Data'!$A:$A,$C$4,'State Default Data'!$B:$B,C$26,'State Default Data'!$C:$C,"Bike") -> 1 | D29: =SUMIFS('State Default Data'!$H:$H,'State Default Data'!$A:$A,$C$4,'State Default Data'!$B:$B,D$26,'State Default Data'!$C:$C,"Bike") -> 0.99 | E29: =SUMIFS('State Default Data'!$H:$H,'State Default Data'!$A:$A,$C$4,'State Default Data'!$B:$B,E$26,'State Default Data'!$C:$C,"Bike") -> 1 | F29: =SUMIFS('State Default Data'!$H:$H,'State Default Data'!$A:$A,$C$4,'State Default Data'!$B:$B,F$26,'State Default Data'!$C:$C,"Bike") -> 1 | G29: =SUMIFS('State Default Data'!$H:$H,'State Default Data'!$A:$A,$C$4,'State Default Data'!$B:$B,G$26,'State Default Data'!$C:$C,"Bike") -> 1.01 | H29: =SUMIFS('State Default Data'!$H:$H,'State Default Data'!$A:$A,$C$4,'State Default Data'!$B:$B,H$26,'State Default Data'!$C:$C,"Bike") -> 1.01 | I29: =SUMIFS('State Default Data'!$H:$H,'State Default Data'!$A:$A,$C$4,'State Default Data'!$B:$B,I$26,'State Default Data'!$C:$C,"Bike") -> 1.01 | J29: =SUMIFS('State Default Data'!$H:$H,'State Default Data'!$A:$A,$C$4,'State Default Data'!$B:$B,J$26,'State Default Data'!$C:$C,"Bike") -> 1.01
A30: Estimated Annual Bicyclist Trips | C30: =C27*C28*C29*365 -> 165051138.5 | D30: =D27*D28*D29*365 -> 171936574.1 | E30: 187093057.8 | F30: 223742539.9 | G30: 263851040.6 | H30: 247587153.8 | I30: 262136589.6 | J30: 283309847.5
A31: Average Trip Length (Miles) | B31: Source: | C31: Default | D31: Default | E31: Default | F31: Default | G31: Default | H31: Default | I31: Default | J31: Default
B32: Default Value: | C32: =SUMIFS('State Default Data'!$D:$D,'State Default Data'!$A:$A,$C$4,'State Default Data'!$B:$B,C$26,'State Default Data'!$C:$C,"Bike") -> 1.93 | D32: =SUMIFS('State Default Data'!$D:$D,'State Default Data'!$A:$A,$C$4,'State Default Data'!$B:$B,D$26,'State Default Data'!$C:$C,"Bike") -> 1.93 | E32: =SUMIFS('State Default Data'!$D:$D,'State Default Data'!$A:$A,$C$4,'State Default Data'!$B:$B,E$26,'State Default Data'!$C:$C,"Bike") -> 1.93 | F32: =SUMIFS('State Default Data'!$D:$D,'State Default Data'!$A:$A,$C$4,'State Default Data'!$B:$B,F$26,'State Default Data'!$C:$C,"Bike") -> 1.93 | G32: =SUMIFS('State Default Data'!$D:$D,'State Default Data'!$A:$A,$C$4,'State Default Data'!$B:$B,G$26,'State Default Data'!$C:$C,"Bike") -> 1.93 | H32: =SUMIFS('State Default Data'!$D:$D,'State Default Data'!$A:$A,$C$4,'State Default Data'!$B:$B,H$26,'State Default Data'!$C:$C,"Bike") -> 1.93 | I32: =SUMIFS('State Default Data'!$D:$D,'State Default Data'!$A:$A,$C$4,'State Default Data'!$B:$B,I$26,'State Default Data'!$C:$C,"Bike") -> 1.93 | J32: =SUMIFS('State Default Data'!$D:$D,'State Default Data'!$A:$A,$C$4,'State Default Data'!$B:$B,J$26,'State Default Data'!$C:$C,"Bike") -> 1.93
B33: User Input Value:
A34: Estimated Annual Bicyclist Miles of Travel | C34: =C30*IF(C31="Default",C32,C33) -> 318548697.3 | D34: =D30*IF(D31="Default",D32,D33) -> 331837588.1 | E34: 361089601.6 | F34: 431823102 | G34: 509232508.4 | H34: 477843206.8 | I34: 505923617.9 | J34: 546788005.7
A35: Average Trip Duration (Minutes) | B35: Source: | C35: Default | D35: Default | E35: Default | F35: Default | G35: Default | H35: Default | I35: Default | J35: Default
B36: Default Value: | C36: =SUMIFS('State Default Data'!$E:$E,'State Default Data'!$A:$A,$C$4,'State Default Data'!$B:$B,C$26,'State Default Data'!$C:$C,"Bike") -> 20.81 | D36: =SUMIFS('State Default Data'!$E:$E,'State Default Data'!$A:$A,$C$4,'State Default Data'!$B:$B,D$26,'State Default Data'!$C:$C,"Bike") -> 20.81 | E36: =SUMIFS('State Default Data'!$E:$E,'State Default Data'!$A:$A,$C$4,'State Default Data'!$B:$B,E$26,'State Default Data'!$C:$C,"Bike") -> 20.81 | F36: =SUMIFS('State Default Data'!$E:$E,'State Default Data'!$A:$A,$C$4,'State Default Data'!$B:$B,F$26,'State Default Data'!$C:$C,"Bike") -> 20.81 | G36: =SUMIFS('State Default Data'!$E:$E,'State Default Data'!$A:$A,$C$4,'State Default Data'!$B:$B,G$26,'State Default Data'!$C:$C,"Bike") -> 20.81 | H36: =SUMIFS('State Default Data'!$E:$E,'State Default Data'!$A:$A,$C$4,'State Default Data'!$B:$B,H$26,'State Default Data'!$C:$C,"Bike") -> 20.81 | I36: =SUMIFS('State Default Data'!$E:$E,'State Default Data'!$A:$A,$C$4,'State Default Data'!$B:$B,I$26,'State Default Data'!$C:$C,"Bike") -> 20.81 | J36: =SUMIFS('State Default Data'!$E:$E,'State Default Data'!$A:$A,$C$4,'State Default Data'!$B:$B,J$26,'State Default Data'!$C:$C,"Bike") -> 20.81
B37: User Input Value:
A38: Estimated Annual Bicyclist Hours of Travel | C38: =C30*(IF(C35="Default",C36,C37)/60) -> 57245236.54 | D38: =D30*(IF(D35="Default",D36,D37)/60) -> 59633335.13 | E38: 64890108.88 | F38: 77601370.92 | G38: 91512335.93 | H38: 85871477.83 | I38: 90917707.15 | J38: 98261298.77
A39: Fatalities | C39: =SUMIFS('FARS State Summary'!$D:$D,'FARS State Summary'!$B:$B,C26,'FARS State Summary'!$A:$A,$C$4) -> 28 | D39: =SUMIFS('FARS State Summary'!$D:$D,'FARS State Summary'!$B:$B,D26,'FARS State Summary'!$A:$A,$C$4) -> 36 | E39: =SUMIFS('FARS State Summary'!$D:$D,'FARS State Summary'!$B:$B,E26,'FARS State Summary'!$A:$A,$C$4) -> 57 | F39: =SUMIFS('FARS State Summary'!$D:$D,'FARS State Summary'!$B:$B,F26,'FARS State Summary'!$A:$A,$C$4) -> 42 | G39: =SUMIFS('FARS State Summary'!$D:$D,'FARS State Summary'!$B:$B,G26,'FARS State Summary'!$A:$A,$C$4) -> 36 | H39: =SUMIFS('FARS State Summary'!$D:$D,'FARS State Summary'!$B:$B,H26,'FARS State Summary'!$A:$A,$C$4) -> 46 | I39: =SUMIFS('FARS State Summary'!$D:$D,'FARS State Summary'!$B:$B,I26,'FARS State Summary'!$A:$A,$C$4) -> 36 | J39: =SUMIFS('FARS State Summary'!$D:$D,'FARS State Summary'!$B:$B,J26,'FARS State Summary'!$A:$A,$C$4) -> 36
A40: Fatalities/Million Hours of Travel | C40: =C39/(C38/1000000) -> 0.4891236668 | D40: =D39/(D38/1000000) -> 0.6036891937 | E40: 0.8784081424 | F40: 0.5412275518 | G40: 0.3933895866 | H40: 0.535684271 | I40: 0.3959624712 | J40: 0.3663700811
C43: Non-Motorized
C44: 2009 | D44: 2010 | E44: 2011 | F44: 2012 | G44: 2013 | H44: 2014 | I44: 2015 | J44: 2016
A45: Estimated Annual Non-Motorized Trips | C45: =C12+C30 -> 5508456878 | D45: 5169529467 | E45: 5541951837 | F45: 5513353419 | G45: 5665755761 | H45: 5667261390 | I45: 5741941515 | J45: 5714551653
A46: Estimated Annual Non-Motorized Miles of Travel | C46: =C16+C34 -> 4379537059 | D46: 4130008187 | E46: 4430782274 | F46: 4451927370 | G46: 4614680096 | H46: 4596795626 | I46: 4670575361 | J46: 4674531778
A47: Estimated Annual Non-Motorized Hours of Travel | C47: =C20+C38 -> 1377066454 | D47: 1294038780 | E47: 1387540227 | F47: 1384135258 | G47: 1425782802 | H47: 1424531014 | I47: 1444429524 | J47: 1439778025
A48: Non-Motorized Fatalities | C48: 318 | D48: 324 | E48: 330 | F48: 329 | G48: 329 | H48: 308 | I48: 331 | J48: 336
A49: Non-Motorized Fatalities/Million Hours of Travel | C49: =C48/(C47/1000000) -> 0.2309256747 | D49: =D48/(D47/1000000) -> 0.2503788952 | E49: 0.2378309425 | F49: 0.2376935333 | G49: 0.2307504338 | H49: 0.2162115089 | I49: 0.2291562133 | J49: 0.2333693071

Sheet MPO Area Exposure Estimates
A1: MPO Area Exposure Estimates
B4: State: | C4: Minnesota | G4: 1. Select State of interest | I4: 3. Select the source (Default or User Input) of the required inputs. For the User Input option, values are required in the cell below.
B5: MPO: | C5: Duluth-Superior Metropolitan Interstate Council | G5: 2. Select MPO of interest
C7: Walking
C8: 2009 | D8: 2010 | E8: 2011 | F8: 2012 | G8: 2013 | H8: 2014 | I8: 2015 | J8: 2016
A9: Person Trip Rate | B9: Source: | C9: Default | D9: Default | E9: Default | F9: Default | G9: Default | H9: Default | I9: Default | J9: Default
B10: Default Value: | C10: =VLOOKUP(SUMIFS('Final Table'!$K:$K,'Final Table'!$A:$A,$C$5,'Final Table'!$C:$C,C$8),cbsa_walk_grouping!$A$1:$H$6,4,FALSE) -> 0.6315582371 | D10: =VLOOKUP(SUMIFS('Final Table'!$K:$K,'Final Table'!$A:$A,$C$5,'Final Table'!$C:$C,D$8),cbsa_walk_grouping!$A$1:$H$6,4,FALSE) -> 0.6315582371 | E10: =VLOOKUP(SUMIFS('Final Table'!$K:$K,'Final Table'!$A:$A,$C$5,'Final Table'!$C:$C,E$8),cbsa_walk_grouping!$A$1:$H$6,4,FALSE) -> 0.6315582371 | F10: =VLOOKUP(SUMIFS('Final Table'!$K:$K,'Final Table'!$A:$A,$C$5,'Final Table'!$C:$C,F$8),cbsa_walk_grouping!$A$1:$H$6,4,FALSE) -> 0.6315582371 | G10: =VLOOKUP(SUMIFS('Final Table'!$K:$K,'Final Table'!$A:$A,$C$5,'Final Table'!$C:$C,G$8),cbsa_walk_grouping!$A$1:$H$6,4,FALSE) -> 0.6315582371 | H10: =VLOOKUP(SUMIFS('Final Table'!$K:$K,'Final Table'!$A:$A,$C$5,'Final Table'!$C:$C,H$8),cbsa_walk_grouping!$A$1:$H$6,4,FALSE) -> 0.6315582371 | I10: =VLOOKUP(SUMIFS('Final Table'!$K:$K,'Final Table'!$A:$A,$C$5,'Final Table'!$C:$C,I$8),cbsa_walk_grouping!$A$1:$H$6,4,FALSE) -> 0.6315582371 | J10: =VLOOKUP(SUMIFS('Final Table'!$K:$K,'Final Table'!$A:$A,$C$5,'Final Table'!$C:$C,J$8),cbsa_walk_grouping!$A$1:$H$6,4,FALSE) -> 0.6315582371
B11: User Input Value:
A12: MPO Population Estimate | B12: Source: | C12: Default | D12: Default | E12: Default | F12: Default | G12: Default | H12: Default | I12: Default | J12: Default
B13: Default Value: | C13: =SUMIFS('Final Table'!$D:$D,'Final Table'!$A:$A,$C$5,'Final Table'!$C:$C,C$8) -> 115316.3955 | D13: =SUMIFS('Final Table'!$D:$D,'Final Table'!$A:$A,$C$5,'Final Table'!$C:$C,D$8) -> 117726.923 | E13: =SUMIFS('Final Table'!$D:$D,'Final Table'!$A:$A,$C$5,'Final Table'!$C:$C,E$8) -> 117437.0966 | F13: =SUMIFS('Final Table'!$D:$D,'Final Table'!$A:$A,$C$5,'Final Table'!$C:$C,F$8) -> 117490.7813 | G13: =SUMIFS('Final Table'!$D:$D,'Final Table'!$A:$A,$C$5,'Final Table'!$C:$C,G$8) -> 117744.8584 | H13: =SUMIFS('Final Table'!$D:$D,'Final Table'!$A:$A,$C$5,'Final Table'!$C:$C,H$8) -> 117671.6408 | I13: =SUMIFS('Final Table'!$D:$D,'Final Table'!$A:$A,$C$5,'Final Table'!$C:$C,I$8) -> 117642.7597 | J13: =SUMIFS('Final Table'!$D:$D,'Final Table'!$A:$A,$C$5,'Final Table'!$C:$C,J$8) -> 117716.9693
B14: User Input Value:
A15: Population Adjustment Factor | B15: Source: | C15: Default | D15: Default | E15: Default | F15: Default | G15: Default | H15: Default | I15: Default | J15: Default
B16: Default Value: | C16: =SUMIFS('Final Table'!$G:$G,'Final Table'!$A:$A,$C$5,'Final Table'!$C:$C,C$8)/SUMIFS('Final Table'!$G:$G,'Final Table'!$A:$A,$C$5,'Final Table'!$C:$C,2009) -> 1 | D16: =SUMIFS('Final Table'!$G:$G,'Final Table'!$A:$A,$C$5,'Final Table'!$C:$C,D$8)/SUMIFS('Final Table'!$G:$G,'Final Table'!$A:$A,$C$5,'Final Table'!$C:$C,2009) -> 1.03110638 | E16: =SUMIFS('Final Table'!$G:$G,'Final Table'!$A:$A,$C$5,'Final Table'!$C:$C,E$8)/SUMIFS('Final Table'!$G:$G,'Final Table'!$A:$A,$C$5,'Final Table'!$C:$C,2009) -> 1.166715308 | F16: =SUMIFS('Final Table'!$G:$G,'Final Table'!$A:$A,$C$5,'Final Table'!$C:$C,F$8)/SUMIFS('Final Table'!$G:$G,'Final Table'!$A:$A,$C$5,'Final Table'!$C:$C,2009) -> 1.088897019 | G16: =SUMIFS('Final Table'!$G:$G,'Final Table'!$A:$A,$C$5,'Final Table'!$C:$C,G$8)/SUMIFS('Final Table'!$G:$G,'Final Table'!$A:$A,$C$5,'Final Table'!$C:$C,2009) -> 1.158825073 | H16: =SUMIFS('Final Table'!$G:$G,'Final Table'!$A:$A,$C$5,'Final Table'!$C:$C,H$8)/SUMIFS('Final Table'!$G:$G,'Final Table'!$A:$A,$C$5,'Final Table'!$C:$C,2009) -> 1.212519496 | I16: =SUMIFS('Final Table'!$G:$G,'Final Table'!$A:$A,$C$5,'Final Table'!$C:$C,I$8)/SUMIFS('Final Table'!$G:$G,'Final Table'!$A:$A,$C$5,'Final Table'!$C:$C,2009) -> 1.277789 | J16: =SUMIFS('Final Table'!$G:$G,'Final Table'!$A:$A,$C$5,'Final Table'!$C:$C,J$8)/SUMIFS('Final Table'!$G:$G,'Final Table'!$A:$A,$C$5,'Final Table'!$C:$C,2009) -> 1.233858123
B17: User Input Value:
A18: Estimated Annual Pedestrian Trips | C18: =IF(C9="Default",C10,C11)*IF(C12="Default",C13,C14)*365*IF(C15="Default",C16,C17) -> 26582592.1 | D18: =IF(D9="Default",D10,D11)*IF(D12="Default",D13,D14)*365*IF(D15="Default",D16,D17) -> 27982437.04 | E18: 31584679.17 | F18: 29491500.46 | G18: 31453291.74 | H18: 32890222.23 | I18: 34652184.4 | J18: 33481936.27
A19: Average Trip Length (Miles) | B19: Source: | C19: Default | D19: Default | E19: Default | F19: Default | G19: Default | H19: Default | I19: Default | J19: Default
B20: Default Value: | C20: =VLOOKUP(SUMIFS('Final Table'!$K:$K,'Final Table'!$A:$A,$C$5,'Final Table'!$C:$C,C$8),cbsa_walk_grouping!$A$1:$H$6,5,FALSE) -> 0.6797785753 | D20: =VLOOKUP(SUMIFS('Final Table'!$K:$K,'Final Table'!$A:$A,$C$5,'Final Table'!$C:$C,D$8),cbsa_walk_grouping!$A$1:$H$6,5,FALSE) -> 0.6797785753 | E20: =VLOOKUP(SUMIFS('Final Table'!$K:$K,'Final Table'!$A:$A,$C$5,'Final Table'!$C:$C,E$8),cbsa_walk_grouping!$A$1:$H$6,5,FALSE) -> 0.6797785753 | F20: =VLOOKUP(SUMIFS('Final Table'!$K:$K,'Final Table'!$A:$A,$C$5,'Final Table'!$C:$C,F$8),cbsa_walk_grouping!$A$1:$H$6,5,FALSE) -> 0.6797785753 | G20: =VLOOKUP(SUMIFS('Final Table'!$K:$K,'Final Table'!$A:$A,$C$5,'Final Table'!$C:$C,G$8),cbsa_walk_grouping!$A$1:$H$6,5,FALSE) -> 0.6797785753 | H20: =VLOOKUP(SUMIFS('Final Table'!$K:$K,'Final Table'!$A:$A,$C$5,'Final Table'!$C:$C,H$8),cbsa_walk_grouping!$A$1:$H$6,5,FALSE) -> 0.6797785753 | I20: =VLOOKUP(SUMIFS('Final Table'!$K:$K,'Final Table'!$A:$A,$C$5,'Final Table'!$C:$C,I$8),cbsa_walk_grouping!$A$1:$H$6,5,FALSE) -> 0.6797785753 | J20: =VLOOKUP(SUMIFS('Final Table'!$K:$K,'Final Table'!$A:$A,$C$5,'Final Table'!$C:$C,J$8),cbsa_walk_grouping!$A$1:$H$6,5,FALSE) -> 0.6797785753
B21: User Input Value:
A22: Estimated Annual Pedestrian Miles of Travel | C22: =C18*IF(C19="Default",C20,C21) -> 18070276.59 | D22: =D18*IF(D19="Default",D20,D21) -> 19021861.18 | E22: 21470588.21 | F22: 20047690.16 | G22: 21381273.85 | H22: 22358068.41 | I22: 23555812.55 | J22: 22760302.94
A23: Average Trip Duration (Minutes) | B23: Source: | C23: Default | D23: Default | E23: Default | F23: Default | G23: Default | H23: Default | I23: Default | J23: Default
B24: Default Value: | C24: =VLOOKUP(SUMIFS('Final Table'!$K:$K,'Final Table'!$A:$A,$C$5,'Final Table'!$C:$C,C$8),cbsa_walk_grouping!$A$1:$H$6,7,FALSE) -> 14.49607066 | D24: =VLOOKUP(SUMIFS('Final Table'!$K:$K,'Final Table'!$A:$A,$C$5,'Final Table'!$C:$C,D$8),cbsa_walk_grouping!$A$1:$H$6,7,FALSE) -> 14.49607066 | E24: =VLOOKUP(SUMIFS('Final Table'!$K:$K,'Final Table'!$A:$A,$C$5,'Final Table'!$C:$C,E$8),cbsa_walk_grouping!$A$1:$H$6,7,FALSE) -> 14.49607066 | F24: =VLOOKUP(SUMIFS('Final Table'!$K:$K,'Final Table'!$A:$A,$C$5,'Final Table'!$C:$C,F$8),cbsa_walk_grouping!$A$1:$H$6,7,FALSE) -> 14.49607066 | G24: =VLOOKUP(SUMIFS('Final Table'!$K:$K,'Final Table'!$A:$A,$C$5,'Final Table'!$C:$C,G$8),cbsa_walk_grouping!$A$1:$H$6,7,FALSE) -> 14.49607066 | H24: =VLOOKUP(SUMIFS('Final Table'!$K:$K,'Final Table'!$A:$A,$C$5,'Final Table'!$C:$C,H$8),cbsa_walk_grouping!$A$1:$H$6,7,FALSE) -> 14.49607066 | I24: =VLOOKUP(SUMIFS('Final Table'!$K:$K,'Final Table'!$A:$A,$C$5,'Final Table'!$C:$C,I$8),cbsa_walk_grouping!$A$1:$H$6,7,FALSE) -> 14.49607066 | J24: =VLOOKUP(SUMIFS('Final Table'!$K:$K,'Final Table'!$A:$A,$C$5,'Final Table'!$C:$C,J$8),cbsa_walk_grouping!$A$1:$H$6,7,FALSE) -> 14.49607066
B25: User Input Value:
A26: Estimated Annual Pedestrian Hours of Travel | C26: =C18*(IF(C23="Default",C24,C25)/60) -> 6422385.557 | D26: =D18*(IF(D23="Default",D24,D25)/60) -> 6760589.742 | E26: 7630895.684 | F26: 7125181.241 | G26: 7599152.325 | H26: 7946316.425 | I26: 8372008.56 | J26: 8089275.233
A27: Fatalities | C27: =SUMIFS('Final Table'!$M:$M,'Final Table'!$A:$A,$C$5,'Final Table'!$C:$C,C$8) -> 3 | D27: =SUMIFS('Final Table'!$M:$M,'Final Table'!$A:$A,$C$5,'Final Table'!$C:$C,D$8) -> 2 | E27: =SUMIFS('Final Table'!$M:$M,'Final Table'!$A:$A,$C$5,'Final Table'!$C:$C,E$8) -> 0 | F27: =SUMIFS('Final Table'!$M:$M,'Final Table'!$A:$A,$C$5,'Final Table'!$C:$C,F$8) -> 1 | G27: =SUMIFS('Final Table'!$M:$M,'Final Table'!$A:$A,$C$5,'Final Table'!$C:$C,G$8) -> 0 | H27: =SUMIFS('Final Table'!$M:$M,'Final Table'!$A:$A,$C$5,'Final Table'!$C:$C,H$8) -> 0 | I27: =SUMIFS('Final Table'!$M:$M,'Final Table'!$A:$A,$C$5,'Final Table'!$C:$C,I$8) -> 2 | J27: =SUMIFS('Final Table'!$M:$M,'Final Table'!$A:$A,$C$5,'Final Table'!$C:$C,J$8) -> 4
A28: Fatalities/Million Hours of Travel | C28: =C27/(C26/1000000) -> 0.4671161477 | D28: =D27/(D26/1000000) -> 0.2958321798 | E28: 0 | F28: 0.1403473071 | G28: 0 | H28: 0 | I28: 0.238891299 | J28: 0.4944818769
C31: Bicycling
C32: 2009 | D32: 2010 | E32: 2011 | F32: 2012 | G32: 2013 | H32: 2014 | I32: 2015 | J32: 2016
A33: Person Trip Rate | B33: Source: | C33: Default | D33: Default | E33: Default | F33: Default | G33: Default | H33: Default | I33: Default | J33: Default
B34: Default Value: | C34: =VLOOKUP(SUMIFS('Final Table'!$J:$J,'Final Table'!$A:$A,$C$5,'Final Table'!$C:$C,C$32),cbsa_bike_grouping!$A$1:$H$6,4,FALSE) -> 0.04304916445 | D34: =VLOOKUP(SUMIFS('Final Table'!$J:$J,'Final Table'!$A:$A,$C$5,'Final Table'!$C:$C,D$32),cbsa_bike_grouping!$A$1:$H$6,4,FALSE) -> 0.04304916445 | E34: =VLOOKUP(SUMIFS('Final Table'!$J:$J,'Final Table'!$A:$A,$C$5,'Final Table'!$C:$C,E$32),cbsa_bike_grouping!$A$1:$H$6,4,FALSE) -> 0.04304916445 | F34: =VLOOKUP(SUMIFS('Final Table'!$J:$J,'Final Table'!$A:$A,$C$5,'Final Table'!$C:$C,F$32),cbsa_bike_grouping!$A$1:$H$6,4,FALSE) -> 0.04304916445 | G34: =VLOOKUP(SUMIFS('Final Table'!$J:$J,'Final Table'!$A:$A,$C$5,'Final Table'!$C:$C,G$32),cbsa_bike_grouping!$A$1:$H$6,4,FALSE) -> 0.04304916445 | H34: =VLOOKUP(SUMIFS('Final Table'!$J:$J,'Final Table'!$A:$A,$C$5,'Final Table'!$C:$C,H$32),cbsa_bike_grouping!$A$1:$H$6,4,FALSE) -> 0.04304916445 | I34: =VLOOKUP(SUMIFS('Final Table'!$J:$J,'Final Table'!$A:$A,$C$5,'Final Table'!$C:$C,I$32),cbsa_bike_grouping!$A$1:$H$6,4,FALSE) -> 0.04304916445 | J34: =VLOOKUP(SUMIFS('Final Table'!$J:$J,'Final Table'!$A:$A,$C$5,'Final Table'!$C:$C,J$32),cbsa_bike_grouping!$A$1:$H$6,4,FALSE) -> 0.04304916445
B35: User Input Value:
A36: MPO Population Estimate | B36: Source: | C36: Default | D36: Default | E36: Default | F36: Default | G36: Default | H36: Default | I36: Default | J36: Default
B37: Default Value: | C37: =C13 -> 115316.3955 | D37: =D13 -> 117726.923 | E37: 117437.0966 | F37: 117490.7813 | G37: 117744.8584 | H37: 117671.6408 | I37: 117642.7597 | J37: 117716.9693
B38: User Input Value:
A39: Population Adjustment Factor | B39: Source: | C39: Default | D39: Default | E39: Default | F39: Default | G39: Default | H39: Default | I39: Default | J39: Default
B40: Default Value: | C40: =SUMIFS('Final Table'!$F:$F,'Final Table'!$A:$A,$C$5,'Final Table'!$C:$C,C$32)/SUMIFS('Final Table'!$F:$F,'Final Table'!$A:$A,$C$5,'Final Table'!$C:$C,2009) -> 1 | D40: =SUMIFS('Final Table'!$F:$F,'Final Table'!$A:$A,$C$5,'Final Table'!$C:$C,D$32)/SUMIFS('Final Table'!$F:$F,'Final Table'!$A:$A,$C$5,'Final Table'!$C:$C,2009) -> 1.116730527 | E40: =SUMIFS('Final Table'!$F:$F,'Final Table'!$A:$A,$C$5,'Final Table'!$C:$C,E$32)/SUMIFS('Final Table'!$F:$F,'Final Table'!$A:$A,$C$5,'Final Table'!$C:$C,2009) -> 1.112590443 | F40: =SUMIFS('Final Table'!$F:$F,'Final Table'!$A:$A,$C$5,'Final Table'!$C:$C,F$32)/SUMIFS('Final Table'!$F:$F,'Final Table'!$A:$A,$C$5,'Final Table'!$C:$C,2009) -> 0.9924082076 | G40: =SUMIFS('Final Table'!$F:$F,'Final Table'!$A:$A,$C$5,'Final Table'!$C:$C,G$32)/SUMIFS('Final Table'!$F:$F,'Final Table'!$A:$A,$C$5,'Final Table'!$C:$C,2009) -> 0.9620568303 | H40: =SUMIFS('Final Table'!$F:$F,'Final Table'!$A:$A,$C$5,'Final Table'!$C:$C,H$32)/SUMIFS('Final Table'!$F:$F,'Final Table'!$A:$A,$C$5,'Final Table'!$C:$C,2009) -> 0.7321857037 | I40: =SUMIFS('Final Table'!$F:$F,'Final Table'!$A:$A,$C$5,'Final Table'!$C:$C,I$32)/SUMIFS('Final Table'!$F:$F,'Final Table'!$A:$A,$C$5,'Final Table'!$C:$C,2009) -> 0.7107111511 | J40: =SUMIFS('Final Table'!$F:$F,'Final Table'!$A:$A,$C$5,'Final Table'!$C:$C,J$32)/SUMIFS('Final Table'!$F:$F,'Final Table'!$A:$A,$C$5,'Final Table'!$C:$C,2009) -> 0.8877582448
B41: User Input Value:
A42: Estimated Annual Bicyclist Trips | C42: =IF(C33="Default",C34,C35)*IF(C36="Default",C37,C38)*365*IF(C39="Default",C40,C41) -> 1811960.183 | D42: =IF(D33="Default",D34,D35)*IF(D36="Default",D37,D38)*365*IF(D39="Default",D40,D41) -> 2065769.077 | E42: 2053043.832 | F42: 1832110.781 | G42: 1779919.127 | H42: 1353787.953 | I42: 1313759.665 | J42: 1642068.908
A43: Average Trip Length (Miles) | B43: Source: | C43: Default | D43: Default | E43: Default | F43: Default | G43: Default | H43: Default | I43: Default | J43: Default
B44: Default Value: | C44: =VLOOKUP(SUMIFS('Final Table'!$J:$J,'Final Table'!$A:$A,$C$5,'Final Table'!$C:$C,C$32),cbsa_bike_grouping!$A$1:$H$6,5,FALSE) -> 2.815315315 | D44: =VLOOKUP(SUMIFS('Final Table'!$J:$J,'Final Table'!$A:$A,$C$5,'Final Table'!$C:$C,D$32),cbsa_bike_grouping!$A$1:$H$6,5,FALSE) -> 2.815315315 | E44: =VLOOKUP(SUMIFS('Final Table'!$J:$J,'Final Table'!$A:$A,$C$5,'Final Table'!$C:$C,E$32),cbsa_bike_grouping!$A$1:$H$6,5,FALSE) -> 2.815315315 | F44: =VLOOKUP(SUMIFS('Final Table'!$J:$J,'Final Table'!$A:$A,$C$5,'Final Table'!$C:$C,F$32),cbsa_bike_grouping!$A$1:$H$6,5,FALSE) -> 2.815315315 | G44: =VLOOKUP(SUMIFS('Final Table'!$J:$J,'Final Table'!$A:$A,$C$5,'Final Table'!$C:$C,G$32),cbsa_bike_grouping!$A$1:$H$6,5,FALSE) -> 2.815315315 | H44: =VLOOKUP(SUMIFS('Final Table'!$J:$J,'Final Table'!$A:$A,$C$5,'Final Table'!$C:$C,H$32),cbsa_bike_grouping!$A$1:$H$6,5,FALSE) -> 2.815315315 | I44: =VLOOKUP(SUMIFS('Final Table'!$J:$J,'Final Table'!$A:$A,$C$5,'Final Table'!$C:$C,I$32),cbsa_bike_grouping!$A$1:$H$6,5,FALSE) -> 2.815315315 | J44: =VLOOKUP(SUMIFS('Final Table'!$J:$J,'Final Table'!$A:$A,$C$5,'Final Table'!$C:$C,J$32),cbsa_bike_grouping!$A$1:$H$6,5,FALSE) -> 2.815315315
B45: User Input Value:
A46: Estimated Annual Bicyclist Miles of Travel | C46: =C42*IF(C43="Default",C44,C45) -> 5101239.253 | D46: =D42*IF(D43="Default",D44,D45) -> 5815791.32 | E46: 5779965.744 | F46: 5157969.541 | G46: 5011033.578 | H46: 3811339.958 | I46: 3698647.707 | J46: 4622941.745
A47: Average Trip Duration (Minutes) | B47: Source: | C47: Default | D47: Default | E47: Default | F47: Default | G47: Default | H47: Default | I47: Default | J47: Default
B48: Default Value: | C48: =VLOOKUP(SUMIFS('Final Table'!$J:$J,'Final Table'!$A:$A,$C$5,'Final Table'!$C:$C,C$32),cbsa_bike_grouping!$A$1:$H$6,7,FALSE) -> 22.07491166 | D48: =VLOOKUP(SUMIFS('Final Table'!$J:$J,'Final Table'!$A:$A,$C$5,'Final Table'!$C:$C,D$32),cbsa_bike_grouping!$A$1:$H$6,7,FALSE) -> 22.07491166 | E48: =VLOOKUP(SUMIFS('Final Table'!$J:$J,'Final Table'!$A:$A,$C$5,'Final Table'!$C:$C,E$32),cbsa_bike_grouping!$A$1:$H$6,7,FALSE) -> 22.07491166 | F48: =VLOOKUP(SUMIFS('Final Table'!$J:$J,'Final Table'!$A:$A,$C$5,'Final Table'!$C:$C,F$32),cbsa_bike_grouping!$A$1:$H$6,7,FALSE) -> 22.07491166 | G48: =VLOOKUP(SUMIFS('Final Table'!$J:$J,'Final Table'!$A:$A,$C$5,'Final Table'!$C:$C,G$32),cbsa_bike_grouping!$A$1:$H$6,7,FALSE) -> 22.07491166 | H48: =VLOOKUP(SUMIFS('Final Table'!$J:$J,'Final Table'!$A:$A,$C$5,'Final Table'!$C:$C,H$32),cbsa_bike_grouping!$A$1:$H$6,7,FALSE) -> 22.07491166 | I48: =VLOOKUP(SUMIFS('Final Table'!$J:$J,'Final Table'!$A:$A,$C$5,'Final Table'!$C:$C,I$32),cbsa_bike_grouping!$A$1:$H$6,7,FALSE) -> 22.07491166 | J48: =VLOOKUP(SUMIFS('Final Table'!$J:$J,'Final Table'!$A:$A,$C$5,'Final Table'!$C:$C,J$32),cbsa_bike_grouping!$A$1:$H$6,7,FALSE) -> 22.07491166
B49: User Input Value:
A50: Estimated Annual Bicyclist Hours of Travel | C50: =C42*(IF(C47="Default",C48,C49)/60) -> 666647.6828 | D50: =D42*(IF(D47="Default",D48,D49)/60) -> 760027.8314 | E50: 755346.0206 | F50: 674061.3941 | G50: 654859.2915 | H50: 498079.1579 | I50: 483352.1426 | J50: 604142.1013
A51: Fatalities | C51: =SUMIFS('Final Table'!$L:$L,'Final Table'!$A:$A,$C$5,'Final Table'!$C:$C,C$32) -> 0 | D51: =SUMIFS('Final Table'!$L:$L,'Final Table'!$A:$A,$C$5,'Final Table'!$C:$C,D$32) -> 0 | E51: =SUMIFS('Final Table'!$L:$L,'Final Table'!$A:$A,$C$5,'Final Table'!$C:$C,E$32) -> 0 | F51: =SUMIFS('Final Table'!$L:$L,'Final Table'!$A:$A,$C$5,'Final Table'!$C:$C,F$32) -> 0 | G51: =SUMIFS('Final Table'!$L:$L,'Final Table'!$A:$A,$C$5,'Final Table'!$C:$C,G$32) -> 0 | H51: =SUMIFS('Final Table'!$L:$L,'Final Table'!$A:$A,$C$5,'Final Table'!$C:$C,H$32) -> 1 | I51: =SUMIFS('Final Table'!$L:$L,'Final Table'!$A:$A,$C$5,'Final Table'!$C:$C,I$32) -> 1 | J51: =SUMIFS('Final Table'!$L:$L,'Final Table'!$A:$A,$C$5,'Final Table'!$C:$C,J$32) -> 0
A52: Fatalities/Million Hours of Travel | C52: =C51/(C50/1000000) -> 0 | D52: =D51/(D50/1000000) -> 0 | E52: 0 | F52: 0 | G52: 0 | H52: 2.007712999 | I52: 2.068885005 | J52: 0
C55: Non-Motorized
C56: 2009 | D56: 2010 | E56: 2011 | F56: 2012 | G56: 2013 | H56: 2014 | I56: 2015 | J56: 2016
A57: Estimated Annual Non-Motorized Trips | C57: =C18+C42 -> 28394552.28 | D57: 30048206.12 | E57: 33637723.01 | F57: 31323611.24 | G57: 33233210.87 | H57: 34244010.19 | I57: 35965944.07 | J57: 35124005.18
A58: Estimated Annual Non-Motorized Miles of Travel | C58: =C22+C46 -> 23171515.84 | D58: 24837652.5 | E58: 27250553.95 | F58: 25205659.71 | G58: 26392307.42 | H58: 26169408.37 | I58: 27254460.25 | J58: 27383244.68
A59: Estimated Annual Non-Motorized Hours of Travel | C59: =C26+C50 -> 7089033.239 | D59: 7520617.574 | E59: 8386241.705 | F59: 7799242.635 | G59: 8254011.616 | H59: 8444395.582 | I59: 8855360.703 | J59: 8693417.334
A60: Non-Motorized Fatalities | C60: 3 | D60: 2 | E60: 0 | F60: 1 | G60: 0 | H60: 1 | I60: 3 | J60: 4
A61: Non-Motorized Fatalities/Million Hours of Travel | C61: =C60/(C59/1000000) -> 0.4231888748 | D61: =D60/(D59/1000000) -> 0.2659356071 | E61: 0 | F61: 0.1282175779 | G61: 0 | H61: 0.1184217379 | I61: 0.3387778432 | J61: 0.4601182534

Sheet Appendix MPO CBSA Peer Grouping
A1: MPO | B1: State | C1: Year | D1: Population | E1: Percent Bike Commute | F1: Percent Walk Commute | G1: CBSA Bike Grouping | H1: CBSA Walk Grouping
A2: Abilene MPO | B2: TX | C2: 2009 | D2: 122150 | E2: 0.0048 | F2: 0.0251 | G2: 3 | H2: 4
A3: Abilene MPO | B3: TX | C3: 2010 | D3: 124073 | E3: 0.005 | F3: 0.0257 | G3: 3 | H3: 4
A4: Abilene MPO | B4: TX | C4: 2011 | D4: 125456 | E4: 0.0039 | F4: 0.0255 | G4: 3 | H4: 4
A5: Abilene MPO | B5: TX | C5: 2012 | D5: 126649 | E5: 0.004 | F5: 0.03 | G5: 3 | H5: 4
A6: Abilene MPO | B6: TX | C6: 2013 | D6: 127828 | E6: 0.0027 | F6: 0.0264 | G6: 2 | H6: 4
A7: Abilene MPO | B7: TX | C7: 2014 | D7: 128721 | E7: 0.0024 | F7: 0.0265 | G7: 2 | H7: 4
A8: Abilene MPO | B8: TX | C8: 2015 | D8: 130088 | E8: 0.0023 | F8: 0.0237 | G8: 2 | H8: 4
A9: Abilene MPO | B9: TX | C9: 2016 | D9: 130384 | E9: 0.0019 | F9: 0.0231 | G9: 1 | H9: 4
A10: Adams County Transportation Planning Organization | B10: PA | C10: 2009 | D10: 101080 | E10: 0.003 | F10: 0.0407 | G10: 2 | H10: 5
A11: Adams County Transportation Planning Organization | B11: PA | C11: 2010 | D11: 100908 | E11: 0.003 | F11: 0.0389 | G11: 2 | H11: 5
A12: Adams County Transportation Planning Organization | B12: PA | C12: 2011 | D12: 101201 | E12: 0.0027 | F12: 0.0434 | G12: 2 | H12: 5
A13: Adams County Transportation Planning Organization | B13: PA | C13: 2012 | D13: 101420 | E13: 0.0021 | F13: 0.0429 | G13: 1 | H13: 5
A14: Adams County Transportation Planning Organization | B14: PA | C14: 2013 | D14: 101558 | E14: 0.0023 | F14: 0.0425 | G14: 2 | H14: 5
A15: Adams County Transportation Planning Organization | B15: PA | C15: 2014 | D15: 101590 | E15: 0.0023 | F15: 0.0394 | G15: 2 | H15: 5
A16: Adams County Transportation Planning Organization | B16: PA | C16: 2015 | D16: 101789 | E16: 0.003 | F16: 0.04 | G16: 2 | H16: 5
A17: Adams County Transportation Planning Organization | B17: PA | C17: 2016 | D17: 101782 | E17: 0.0028 | F17: 0.0366 | G17: 2 | H17: 5
A18: Adirondack/Glens Falls Transportation Council | B18: NY | C18: 2009 | D18: 142419 | E18: 0.0033 | F18: 0.0262 | G18: 3 | H18: 4
A19: Adirondack/Glens Falls Transportation Council | B19: NY | C19: 2010 | D19: 143397 | E19: 0.0032 | F19: 0.0278 | G19: 3 | H19: 4
A20: Adirondack/Glens Falls Transportation Council | B20: NY | C20: 2011 | D20: 143614 | E20: 0.0025 | F20: 0.0286 | G20: 2 | H20: 4
A21: Adirondack/Glens Falls Transportation Council | B21: NY | C21: 2012 | D21: 143598 | E21: 0.0032 | F21: 0.0257 | G21: 3 | H21: 4
A22: Adirondack/Glens Falls Transportation Council | B22: NY | C22: 2013 | D22: 143725 | E22: 0.0028 | F22: 0.0269 | G22: 2 | H22: 4
A23: Adirondack/Glens Falls Transportation Council | B23: NY | C23: 2014 | D23: 143352 | E23: 0.0029 | F23: 0.0304 | G23: 2 | H23: 4
A24: Adirondack/Glens Falls Transportation Council | B24: NY | C24: 2015 | D24: 142943 | E24: 0.0026 | F24: 0.0306 | G24: 2 | H24: 4
A25: Adirondack/Glens Falls Transportation Council | B25: NY | C25: 2016 | D25: 142542 | E25: 0.0044 | F25: 0.0295 | G25: 3 | H25: 4
A26: Akron Metropolitan Area Transportation Study | B26: OH | C26: 2009 | D26: 720042 | E26: 0.0015 | F26: 0.0223 | G26: 1 | H26: 3
A27: Akron Metropolitan Area Transportation Study | B27: OH | C27: 2010 | D27: 723225 | E27: 0.0015 | F27: 0.021 | G27: 1 | H27: 3
A28: Akron Metropolitan Area Transportation Study | B28: OH | C28: 2011 | D28: 722941 | E28: 0.002 | F28: 0.0206 | G28: 1 | H28: 3
A29: Akron Metropolitan Area Transportation Study | B29: OH | C29: 2012 | D29: 723065 | E29: 0.0018 | F29: 0.0198 | G29: 1 | H29: 3
A30: Akron Metropolitan Area Transportation Study | B30: OH | C30: 2013 | D30: 725016 | E30: 0.0015 | F30: 0.018 | G30: 1 | H30: 3
A31: Akron Metropolitan Area Transportation Study | B31: OH | C31: 2014 | D31: 723061 | E31: 0.0013 | F31: 0.0169 | G31: 1 | H31: 2
A32: Akron Metropolitan Area Transportation Study | B32: OH | C32: 2015 | D32: 723880 | E32: 0.0013 | F32: 0.0169 | G32: 1 | H32: 2
A33: Akron Metropolitan Area Transportation Study | B33: OH | C33: 2016 | D33: 723368 | E33: 0.001 | F33: 0.0177 | G33: 1 | H33: 2
A34: Alamo Area MPO | B34: TX | C34: 2009 | D34: 1819360 | E34: 0.0015 | F34: 0.0215 | G34: 1 | H34: 3
A35: Alamo Area MPO | B35: TX | C35: 2010 | D35: 1894760 | E35: 0.0014 | F35: 0.021 | G35: 1 | H35: 3
A36: Alamo Area MPO | B36: TX | C36: 2011 | D36: 1940325 | E36: 0.0017 | F36: 0.0199 | G36: 1 | H36: 3
A37: Alamo Area MPO | B37: TX | C37: 2012 | D37: 1981433 | E37: 0.0016 | F37: 0.019 | G37: 1 | H37: 3
A38: Alamo Area MPO | B38: TX | C38: 2013 | D38: 2022666 | E38: 0.002 | F38: 0.0184 | G38: 1 | H38: 3
A39: Alamo Area MPO | B39: TX | C39: 2014 | D39: 2066855 | E39: 0.0021 | F39: 0.0178 | G39: 1 | H39: 3
A40: Alamo Area MPO | B40: TX | C40: 2015 | D40: 2111881 | E40: 0.002 | F40: 0.0172 | G40: 1 | H40: 2
A41: Alamo Area MPO | B41: TX | C41: 2016 | D41: 2154372 | E41: 0.0017 | F41: 0.0168 | G41: 1 | H41: 2
A42: Albany Area Metropolitan Planning Organization | B42: OR | C42: 2009 | D42: 40767 | E42: 0.0154 | F42: 0.0382 | G42: 5 | H42: 5
A43: Albany Area Metropolitan Planning Organization | B43: OR | C43: 2010 | D43: 41424 | E43: 0.0196 | F43: 0.0411 | G43: 5 | H43: 5
A44: Albany Area Metropolitan Planning Organization | B44: OR | C44: 2011 | D44: 42256 | E44: 0.0186 | F44: 0.0396 | G44: 5 | H44: 5
A45: Albany Area Metropolitan Planning Organization | B45: OR | C45: 2012 | D45: 42998 | E45: 0.0152 | F45: 0.0447 | G45: 5 | H45: 5
A46: Albany Area Metropolitan Planning Organization | B46: OR | C46: 2013 | D46: 43388 | E46: 0.0168 | F46: 0.0385 | G46: 5 | H46: 5
A47: Albany Area Metropolitan Planning Organization | B47: OR | C47: 2014 | D47: 43694 | E47: 0.0159 | F47: 0.0331 | G47: 5 | H47: 5
A48: Albany Area Metropolitan Planning Organization | B48: OR | C48: 2015 | D48: 43967 | E48: 0.0074 | F48: 0.0341 | G48: 4 | H48: 5
A49: Albany Area Metropolitan Planning Organization | B49: OR | C49: 2016 | D49: 44173 | E49: 0.0078 | F49: 0.0305 | G49: 4 | H49: 4
A50: Alexandria-Pineville MPO | B50: LA | C50: 2009 | D50: 132122 | E50: 0.0013 | F50: 0.0237 | G50: 1 | H50: 4
A51: Alexandria-Pineville MPO | B51: LA | C51: 2010 | D51: 130795 | E51: 0.0018 | F51: 0.0277 | G51: 1 | H51: 4
A52: Alexandria-Pineville MPO | B52: LA | C52: 2011 | D52: 131249 | E52: 0.0017 | F52: 0.0179 | G52: 1 | H52: 3
A53: Alexandria-Pineville MPO | B53: LA | C53: 2012 | D53: 131650 | E53: 0.0028 | F53: 0.0205 | G53: 2 | H53: 3
A54: Alexandria-Pineville MPO | B54: LA | C54: 2013 | D54: 132028 | E54: 0.0026 | F54: 0.019 | G54: 2 | H54: 3
A55: Alexandria-Pineville MPO | B55: LA | C55: 2014 | D55: 132192 | E55: 0.003 | F55: 0.0184 | G55: 2 | H55: 3
A56: Alexandria-Pineville MPO | B56: LA | C56: 2015 | D56: 132217 | E56: 0.0032 | F56: 0.0199 | G56: 3 | H56: 3
A57: Alexandria-Pineville MPO | B57: LA | C57: 2016 | D57: 132365 | E57: 0.0027 | F57: 0.0216 | G57: 2 | H57: 3
A58: Amarillo MPO | B58: TX | C58: 2009 | D58: 202008 | E58: 0.0016 | F58: 0.0125 | G58: 1 | H58: 1
A59: Amarillo MPO | B59: TX | C59: 2010 | D59: 206033 | E59: 0.0014 | F59: 0.0134 | G59: 1 | H59: 1
A60: Amarillo MPO | B60: TX | C60: 2011 | D60: 208108 | E60: 0.0013 | F60: 0.0141 | G60: 1 | H60: 1
A61: Amarillo MPO | B61: TX | C61: 2012 | D61: 210883 | E61: 0.0018 | F61: 0.0141 | G61: 1 | H61: 1
A62: Amarillo MPO | B62: TX | C62: 2013 | D62: 212785 | E62: 0.0018 | F62: 0.0136 | G62: 1 | H62: 1
A63: Amarillo MPO | B63: TX | C63: 2014 | D63: 214911 | E63: 0.0028 | F63: 0.0119 | G63: 2 | H63: 1
A64: Amarillo MPO | B64: TX | C64: 2015 | D64: 216652 | E64: 0.0037 | F64: 0.0116 | G64: 3 | H64: 1
A65: Amarillo MPO | B65: TX | C65: 2016 | D65: 217738 | E65: 0.0023 | F65: 0.0114 | G65: 2 | H65: 1
A66: Ames Area MPO | B66: IA | C66: 2009 | D66: 50873 | E66: 0.0207 | F66: 0.1266 | G66: 5 | H66: 5
A67: Ames Area MPO | B67: IA | C67: 2010 | D67: 52801 | E67: 0.0245 | F67: 0.118 | G67: 5 | H67: 5
A68: Ames Area MPO | B68: IA | C68: 2011 | D68: 53638 | E68: 0.0271 | F68: 0.1139 | G68: 5 | H68: 5
A69: Ames Area MPO | B69: IA | C69: 2012 | D69: 54515 | E69: 0.027 | F69: 0.1129 | G69: 5 | H69: 5
A70: Ames Area MPO | B70: IA | C70: 2013 | D70: 55013 | E70: 0.0275 | F70: 0.1102 | G70: 5 | H70: 5
A71: Ames Area MPO | B71: IA | C71: 2014 | D71: 56370 | E71: 0.0283 | F71: 0.0999 | G71: 5 | H71: 5
A72: Ames Area MPO | B72: IA | C72: 2015 | D72: 57913 | E72: 0.0284 | F72: 0.1079 | G72: 5 | H72: 5
A73: Ames Area MPO | B73: IA | C73: 2016 | D73: 59170 | E73: 0.0285 | F73: 0.1094 | G73: 5 | H73: 5
A74: Anchorage Metropolitan Area Transportation Solutions | B74: AK | C74: 2009 | D74: 233266 | E74: 0.0112 | F74: 0.0296 | G74: 5 | H74: 4
A75: Anchorage Metropolitan Area Transportation Solutions | B75: AK | C75: 2010 | D75: 235131 | E75: 0.0108 | F75: 0.0278 | G75: 5 | H75: 4
A76: Anchorage Metropolitan Area Transportation Solutions | B76: AK | C76: 2011 | D76: 236796 | E76: 0.0114 | F76: 0.0275 | G76: 5 | H76: 4
A77: Anchorage Metropolitan Area Transportation Solutions | B77: AK | C77: 2012 | D77: 239524 | E77: 0.0114 | F77: 0.0277 | G77: 5 | H77: 4
A78: Anchorage Metropolitan Area Transportation Solutions | B78: AK | C78: 2013 | D78: 242022 | E78: 0.0125 | F78: 0.0282 | G78: 5 | H78: 4
A79: Anchorage Metropolitan Area Transportation Solutions | B79: AK | C79: 2014 | D79: 244099 | E79: 0.0133 | F79: 0.0285 | G79: 5 | H79: 4
A80: Anchorage Metropolitan Area Transportation Solutions | B80: AK | C80: 2015 | D80: 245341 | E80: 0.0126 | F80: 0.0297 | G80: 5 | H80: 4
A81: Anchorage Metropolitan Area Transportation Solutions | B81: AK | C81: 2016 | D81: 245829 | E81: 0.0127 | F81: 0.0319 | G81: 5 | H81: 5
A82: Anderson Area Transportation Study | B82: SC | C82: 2009 | D82: 81574 | E82: 0.0011 | F82: 0.0141 | G82: 1 | H82: 1
A83: Anderson Area Transportation Study | B83: SC | C83: 2010 | D83: 85659 | E83: 0.0015 | F83: 0.022 | G83: 1 | H83: 3
A84: Anderson Area Transportation Study | B84: SC | C84: 2011 | D84: 86367 | E84: 0.0007 | F84: 0.0172 | G84: 1 | H84: 2
A85: Anderson Area Transportation Study | B85: SC | C85: 2012 | D85: 87109 | E85: 0.0009 | F85: 0.018 | G85: 1 | H85: 3
A86: Anderson Area Transportation Study | B86: SC | C86: 2013 | D86: 88220 | E86: 0.0007 | F86: 0.0157 | G86: 1 | H86: 2
A87: Anderson Area Transportation Study | B87: SC | C87: 2014 | D87: 88037 | E87: 0.0009 | F87: 0.0126 | G87: 1 | H87: 1
A88: Anderson Area Transportation Study | B88: SC | C88: 2015 | D88: 88184 | E88: 0.0004 | F88: 0.013 | G88: 1 | H88: 1
A89: Anderson Area Transportation Study | B89: SC | C89: 2016 | D89: 89139 | E89: 0.0014 | F89: 0.0164 | G89: 1 | H89: 2
A90: Androscoggin Transportation Resource Center | B90: ME | C90: 2009 | D90: 71609 | E90: 0.0016 | F90: 0.046 | G90: 1 | H90: 5
A91: Androscoggin Transportation Resource Center | B91: ME | C91: 2010 | D91: 73173 | E91: 0.0028 | F91: 0.0501 | G91: 2 | H91: 5
A92: Androscoggin Transportation Resource Center | B92: ME | C92: 2011 | D92: 72976 | E92: 0.0039 | F92: 0.0488 | G92: 3 | H92: 5
A93: Androscoggin Transportation Resource Center | B93: ME | C93: 2012 | D93: 72929 | E93: 0.0041 | F93: 0.0574 | G93: 3 | H93: 5
A94: Androscoggin Transportation Resource Center | B94: ME | C94: 2013 | D94: 72721 | E94: 0.0037 | F94: 0.0591 | G94: 3 | H94: 5
A95: Androscoggin Transportation Resource Center | B95: ME | C95: 2014 | D95: 72582 | E95: 0.0041 | F95: 0.0534 | G95: 3 | H95: 5
A96: Androscoggin Transportation Resource Center | B96: ME | C96: 2015 | D96: 72474 | E96: 0.004 | F96: 0.0564 | G96: 3 | H96: 5
A97: Androscoggin Transportation Resource Center | B97: ME | C97: 2016 | D97: 72317 | E97: 0.0025 | F97: 0.0605 | G97: 2 | H97: 5
A98: Appleton/Fox Cities MPO | B98: WI | C98: 2009 | D98: 202977 | E98: 0.0076 | F98: 0.0235 | G98: 4 | H98: 4
A99: Appleton/Fox Cities MPO | B99: WI | C99: 2010 | D99: 214272 | E99: 0.0066 | F99: 0.0226 | G99: 4 | H99: 4
A100: Appleton/Fox Cities MPO | B100: WI | C100: 2011 | D100: 216278 | E100: 0.006 | F100: 0.0235 | G100: 4 | H100: 4
A101: Appleton/Fox Cities MPO | B101: WI | C101: 2012 | D101: 217881 | E101: 0.006 | F101: 0.0241 | G101: 4 | H101: 4
A102: Appleton/Fox Cities MPO | B102: WI | C102: 2013 | D102: 219736 | E102: 0.0064 | F102: 0.0224 | G102: 4 | H102: 3
A103: Appleton/Fox Cities MPO | B103: WI | C103: 2014 | D103: 220957 | E103: 0.0084 | F103: 0.0204 | G103: 4 | H103: 3
A104: Appleton/Fox Cities MPO | B104: WI | C104: 2015 | D104: 221939 | E104: 0.0085 | F104: 0.0211 | G104: 4 | H104: 3
A105: Appleton/Fox Cities MPO | B105: WI | C105: 2016 | D105: 223235 | E105: 0.0079 | F105: 0.0205 | G105: 4 | H105: 3
A106: Area Plan Commission of Tippecanoe County | B106: IN | C106: 2009 | D106: 162513 | E106: 0.009 | F106: 0.0627 | G106: 5 | H106: 5
A107: Area Plan Commission of Tippecanoe County | B107: IN | C107: 2010 | D107: 168623 | E107: 0.0084 | F107: 0.0563 | G107: 4 | H107: 5
A108: Area Plan Commission of Tippecanoe County | B108: IN | C108: 2011 | D108: 170953 | E108: 0.0087 | F108: 0.056 | G108: 5 | H108: 5
A109: Area Plan Commission of Tippecanoe County | B109: IN | C109: 2012 | D109: 173304 | E109: 0.0109 | F109: 0.0547 | G109: 5 | H109: 5
A110: Area Plan Commission of Tippecanoe County | B110: IN | C110: 2013 | D110: 175615 | E110: 0.0121 | F110: 0.0579 | G110: 5 | H110: 5
A111: Area Plan Commission of Tippecanoe County | B111: IN | C111: 2014 | D111: 178122 | E111: 0.0121 | F111: 0.0566 | G111: 5 | H111: 5
A112: Area Plan Commission of Tippecanoe County | B112: IN | C112: 2015 | D112: 180938 | E112: 0.0141 | F112: 0.0626 | G112: 5 | H112: 5
A113: Area Plan Commission of Tippecanoe County | B113: IN | C113: 2016 | D113: 183383 | E113: 0.0149 | F113: 0.0654 | G113: 5 | H113: 5
A114: Association of Central Oklahoma Governments | B114: OK | C114: 2009 | D114: 1077983 | E114: 0.0031 | F114: 0.0161 | G114: 2 | H114: 2
A115: Association of Central Oklahoma Governments | B115: OK | C115: 2010 | D115: 1104383 | E115: 0.003 | F115: 0.0153 | G115: 2 | H115: 1
A116: Association of Central Oklahoma Governments | B116: OK | C116: 2011 | D116: 1121659 | E116: 0.0029 | F116: 0.0161 | G116: 2 | H116: 2
A117: Association of Central Oklahoma Governments | B117: OK | C117: 2012 | D117: 1139799 | E117: 0.0029 | F117: 0.0164 | G117: 2 | H117: 2
A118: Association of Central Oklahoma Governments | B118: OK | C118: 2013 | D118: 1159282 | E118: 0.0032 | F118: 0.0162 | G118: 3 | H118: 2
A119: Association of Central Oklahoma Governments | B119: OK | C119: 2014 | D119: 1178072 | E119: 0.0035 | F119: 0.0158 | G119: 3 | H119: 2
A120: Association of Central Oklahoma Governments | B120: OK | C120: 2015 | D120: 1197101 | E120: 0.0034 | F120: 0.0156 | G120: 3 | H120: 2
A121: Association of Central Oklahoma Governments | B121: OK | C121: 2016 | D121: 1214638 | E121: 0.0035 | F121: 0.0152 | G121: 3 | H121: 1
A122: Association of Monterey Bay Area Governments | B122: CA | C122: 2009 | D122: 652093 | E122: 0.0134 | F122: 0.0395 | G122: 5 | H122: 5
A123: Association of Monterey Bay Area Governments | B123: CA | C123: 2010 | D123: 699105 | E123: 0.0148 | F123: 0.0382 | G123: 5 | H123: 5
A124: Association of Monterey Bay Area Governments | B124: CA | C124: 2011 | D124: 705414 | E124: 0.0157 | F124: 0.0353 | G124: 5 | H124: 5
A125: Association of Monterey Bay Area Governments | B125: CA | C125: 2012 | D125: 713824 | E125: 0.0168 | F125: 0.0346 | G125: 5 | H125: 5
A126: Association of Monterey Bay Area Governments | B126: CA | C126: 2013 | D126: 720536 | E126: 0.016 | F126: 0.0327 | G126: 5 | H126: 5
A127: Association of Monterey Bay Area Governments | B127: CA | C127: 2014 | D127: 727712 | E127: 0.0167 | F127: 0.0334 | G127: 5 | H127: 5
A128: Association of Monterey Bay Area Governments | B128: CA | C128: 2015 | D128: 734548 | E128: 0.018 | F128: 0.0325 | G128: 5 | H128: 5
A129: Association of Monterey Bay Area Governments | B129: CA | C129: 2016 | D129: 738161 | E129: 0.0176 | F129: 0.0345 | G129: 5 | H129: 5
A130: Atlanta Regional Commission | B130: GA | C130: 2009 | D130: 4777154 | E130: 0.0016 | F130: 0.0142 | G130: 1 | H130: 1
A131: Atlanta Regional Commission | B131: GA | C131: 2010 | D131: 4666635 | E131: 0.0015 | F131: 0.0137 | G131: 1 | H131: 1
A132: Atlanta Regional Commission | B132: GA | C132: 2011 | D132: 4750461 | E132: 0.0017 | F132: 0.0137 | G132: 1 | H132: 1
A133: Atlanta Regional Commission | B133: GA | C133: 2012 | D133: 4824141 | E133: 0.0018 | F133: 0.0137 | G133: 1 | H133: 1
A134: Atlanta Regional Commission | B134: GA | C134: 2013 | D134: 4893180 | E134: 0.002 | F134: 0.0141 | G134: 1 | H134: 1
A135: Atlanta Regional Commission | B135: GA | C135: 2014 | D135: 4967481 | E135: 0.0019 | F135: 0.014 | G135: 1 | H135: 1
A136: Atlanta Regional Commission | B136: GA | C136: 2015 | D136: 5046614 | E136: 0.002 | F136: 0.0143 | G136: 1 | H136: 1
A137: Atlanta Regional Commission | B137: GA | C137: 2016 | D137: 5120792 | E137: 0.002 | F137: 0.0141 | G137: 1 | H137: 1
A138: Auburn - Opelika MPO | B138: AL | C138: 2009 | D138: 83730 | E138: 0.0092 | F138: 0.0355 | G138: 5 | H138: 5
A139: Auburn - Opelika MPO | B139: AL | C139: 2010 | D139: 82483 | E139: 0.0121 | F139: 0.0389 | G139: 5 | H139: 5
A140: Auburn - Opelika MPO | B140: AL | C140: 2011 | D140: 84113 | E140: 0.0129 | F140: 0.0358 | G140: 5 | H140: 5
A141: Auburn - Opelika MPO | B141: AL | C141: 2012 | D141: 85940 | E141: 0.0131 | F141: 0.0418 | G141: 5 | H141: 5
A142: Auburn - Opelika MPO | B142: AL | C142: 2013 | D142: 88697 | E142: 0.0106 | F142: 0.0403 | G142: 5 | H142: 5
A143: Auburn - Opelika MPO | B143: AL | C143: 2014 | D143: 91140 | E143: 0.0095 | F143: 0.0364 | G143: 5 | H143: 5
A144: Auburn - Opelika MPO | B144: AL | C144: 2015 | D144: 92806 | E144: 0.0049 | F144: 0.0348 | G144: 3 | H144: 5
A145: Auburn - Opelika MPO | B145: AL | C145: 2016 | D145: 94351 | E145: 0.004 | F145: 0.0331 | G145: 3 | H145: 5
A146: Augusta Regional Transportation Study | B146: GA | C146: 2009 | D146: 411074 | E146: 0.0028 | F146: 0.0334 | G146: 2 | H146: 5
A147: Augusta Regional Transportation Study | B147: GA | C147: 2010 | D147: 421514 | E147: 0.0024 | F147: 0.0264 | G147: 2 | H147: 4
A148: Augusta Regional Transportation Study | B148: GA | C148: 2011 | D148: 427855 | E148: 0.0018 | F148: 0.0231 | G148: 1 | H148: 4
A149: Augusta Regional Transportation Study | B149: GA | C149: 2012 | D149: 433210 | E149: 0.002 | F149: 0.0217 | G149: 1 | H149: 3
A150: Augusta Regional Transportation Study | B150: GA | C150: 2013 | D150: 439318 | E150: 0.0021 | F150: 0.0203 | G150: 1 | H150: 3
A151: Augusta Regional Transportation Study | B151: GA | C151: 2014 | D151: 443492 | E151: 0.0024 | F151: 0.0207 | G151: 2 | H151: 3
A152: Augusta Regional Transportation Study | B152: GA | C152: 2015 | D152: 447926 | E152: 0.0028 | F152: 0.0193 | G152: 2 | H152: 3
A153: Augusta Regional Transportation Study | B153: GA | C153: 2016 | D153: 452447 | E153: 0.0029 | F153: 0.0189 | G153: 2 | H153: 3
A154: Baltimore Regional Transportation Board | B154: MD | C154: 2009 | D154: 2585430 | E154: 0.0025 | F154: 0.0295 | G154: 2 | H154: 4
A155: Baltimore Regional Transportation Board | B155: MD | C155: 2010 | D155: 2631171 | E155: 0.0026 | F155: 0.0295 | G155: 2 | H155: 4
A156: Baltimore Regional Transportation Board | B156: MD | C156: 2011 | D156: 2645435 | E156: 0.0024 | F156: 0.0277 | G156: 2 | H156: 4
A157: Baltimore Regional Transportation Board | B157: MD | C157: 2012 | D157: 2663192 | E157: 0.0027 | F157: 0.027 | G157: 2 | H157: 4
A158: Baltimore Regional Transportation Board | B158: MD | C158: 2013 | D158: 2681343 | E158: 0.0027 | F158: 0.0265 | G158: 2 | H158: 4
A159: Baltimore Regional Transportation Board | B159: MD | C159: 2014 | D159: 2699721 | E159: 0.0028 | F159: 0.0262 | G159: 2 | H159: 4
A160: Baltimore Regional Transportation Board | B160: MD | C160: 2015 | D160: 2716153 | E160: 0.0029 | F160: 0.0273 | G160: 2 | H160: 4
A161: Baltimore Regional Transportation Board | B161: MD | C161: 2016 | D161: 2727040 | E161: 0.0031 | F161: 0.0275 | G161: 2 | H161: 4
A162: Bangor Area Comprehensive Transportation System | B162: ME | C162: 2009 | D162: 57079 | E162: 0.0082 | F162: 0.0795 | G162: 4 | H162: 5
A163: Bangor Area Comprehensive Transportation System | B163: ME | C163: 2010 | D163: 59625 | E163: 0.0065 | F163: 0.0788 | G163: 4 | H163: 5
A164: Bangor Area Comprehensive Transportation System | B164: ME | C164: 2011 | D164: 59644 | E164: 0.0053 | F164: 0.0738 | G164: 4 | H164: 5
A165: Bangor Area Comprehensive Transportation System | B165: ME | C165: 2012 | D165: 59804 | E165: 0.0074 | F165: 0.0734 | G165: 4 | H165: 5
A166: Bangor Area Comprehensive Transportation System | B166: ME | C166: 2013 | D166: 59608 | E166: 0.0089 | F166: 0.065 | G166: 5 | H166: 5
A167: Bangor Area Comprehensive Transportation System | B167: ME | C167: 2014 | D167: 59287 | E167: 0.0074 | F167: 0.0671 | G167: 4 | H167: 5
A168: Bangor Area Comprehensive Transportation System | B168: ME | C168: 2015 | D168: 59060 | E168: 0.006 | F168: 0.065 | G168: 4 | H168: 5
A169: Bangor Area Comprehensive Transportation System | B169: ME | C169: 2016 | D169: 58752 | E169: 0.0061 | F169: 0.0605 | G169: 4 | H169: 5
A170: Bannock Transportation Planning Organization | B170: ID | C170: 2009 | D170: 70033 | E170: 0.0121 | F170: 0.0327 | G170: 5 | H170: 5
A171: Bannock Transportation Planning Organization | B171: ID | C171: 2010 | D171: 70747 | E171: 0.013 | F171: 0.0312 | G171: 5 | H171: 5
A172: Bannock Transportation Planning Organization | B172: ID | C172: 2011 | D172: 71429 | E172: 0.0131 | F172: 0.0228 | G172: 5 | H172: 4
A173: Bannock Transportation Planning Organization | B173: ID | C173: 2012 | D173: 72252 | E173: 0.0116 | F173: 0.0274 | G173: 5 | H173: 4
A174: Bannock Transportation Planning Organization | B174: ID | C174: 2013 | D174: 72572 | E174: 0.0113 | F174: 0.035 | G174: 5 | H174: 5
A175: Bannock Transportation Planning Organization | B175: ID | C175: 2014 | D175: 72724 | E175: 0.0098 | F175: 0.0418 | G175: 5 | H175: 5
A176: Bannock Transportation Planning Organization | B176: ID | C176: 2015 | D176: 73116 | E176: 0.0105 | F176: 0.0433 | G176: 5 | H176: 5
A177: Bannock Transportation Planning Organization | B177: ID | C177: 2016 | D177: 73093 | E177: 0.0137 | F177: 0.0441 | G177: 5 | H177: 5
A178: Battle Creek Area Transportation Study | B178: MI | C178: 2009 | D178: 93931 | E178: 0.0034 | F178: 0.0248 | G178: 3 | H178: 4
A179: Battle Creek Area Transportation Study | B179: MI | C179: 2010 | D179: 94549 | E179: 0.0032 | F179: 0.027 | G179: 3 | H179: 4
A180: Battle Creek Area Transportation Study | B180: MI | C180: 2011 | D180: 94196 | E180: 0.0028 | F180: 0.0254 | G180: 2 | H180: 4
A181: Battle Creek Area Transportation Study | B181: MI | C181: 2012 | D181: 93889 | E181: 0.0027 | F181: 0.0282 | G181: 2 | H181: 4
A182: Battle Creek Area Transportation Study | B182: MI | C182: 2013 | D182: 93598 | E182: 0.003 | F182: 0.025 | G182: 2 | H182: 4
A183: Battle Creek Area Transportation Study | B183: MI | C183: 2014 | D183: 93451 | E183: 0.0015 | F183: 0.0228 | G183: 1 | H183: 4
A184: Battle Creek Area Transportation Study | B184: MI | C184: 2015 | D184: 93257 | E184: 0.0011 | F184: 0.0205 | G184: 1 | H184: 3
A185: Battle Creek Area Transportation Study | B185: MI | C185: 2016 | D185: 93216 | E185: 0.0016 | F185: 0.0206 | G185: 1 | H185: 3
A186: Bay City Area Transportation Study | B186: MI | C186: 2009 | D186: 76835 | E186: 0.0072 | F186: 0.0245 | G186: 4 | H186: 4
A187: Bay City Area Transportation Study | B187: MI | C187: 2010 | D187: 79510 | E187: 0.0059 | F187: 0.0268 | G187: 4 | H187: 4
A188: Bay City Area Transportation Study | B188: MI | C188: 2011 | D188: 79427 | E188: 0.0065 | F188: 0.0199 | G188: 4 | H188: 3
A189: Bay City Area Transportation Study | B189: MI | C189: 2012 | D189: 79252 | E189: 0.0074 | F189: 0.0217 | G189: 4 | H189: 3
A190: Bay City Area Transportation Study | B190: MI | C190: 2013 | D190: 78981 | E190: 0.0042 | F190: 0.021 | G190: 3 | H190: 3
A191: Bay City Area Transportation Study | B191: MI | C191: 2014 | D191: 78785 | E191: 0.0059 | F191: 0.0198 | G191: 4 | H191: 3
A192: Bay City Area Transportation Study | B192: MI | C192: 2015 | D192: 78438 | E192: 0.0041 | F192: 0.0169 | G192: 3 | H192: 2
A193: Bay City Area Transportation Study | B193: MI | C193: 2016 | D193: 77955 | E193: 0.0036 | F193: 0.0174 | G193: 3 | H193: 2
A194: Bay County Transportation Planning Organization | B194: FL | C194: 2009 | D194: 163451 | E194: 0.0034 | F194: 0.0155 | G194: 3 | H194: 2
A195: Bay County Transportation Planning Organization | B195: FL | C195: 2010 | D195: 166798 | E195: 0.0045 | F195: 0.0169 | G195: 3 | H195: 2
A196: Bay County Transportation Planning Organization | B196: FL | C196: 2011 | D196: 167645 | E196: 0.0051 | F196: 0.0181 | G196: 4 | H196: 3
A197: Bay County Transportation Planning Organization | B197: FL | C197: 2012 | D197: 168957 | E197: 0.0051 | F197: 0.0191 | G197: 4 | H197: 3
A198: Bay County Transportation Planning Organization | B198: FL | C198: 2013 | D198: 170704 | E198: 0.0062 | F198: 0.0158 | G198: 4 | H198: 2
A199: Bay County Transportation Planning Organization | B199: FL | C199: 2014 | D199: 172988 | E199: 0.0067 | F199: 0.0178 | G199: 4 | H199: 3
A200: Bay County Transportation Planning Organization | B200: FL | C200: 2015 | D200: 175353 | E200: 0.0063 | F200: 0.017 | G200: 4 | H200: 2
... 3033 more rows

Sheet State Default Data (hidden)
A1: State | B1: Year | C1: Mode | D1: TL2009 (Miles) | E1: TD2009 (Minutes) | F1: PCi | G1: AFct | H1: AFpop,i
A2: Alabama | B2: 2009 | C2: Bike | D2: 0.37 | E2: 14.49 | F2: 2392 | G2: 176.39 | H2: 1
A3: Alaska | B3: 2009 | C3: Bike | D3: 1.27 | E3: 12.97 | F3: 2689 | G3: 10.19 | H3: 1
A4: Arizona | B4: 2009 | C4: Bike | D4: 1.71 | E4: 12.94 | F4: 26015 | G4: 10.22 | H4: 1
A5: Arkansas | B5: 2009 | C5: Bike | D5: 0.67 | E5: 11.58 | F5: 1516 | G5: 3.61 | H5: 1
A6: California | B6: 2009 | C6: Bike | D6: 2.89 | E6: 22.31 | F6: 158477 | G6: 11.41 | H6: 1
A7: Colorado | B7: 2009 | C7: Bike | D7: 3.6 | E7: 21.91 | F7: 34500 | G7: 12.63 | H7: 1
A8: Connecticut | B8: 2009 | C8: Bike | D8: 1.29 | E8: 7.14 | F8: 5072 | G8: 17.83 | H8: 1 | L8: TL2009 (Miles) | M8: 2009 NHTS average trip length (miles)
A9: Delaware | B9: 2009 | C9: Bike | D9: 0.54 | E9: 18.51 | F9: 1255 | G9: 6.55 | H9: 1 | L9: TD2009 (Minutes) | M9: 2009 NHTS average trip duration (miles)
A10: District of Columbia | B10: 2009 | C10: Bike | D10: 1.6 | E10: 21.41 | F10: 6306 | G10: 4.78 | H10: 1 | L10: PCi | M10: ACS daily persons commuting in selection year
A11: Florida | B11: 2009 | C11: Bike | D11: 1.93 | E11: 17.8 | F11: 51684 | G11: 15 | H11: 1 | L11: AFct | M11: Commute trip adjustment factor
A12: Georgia | B12: 2009 | C12: Bike | D12: 1.51 | E12: 17.05 | F12: 10158 | G12: 25.35 | H12: 1 | L12: AFpop,i | M12: Population adjustment factor for selection year
A13: Hawaii | B13: 2009 | C13: Bike | D13: 6.63 | E13: 43.83 | F13: 8128 | G13: 5.73 | H13: 1
A14: Idaho | B14: 2009 | C14: Bike | D14: 3.87 | E14: 29.27 | F14: 7831 | G14: 7 | H14: 1
A15: Illinois | B15: 2009 | C15: Bike | D15: 2.25 | E15: 17.43 | F15: 33449 | G15: 24.33 | H15: 1
A16: Indiana | B16: 2009 | C16: Bike | D16: 1.44 | E16: 18.8 | F16: 12069 | G16: 20.66 | H16: 1
A17: Iowa | B17: 2009 | C17: Bike | D17: 1.99 | E17: 22.71 | F17: 5797 | G17: 29.3 | H17: 1
A18: Kansas | B18: 2009 | C18: Bike | D18: 2.14 | E18: 13.27 | F18: 5369 | G18: 9.7 | H18: 1
A19: Kentucky | B19: 2009 | C19: Bike | D19: 0.64 | E19: 17.96 | F19: 4129 | G19: 33.18 | H19: 1
A20: Louisiana | B20: 2009 | C20: Bike | D20: 4.46 | E20: 20.11 | F20: 8056 | G20: 12.24 | H20: 1
A21: Maine | B21: 2009 | C21: Bike | D21: 4.16 | E21: 29.03 | F21: 3202 | G21: 5.13 | H21: 1
A22: Maryland | B22: 2009 | C22: Bike | D22: 4.88 | E22: 23.37 | F22: 10315 | G22: 23.9 | H22: 1
A23: Massachusetts | B23: 2009 | C23: Bike | D23: 4.08 | E23: 35.58 | F23: 26832 | G23: 2.65 | H23: 1
A24: Michigan | B24: 2009 | C24: Bike | D24: 1.29 | E24: 19.28 | F24: 19689 | G24: 24.63 | H24: 1
A25: Minnesota | B25: 2009 | C25: Bike | D25: 2.33 | E25: 17.01 | F25: 18968 | G25: 16.61 | H25: 1
A26: Mississippi | B26: 2009 | C26: Bike | D26: 0.63 | E26: 5.57 | F26: 995 | G26: 55.07 | H26: 1
A27: Missouri | B27: 2009 | C27: Bike | D27: 2.29 | E27: 23.64 | F27: 6936 | G27: 17.78 | H27: 1
A28: Montana | B28: 2009 | C28: Bike | D28: 2.12 | E28: 25.17 | F28: 7946 | G28: 4.14 | H28: 1
A29: Nebraska | B29: 2009 | C29: Bike | D29: 2.48 | E29: 14.89 | F29: 4126 | G29: 21.25 | H29: 1
A30: Nevada | B30: 2009 | C30: Bike | D30: 1.32 | E30: 16.25 | F30: 4811 | G30: 14.24 | H30: 1
A31: New Hampshire | B31: 2009 | C31: Bike | D31: 7.65 | E31: 48.49 | F31: 2608 | G31: 12.61 | H31: 1
A32: New Jersey | B32: 2009 | C32: Bike | D32: 3.42 | E32: 26.59 | F32: 13239 | G32: 12 | H32: 1
A33: New Mexico | B33: 2009 | C33: Bike | D33: 0.99 | E33: 13.05 | F33: 5870 | G33: 3.27 | H33: 1
A34: New York | B34: 2009 | C34: Bike | D34: 1.93 | E34: 20.81 | F34: 39185 | G34: 11.54 | H34: 1
A35: North Carolina | B35: 2009 | C35: Bike | D35: 2.28 | E35: 16.54 | F35: 10766 | G35: 25.19 | H35: 1
A36: North Dakota | B36: 2009 | C36: Bike | D36: 1.19 | E36: 12.77 | F36: 1353 | G36: 8.1 | H36: 1
A37: Ohio | B37: 2009 | C37: Bike | D37: 1.77 | E37: 17.87 | F37: 13780 | G37: 24.45 | H37: 1
A38: Oklahoma | B38: 2009 | C38: Bike | D38: 1.76 | E38: 14.26 | F38: 3964 | G38: 51.15 | H38: 1
A39: Oregon | B39: 2009 | C39: Bike | D39: 2.98 | E39: 20.88 | F39: 39920 | G39: 8.92 | H39: 1
A40: Pennsylvania | B40: 2009 | C40: Bike | D40: 2.62 | E40: 16.57 | F40: 29316 | G40: 8.6 | H40: 1
A41: Rhode Island | B41: 2009 | C41: Bike | D41: 1.12 | E41: 18.16 | F41: 1978 | G41: 13.85 | H41: 1
A42: South Carolina | B42: 2009 | C42: Bike | D42: 1.34 | E42: 19.98 | F42: 5819 | G42: 24.01 | H42: 1
A43: South Dakota | B43: 2009 | C43: Bike | D43: 1.04 | E43: 11.3 | F43: 2353 | G43: 30.27 | H43: 1
A44: Tennessee | B44: 2009 | C44: Bike | D44: 1.26 | E44: 15.75 | F44: 3004 | G44: 28.27 | H44: 1
A45: Texas | B45: 2009 | C45: Bike | D45: 1.76 | E45: 20 | F45: 26211 | G45: 26.13 | H45: 1
A46: Utah | B46: 2009 | C46: Bike | D46: 1.46 | E46: 13.85 | F46: 10584 | G46: 14.75 | H46: 1
A47: Vermont | B47: 2009 | C47: Bike | D47: 3.4 | E47: 21.62 | F47: 2550 | G47: 10.74 | H47: 1
A48: Virginia | B48: 2009 | C48: Bike | D48: 3.2 | E48: 22.95 | F48: 12571 | G48: 15.47 | H48: 1
A49: Washington | B49: 2009 | C49: Bike | D49: 2.4 | E49: 21.42 | F49: 28395 | G49: 6.85 | H49: 1
A50: West Virginia | B50: 2009 | C50: Bike | D50: 1.03 | E50: 20.77 | F50: 1208 | G50: 38.56 | H50: 1
A51: Wisconsin | B51: 2009 | C51: Bike | D51: 2.21 | E51: 17.3 | F51: 20009 | G51: 10.13 | H51: 1
A52: Wyoming | B52: 2009 | C52: Bike | D52: 1.29 | E52: 7.1 | F52: 2308 | G52: 3.56 | H52: 1
A53: Puerto Rico | B53: 2009 | C53: Bike | D53: 0 | E53: 0 | F53: 2633 | G53: 0 | H53: 1
A54: Alabama | B54: 2009 | C54: Walk | D54: 0.92 | E54: 12.67 | F54: 25810 | G54: 24.84 | H54: 1
A55: Alaska | B55: 2009 | C55: Walk | D55: 0.72 | E55: 14.19 | F55: 26751 | G55: 10.24 | H55: 1
A56: Arizona | B56: 2009 | C56: Walk | D56: 0.72 | E56: 17.92 | F56: 65624 | G56: 31.1 | H56: 1
A57: Arkansas | B57: 2009 | C57: Walk | D57: 0.55 | E57: 14.78 | F57: 22866 | G57: 24.32 | H57: 1
A58: California | B58: 2009 | C58: Walk | D58: 0.72 | E58: 16.11 | F58: 447411 | G58: 38.41 | H58: 1
A59: Colorado | B59: 2009 | C59: Walk | D59: 0.75 | E59: 13.23 | F59: 73437 | G59: 25.03 | H59: 1
A60: Connecticut | B60: 2009 | C60: Walk | D60: 0.76 | E60: 25.81 | F60: 50342 | G60: 30.91 | H60: 1
A61: Delaware | B61: 2009 | C61: Walk | D61: 0.6 | E61: 13.08 | F61: 9713 | G61: 26.23 | H61: 1
A62: District of Columbia | B62: 2009 | C62: Walk | D62: 0.57 | E62: 13.36 | F62: 32328 | G62: 16.61 | H62: 1
A63: Florida | B63: 2009 | C63: Walk | D63: 0.66 | E63: 14.28 | F63: 118132 | G63: 48.7 | H63: 1
A64: Georgia | B64: 2009 | C64: Walk | D64: 0.71 | E64: 15.19 | F64: 70992 | G64: 34.19 | H64: 1
A65: Hawaii | B65: 2009 | C65: Walk | D65: 0.92 | E65: 17.04 | F65: 29016 | G65: 19.83 | H65: 1
A66: Idaho | B66: 2009 | C66: Walk | D66: 0.62 | E66: 14.17 | F66: 17568 | G66: 35.71 | H66: 1
A67: Illinois | B67: 2009 | C67: Walk | D67: 0.57 | E67: 12.49 | F67: 189926 | G67: 32.99 | H67: 1
A68: Indiana | B68: 2009 | C68: Walk | D68: 0.59 | E68: 12.91 | F68: 62950 | G68: 24.46 | H68: 1
A69: Iowa | B69: 2009 | C69: Walk | D69: 0.67 | E69: 13.79 | F69: 61390 | G69: 12.09 | H69: 1
A70: Kansas | B70: 2009 | C70: Walk | D70: 0.8 | E70: 15.25 | F70: 38761 | G70: 17.25 | H70: 1
A71: Kentucky | B71: 2009 | C71: Walk | D71: 0.68 | E71: 12.72 | F71: 43922 | G71: 23.89 | H71: 1
A72: Louisiana | B72: 2009 | C72: Walk | D72: 0.89 | E72: 13.84 | F72: 39371 | G72: 27.83 | H72: 1
A73: Maine | B73: 2009 | C73: Walk | D73: 0.61 | E73: 14.32 | F73: 26414 | G73: 14.83 | H73: 1
A74: Maryland | B74: 2009 | C74: Walk | D74: 0.54 | E74: 11.77 | F74: 74434 | G74: 31.76 | H74: 1
A75: Massachusetts | B75: 2009 | C75: Walk | D75: 0.97 | E75: 16.54 | F75: 151189 | G75: 22.25 | H75: 1
A76: Michigan | B76: 2009 | C76: Walk | D76: 0.79 | E76: 15.91 | F76: 98309 | G76: 32.41 | H76: 1
A77: Minnesota | B77: 2009 | C77: Walk | D77: 0.69 | E77: 17.65 | F77: 77059 | G77: 31.75 | H77: 1
A78: Mississippi | B78: 2009 | C78: Walk | D78: 0.7 | E78: 11.91 | F78: 19684 | G78: 40.92 | H78: 1
A79: Missouri | B79: 2009 | C79: Walk | D79: 0.83 | E79: 15.67 | F79: 54127 | G79: 21.16 | H79: 1
A80: Montana | B80: 2009 | C80: Walk | D80: 0.54 | E80: 10.58 | F80: 24724 | G80: 12.52 | H80: 1
A81: Nebraska | B81: 2009 | C81: Walk | D81: 0.78 | E81: 14.51 | F81: 30642 | G81: 13.23 | H81: 1
A82: Nevada | B82: 2009 | C82: Walk | D82: 0.92 | E82: 18.59 | F82: 25187 | G82: 21.1 | H82: 1
A83: New Hampshire | B83: 2009 | C83: Walk | D83: 0.73 | E83: 15.62 | F83: 19158 | G83: 25.17 | H83: 1
A84: New Jersey | B84: 2009 | C84: Walk | D84: 0.55 | E84: 11.36 | F84: 137504 | G84: 25.74 | H84: 1
A85: New Mexico | B85: 2009 | C85: Walk | D85: 0.8 | E85: 14.89 | F85: 20989 | G85: 23.89 | H85: 1
A86: New York | B86: 2009 | C86: Walk | D86: 0.76 | E86: 14.82 | F86: 574322 | G86: 25.49 | H86: 1
A87: North Carolina | B87: 2009 | C87: Walk | D87: 0.67 | E87: 13.74 | F87: 82681 | G87: 25.02 | H87: 1
A88: North Dakota | B88: 2009 | C88: Walk | D88: 0.35 | E88: 6.93 | F88: 12419 | G88: 17.87 | H88: 1
A89: Ohio | B89: 2009 | C89: Walk | D89: 0.73 | E89: 19.08 | F89: 116395 | G89: 30.65 | H89: 1
A90: Oklahoma | B90: 2009 | C90: Walk | D90: 0.59 | E90: 12.73 | F90: 30444 | G90: 30.33 | H90: 1
A91: Oregon | B91: 2009 | C91: Walk | D91: 0.78 | E91: 15.45 | F91: 65863 | G91: 33.44 | H91: 1
A92: Pennsylvania | B92: 2009 | C92: Walk | D92: 0.56 | E92: 12.95 | F92: 227700 | G92: 21.89 | H92: 1
A93: Rhode Island | B93: 2009 | C93: Walk | D93: 0.41 | E93: 9.27 | F93: 15797 | G93: 24.8 | H93: 1
A94: South Carolina | B94: 2009 | C94: Walk | D94: 0.68 | E94: 13.78 | F94: 36672 | G94: 28.69 | H94: 1
A95: South Dakota | B95: 2009 | C95: Walk | D95: 0.62 | E95: 9.95 | F95: 17914 | G95: 15.6 | H95: 1
A96: Tennessee | B96: 2009 | C96: Walk | D96: 0.62 | E96: 13.09 | F96: 38131 | G96: 27.73 | H96: 1
A97: Texas | B97: 2009 | C97: Walk | D97: 0.68 | E97: 14.5 | F97: 192756 | G97: 33.17 | H97: 1
A98: Utah | B98: 2009 | C98: Walk | D98: 0.49 | E98: 11.73 | F98: 36985 | G98: 34.82 | H98: 1
A99: Vermont | B99: 2009 | C99: Walk | D99: 0.78 | E99: 16.02 | F99: 17214 | G99: 13.85 | H99: 1
A100: Virginia | B100: 2009 | C100: Walk | D100: 0.71 | E100: 14.99 | F100: 85818 | G100: 31.48 | H100: 1
A101: Washington | B101: 2009 | C101: Walk | D101: 0.68 | E101: 14.81 | F101: 103950 | G101: 25.93 | H101: 1
A102: West Virginia | B102: 2009 | C102: Walk | D102: 0.57 | E102: 22.48 | F102: 20652 | G102: 23.61 | H102: 1
A103: Wisconsin | B103: 2009 | C103: Walk | D103: 0.72 | E103: 15.17 | F103: 94869 | G103: 18.6 | H103: 1
A104: Wyoming | B104: 2009 | C104: Walk | D104: 0.7 | E104: 13.22 | F104: 9347 | G104: 16.41 | H104: 1
A105: Puerto Rico | B105: 2009 | C105: Walk | D105: 0 | E105: 0 | F105: 46251 | G105: 0 | H105: 1
A106: Alabama | B106: 2010 | C106: Bike | D106: 0.37 | E106: 14.49 | F106: 2322 | G106: 176.39 | H106: 1.02
A107: Alaska | B107: 2010 | C107: Bike | D107: 1.27 | E107: 12.97 | F107: 4542 | G107: 10.19 | H107: 1.02
A108: Arizona | B108: 2010 | C108: Bike | D108: 1.71 | E108: 12.94 | F108: 22303 | G108: 10.22 | H108: 0.97
A109: Arkansas | B109: 2010 | C109: Bike | D109: 0.67 | E109: 11.58 | F109: 746 | G109: 3.61 | H109: 1.01
A110: California | B110: 2010 | C110: Bike | D110: 2.89 | E110: 22.31 | F110: 160016 | G110: 11.41 | H110: 1.01
A111: Colorado | B111: 2010 | C111: Bike | D111: 3.6 | E111: 21.91 | F111: 27563 | G111: 12.63 | H111: 1
A112: Connecticut | B112: 2010 | C112: Bike | D112: 1.29 | E112: 7.14 | F112: 4326 | G112: 17.83 | H112: 1.02
A113: Delaware | B113: 2010 | C113: Bike | D113: 0.54 | E113: 18.51 | F113: 630 | G113: 6.55 | H113: 1.02
A114: District of Columbia | B114: 2010 | C114: Bike | D114: 1.6 | E114: 21.41 | F114: 9288 | G114: 4.78 | H114: 1.01
A115: Florida | B115: 2010 | C115: Bike | D115: 1.93 | E115: 17.8 | F115: 51006 | G115: 15 | H115: 1.02
A116: Georgia | B116: 2010 | C116: Bike | D116: 1.51 | E116: 17.05 | F116: 8498 | G116: 25.35 | H116: 0.99
A117: Hawaii | B117: 2010 | C117: Bike | D117: 6.63 | E117: 43.83 | F117: 5653 | G117: 5.73 | H117: 1.05
A118: Idaho | B118: 2010 | C118: Bike | D118: 3.87 | E118: 29.27 | F118: 8114 | G118: 7 | H118: 1.02
A119: Illinois | B119: 2010 | C119: Bike | D119: 2.25 | E119: 17.43 | F119: 33427 | G119: 24.33 | H119: 0.99
A120: Indiana | B120: 2010 | C120: Bike | D120: 1.44 | E120: 18.8 | F120: 11568 | G120: 20.66 | H120: 1.01
A121: Iowa | B121: 2010 | C121: Bike | D121: 1.99 | E121: 22.71 | F121: 7902 | G121: 29.3 | H121: 1.01
A122: Kansas | B122: 2010 | C122: Bike | D122: 2.14 | E122: 13.27 | F122: 5170 | G122: 9.7 | H122: 1.01
A123: Kentucky | B123: 2010 | C123: Bike | D123: 0.64 | E123: 17.96 | F123: 3211 | G123: 33.18 | H123: 1.01
A124: Louisiana | B124: 2010 | C124: Bike | D124: 4.46 | E124: 20.11 | F124: 6675 | G124: 12.24 | H124: 1.01
A125: Maine | B125: 2010 | C125: Bike | D125: 4.16 | E125: 29.03 | F125: 4179 | G125: 5.13 | H125: 1.01
A126: Maryland | B126: 2010 | C126: Bike | D126: 4.88 | E126: 23.37 | F126: 5674 | G126: 23.9 | H126: 1.02
A127: Massachusetts | B127: 2010 | C127: Bike | D127: 4.08 | E127: 35.58 | F127: 19732 | G127: 2.65 | H127: 0.99
A128: Michigan | B128: 2010 | C128: Bike | D128: 1.29 | E128: 19.28 | F128: 15256 | G128: 24.63 | H128: 0.99
A129: Minnesota | B129: 2010 | C129: Bike | D129: 2.33 | E129: 17.01 | F129: 17271 | G129: 16.61 | H129: 1.01
A130: Mississippi | B130: 2010 | C130: Bike | D130: 0.63 | E130: 5.57 | F130: 878 | G130: 55.07 | H130: 1.01
A131: Missouri | B131: 2010 | C131: Bike | D131: 2.29 | E131: 23.64 | F131: 7046 | G131: 17.78 | H131: 1
A132: Montana | B132: 2010 | C132: Bike | D132: 2.12 | E132: 25.17 | F132: 4943 | G132: 4.14 | H132: 1.02
A133: Nebraska | B133: 2010 | C133: Bike | D133: 2.48 | E133: 14.89 | F133: 3782 | G133: 21.25 | H133: 1.02
A134: Nevada | B134: 2010 | C134: Bike | D134: 1.32 | E134: 16.25 | F134: 7344 | G134: 14.24 | H134: 1.02
A135: New Hampshire | B135: 2010 | C135: Bike | D135: 7.65 | E135: 48.49 | F135: 1048 | G135: 12.61 | H135: 0.99
A136: New Jersey | B136: 2010 | C136: Bike | D136: 3.42 | E136: 26.59 | F136: 15766 | G136: 12 | H136: 1.01
A137: New Mexico | B137: 2010 | C137: Bike | D137: 0.99 | E137: 13.05 | F137: 5515 | G137: 3.27 | H137: 1.03
A138: New York | B138: 2010 | C138: Bike | D138: 1.93 | E138: 20.81 | F138: 41232 | G138: 11.54 | H138: 0.99
A139: North Carolina | B139: 2010 | C139: Bike | D139: 2.28 | E139: 16.54 | F139: 9961 | G139: 25.19 | H139: 1.02
A140: North Dakota | B140: 2010 | C140: Bike | D140: 1.19 | E140: 12.77 | F140: 2123 | G140: 8.1 | H140: 1.04
A141: Ohio | B141: 2010 | C141: Bike | D141: 1.77 | E141: 17.87 | F141: 15065 | G141: 24.45 | H141: 1
A142: Oklahoma | B142: 2010 | C142: Bike | D142: 1.76 | E142: 14.26 | F142: 4046 | G142: 51.15 | H142: 1.02
A143: Oregon | B143: 2010 | C143: Bike | D143: 2.98 | E143: 20.88 | F143: 37424 | G143: 8.92 | H143: 1
A144: Pennsylvania | B144: 2010 | C144: Bike | D144: 2.62 | E144: 16.57 | F144: 22559 | G144: 8.6 | H144: 1.01
A145: Rhode Island | B145: 2010 | C145: Bike | D145: 1.12 | E145: 18.16 | F145: 3370 | G145: 13.85 | H145: 1
A146: South Carolina | B146: 2010 | C146: Bike | D146: 1.34 | E146: 19.98 | F146: 7105 | G146: 24.01 | H146: 1.02
A147: South Dakota | B147: 2010 | C147: Bike | D147: 1.04 | E147: 11.3 | F147: 1852 | G147: 30.27 | H147: 1.01
A148: Tennessee | B148: 2010 | C148: Bike | D148: 1.26 | E148: 15.75 | F148: 3421 | G148: 28.27 | H148: 1.01
A149: Texas | B149: 2010 | C149: Bike | D149: 1.76 | E149: 20 | F149: 26379 | G149: 26.13 | H149: 1.02
A150: Utah | B150: 2010 | C150: Bike | D150: 1.46 | E150: 13.85 | F150: 8646 | G150: 14.75 | H150: 1
A151: Vermont | B151: 2010 | C151: Bike | D151: 3.4 | E151: 21.62 | F151: 1867 | G151: 10.74 | H151: 1.01
A152: Virginia | B152: 2010 | C152: Bike | D152: 3.2 | E152: 22.95 | F152: 12891 | G152: 15.47 | H152: 1.02
A153: Washington | B153: 2010 | C153: Bike | D153: 2.4 | E153: 21.42 | F153: 27880 | G153: 6.85 | H153: 1.01
A154: West Virginia | B154: 2010 | C154: Bike | D154: 1.03 | E154: 20.77 | F154: 931 | G154: 38.56 | H154: 1.02
A155: Wisconsin | B155: 2010 | C155: Bike | D155: 2.21 | E155: 17.3 | F155: 20748 | G155: 10.13 | H155: 1.01
A156: Wyoming | B156: 2010 | C156: Bike | D156: 1.29 | E156: 7.1 | F156: 2392 | G156: 3.56 | H156: 1.04
A157: Puerto Rico | B157: 2010 | C157: Bike | D157: 0 | E157: 0 | F157: 2384 | G157: 0 | H157: 0.94
A158: Alabama | B158: 2010 | C158: Walk | D158: 0.92 | E158: 12.67 | F158: 25853 | G158: 24.84 | H158: 1.02
A159: Alaska | B159: 2010 | C159: Walk | D159: 0.72 | E159: 14.19 | F159: 27069 | G159: 10.24 | H159: 1.02
A160: Arizona | B160: 2010 | C160: Walk | D160: 0.72 | E160: 17.92 | F160: 52391 | G160: 31.1 | H160: 0.97
A161: Arkansas | B161: 2010 | C161: Walk | D161: 0.55 | E161: 14.78 | F161: 22201 | G161: 24.32 | H161: 1.01
A162: California | B162: 2010 | C162: Walk | D162: 0.72 | E162: 16.11 | F162: 429786 | G162: 38.41 | H162: 1.01
A163: Colorado | B163: 2010 | C163: Walk | D163: 0.75 | E163: 13.23 | F163: 72320 | G163: 25.03 | H163: 1
A164: Connecticut | B164: 2010 | C164: Walk | D164: 0.76 | E164: 25.81 | F164: 48348 | G164: 30.91 | H164: 1.02
A165: Delaware | B165: 2010 | C165: Walk | D165: 0.6 | E165: 13.08 | F165: 9044 | G165: 26.23 | H165: 1.02
A166: District of Columbia | B166: 2010 | C166: Walk | D166: 0.57 | E166: 13.36 | F166: 34895 | G166: 16.61 | H166: 1.01
A167: Florida | B167: 2010 | C167: Walk | D167: 0.66 | E167: 14.28 | F167: 130004 | G167: 48.7 | H167: 1.02
A168: Georgia | B168: 2010 | C168: Walk | D168: 0.71 | E168: 15.19 | F168: 60545 | G168: 34.19 | H168: 0.99
A169: Hawaii | B169: 2010 | C169: Walk | D169: 0.92 | E169: 17.04 | F169: 29641 | G169: 19.83 | H169: 1.05
A170: Idaho | B170: 2010 | C170: Walk | D170: 0.62 | E170: 14.17 | F170: 21488 | G170: 35.71 | H170: 1.02
A171: Illinois | B171: 2010 | C171: Walk | D171: 0.57 | E171: 12.49 | F171: 178901 | G171: 32.99 | H171: 0.99
A172: Indiana | B172: 2010 | C172: Walk | D172: 0.59 | E172: 12.91 | F172: 62196 | G172: 24.46 | H172: 1.01
A173: Iowa | B173: 2010 | C173: Walk | D173: 0.67 | E173: 13.79 | F173: 54328 | G173: 12.09 | H173: 1.01
A174: Kansas | B174: 2010 | C174: Walk | D174: 0.8 | E174: 15.25 | F174: 35048 | G174: 17.25 | H174: 1.01
A175: Kentucky | B175: 2010 | C175: Walk | D175: 0.68 | E175: 12.72 | F175: 31407 | G175: 23.89 | H175: 1.01
A176: Louisiana | B176: 2010 | C176: Walk | D176: 0.89 | E176: 13.84 | F176: 38366 | G176: 27.83 | H176: 1.01
A177: Maine | B177: 2010 | C177: Walk | D177: 0.61 | E177: 14.32 | F177: 21874 | G177: 14.83 | H177: 1.01
A178: Maryland | B178: 2010 | C178: Walk | D178: 0.54 | E178: 11.77 | F178: 64917 | G178: 31.76 | H178: 1.02
A179: Massachusetts | B179: 2010 | C179: Walk | D179: 0.97 | E179: 16.54 | F179: 147318 | G179: 22.25 | H179: 0.99
A180: Michigan | B180: 2010 | C180: Walk | D180: 0.79 | E180: 15.91 | F180: 88131 | G180: 32.41 | H180: 0.99
A181: Minnesota | B181: 2010 | C181: Walk | D181: 0.69 | E181: 17.65 | F181: 74469 | G181: 31.75 | H181: 1.01
A182: Mississippi | B182: 2010 | C182: Walk | D182: 0.7 | E182: 11.91 | F182: 20115 | G182: 40.92 | H182: 1.01
A183: Missouri | B183: 2010 | C183: Walk | D183: 0.83 | E183: 15.67 | F183: 55578 | G183: 21.16 | H183: 1
A184: Montana | B184: 2010 | C184: Walk | D184: 0.54 | E184: 10.58 | F184: 23813 | G184: 12.52 | H184: 1.02
A185: Nebraska | B185: 2010 | C185: Walk | D185: 0.78 | E185: 14.51 | F185: 25432 | G185: 13.23 | H185: 1.02
A186: Nevada | B186: 2010 | C186: Walk | D186: 0.92 | E186: 18.59 | F186: 21115 | G186: 21.1 | H186: 1.02
A187: New Hampshire | B187: 2010 | C187: Walk | D187: 0.73 | E187: 15.62 | F187: 18809 | G187: 25.17 | H187: 0.99
A188: New Jersey | B188: 2010 | C188: Walk | D188: 0.55 | E188: 11.36 | F188: 118235 | G188: 25.74 | H188: 1.01
A189: New Mexico | B189: 2010 | C189: Walk | D189: 0.8 | E189: 14.89 | F189: 18920 | G189: 23.89 | H189: 1.03
A190: New York | B190: 2010 | C190: Walk | D190: 0.76 | E190: 14.82 | F190: 542579 | G190: 25.49 | H190: 0.99
A191: North Carolina | B191: 2010 | C191: Walk | D191: 0.67 | E191: 13.74 | F191: 74542 | G191: 25.02 | H191: 1.02
A192: North Dakota | B192: 2010 | C192: Walk | D192: 0.35 | E192: 6.93 | F192: 13789 | G192: 17.87 | H192: 1.04
A193: Ohio | B193: 2010 | C193: Walk | D193: 0.73 | E193: 19.08 | F193: 114502 | G193: 30.65 | H193: 1
A194: Oklahoma | B194: 2010 | C194: Walk | D194: 0.59 | E194: 12.73 | F194: 28961 | G194: 30.33 | H194: 1.02
A195: Oregon | B195: 2010 | C195: Walk | D195: 0.78 | E195: 15.45 | F195: 65195 | G195: 33.44 | H195: 1
A196: Pennsylvania | B196: 2010 | C196: Walk | D196: 0.56 | E196: 12.95 | F196: 218870 | G196: 21.89 | H196: 1.01
A197: Rhode Island | B197: 2010 | C197: Walk | D197: 0.41 | E197: 9.27 | F197: 18402 | G197: 24.8 | H197: 1
A198: South Carolina | B198: 2010 | C198: Walk | D198: 0.68 | E198: 13.78 | F198: 36916 | G198: 28.69 | H198: 1.02
A199: South Dakota | B199: 2010 | C199: Walk | D199: 0.62 | E199: 9.95 | F199: 17697 | G199: 15.6 | H199: 1.01
A200: Tennessee | B200: 2010 | C200: Walk | D200: 0.62 | E200: 13.09 | F200: 33441 | G200: 27.73 | H200: 1.01
... 633 more rows

Sheet FARS State Summary (hidden)
A1: State | B1: Year | C1: 5 = Pedestrian | D1: 6 = Bicyclist
A2: Alabama | B2: 2009 | C2: 64 | D2: 6
A3: Alabama | B3: 2010 | C3: 61 | D3: 6
A4: Alabama | B4: 2011 | C4: 79 | D4: 5
A5: Alabama | B5: 2012 | C5: 77 | D5: 9
A6: Alabama | B6: 2013 | C6: 59 | D6: 6
A7: Alabama | B7: 2014 | C7: 96 | D7: 9
A8: Alabama | B8: 2015 | C8: 98 | D8: 9
A9: Alabama | B9: 2016 | C9: 111 | D9: 2
A10: Alaska | B10: 2009 | C10: 9 | D10: 2
A11: Alaska | B11: 2010 | C11: 6
A12: Alaska | B12: 2011 | C12: 9 | D12: 2
A13: Alaska | B13: 2012 | C13: 8 | D13: 1
A14: Alaska | B14: 2013 | C14: 6 | D14: 1
A15: Alaska | B15: 2014 | C15: 14 | D15: 3
A16: Alaska | B16: 2015 | C16: 12
A17: Alaska | B17: 2016 | C17: 12 | D17: 1
A18: Arizona | B18: 2009 | C18: 111 | D18: 24
A19: Arizona | B19: 2010 | C19: 134 | D19: 19
A20: Arizona | B20: 2011 | C20: 137 | D20: 21
A21: Arizona | B21: 2012 | C21: 114 | D21: 18
A22: Arizona | B22: 2013 | C22: 137 | D22: 29
A23: Arizona | B23: 2014 | C23: 131 | D23: 24
A24: Arizona | B24: 2015 | C24: 141 | D24: 26
A25: Arizona | B25: 2016 | C25: 154 | D25: 25
A26: Arkansas | B26: 2009 | C26: 37 | D26: 5
A27: Arkansas | B27: 2010 | C27: 38 | D27: 2
A28: Arkansas | B28: 2011 | C28: 42 | D28: 6
A29: Arkansas | B29: 2012 | C29: 47 | D29: 6
A30: Arkansas | B30: 2013 | C30: 46 | D30: 4
A31: Arkansas | B31: 2014 | C31: 37 | D31: 7
A32: Arkansas | B32: 2015 | C32: 44 | D32: 3
A33: Arkansas | B33: 2016 | C33: 44 | D33: 3
A34: California | B34: 2009 | C34: 567 | D34: 99
A35: California | B35: 2010 | C35: 601 | D35: 100
A36: California | B36: 2011 | C36: 633 | D36: 115
A37: California | B37: 2012 | C37: 653 | D37: 128
A38: California | B38: 2013 | C38: 734 | D38: 147
A39: California | B39: 2014 | C39: 709 | D39: 129
A40: California | B40: 2015 | C40: 819 | D40: 136
A41: California | B41: 2016 | C41: 853 | D41: 146
A42: Colorado | B42: 2009 | C42: 47 | D42: 10
A43: Colorado | B43: 2010 | C43: 36 | D43: 8
A44: Colorado | B44: 2011 | C44: 45 | D44: 8
A45: Colorado | B45: 2012 | C45: 76 | D45: 13
A46: Colorado | B46: 2013 | C46: 50 | D46: 12
A47: Colorado | B47: 2014 | C47: 63 | D47: 10
A48: Colorado | B48: 2015 | C48: 59 | D48: 13
A49: Colorado | B49: 2016 | C49: 79 | D49: 16
A50: Connecticut | B50: 2009 | C50: 26 | D50: 1
A51: Connecticut | B51: 2010 | C51: 46 | D51: 7
A52: Connecticut | B52: 2011 | C52: 26 | D52: 8
A53: Connecticut | B53: 2012 | C53: 43 | D53: 4
A54: Connecticut | B54: 2013 | C54: 37 | D54: 3
A55: Connecticut | B55: 2014 | C55: 47 | D55: 4
A56: Connecticut | B56: 2015 | C56: 46 | D56: 3
A57: Connecticut | B57: 2016 | C57: 54 | D57: 5
A58: Delaware | B58: 2009 | C58: 15 | D58: 6
A59: Delaware | B59: 2010 | C59: 22 | D59: 2
A60: Delaware | B60: 2011 | C60: 18
A61: Delaware | B61: 2012 | C61: 26 | D61: 4
A62: Delaware | B62: 2013 | C62: 24 | D62: 1
A63: Delaware | B63: 2014 | C63: 26 | D63: 3
A64: Delaware | B64: 2015 | C64: 36 | D64: 3
A65: Delaware | B65: 2016 | C65: 27 | D65: 2
A66: District of Columbia | B66: 2009 | C66: 14
A67: District of Columbia | B67: 2010 | C67: 13 | D67: 2
A68: District of Columbia | B68: 2011 | C68: 8 | D68: 1
A69: District of Columbia | B69: 2012 | C69: 7
A70: District of Columbia | B70: 2013 | C70: 9 | D70: 1
A71: District of Columbia | B71: 2014 | C71: 9 | D71: 1
A72: District of Columbia | B72: 2015 | C72: 12 | D72: 1
A73: District of Columbia | B73: 2016 | C73: 8
A74: Florida | B74: 2009 | C74: 464 | D74: 107
A75: Florida | B75: 2010 | C75: 486 | D75: 83
A76: Florida | B76: 2011 | C76: 490 | D76: 126
A77: Florida | B77: 2012 | C77: 477 | D77: 122
A78: Florida | B78: 2013 | C78: 499 | D78: 133
A79: Florida | B79: 2014 | C79: 588 | D79: 138
A80: Florida | B80: 2015 | C80: 629 | D80: 150
A81: Florida | B81: 2016 | C81: 652 | D81: 138
A82: Georgia | B82: 2009 | C82: 141 | D82: 16
A83: Georgia | B83: 2010 | C83: 152 | D83: 18
A84: Georgia | B84: 2011 | C84: 130 | D84: 13
A85: Georgia | B85: 2012 | C85: 163 | D85: 17
A86: Georgia | B86: 2013 | C86: 175 | D86: 27
A87: Georgia | B87: 2014 | C87: 161 | D87: 19
A88: Georgia | B88: 2015 | C88: 194 | D88: 23
A89: Georgia | B89: 2016 | C89: 232 | D89: 29
A90: Hawaii | B90: 2009 | C90: 16 | D90: 3
A91: Hawaii | B91: 2010 | C91: 26 | D91: 3
A92: Hawaii | B92: 2011 | C92: 21 | D92: 2
A93: Hawaii | B93: 2012 | C93: 26 | D93: 2
A94: Hawaii | B94: 2013 | C94: 23 | D94: 1
A95: Hawaii | B95: 2014 | C95: 24 | D95: 4
A96: Hawaii | B96: 2015 | C96: 25 | D96: 2
A97: Hawaii | B97: 2016 | C97: 29
A98: Idaho | B98: 2009 | C98: 10 | D98: 7
A99: Idaho | B99: 2010 | C99: 10 | D99: 4
A100: Idaho | B100: 2011 | C100: 9
A101: Idaho | B101: 2012 | C101: 13 | D101: 2
A102: Idaho | B102: 2013 | C102: 14 | D102: 3
A103: Idaho | B103: 2014 | C103: 13 | D103: 2
A104: Idaho | B104: 2015 | C104: 8
A105: Idaho | B105: 2016 | C105: 17 | D105: 6
A106: Illinois | B106: 2009 | C106: 112 | D106: 19
A107: Illinois | B107: 2010 | C107: 116 | D107: 24
A108: Illinois | B108: 2011 | C108: 134 | D108: 27
A109: Illinois | B109: 2012 | C109: 138 | D109: 29
A110: Illinois | B110: 2013 | C110: 124 | D110: 30
A111: Illinois | B111: 2014 | C111: 123 | D111: 27
A112: Illinois | B112: 2015 | C112: 150 | D112: 26
A113: Illinois | B113: 2016 | C113: 148 | D113: 20
A114: Indiana | B114: 2009 | C114: 49 | D114: 7
A115: Indiana | B115: 2010 | C115: 62 | D115: 12
A116: Indiana | B116: 2011 | C116: 62 | D116: 11
A117: Indiana | B117: 2012 | C117: 59 | D117: 15
A118: Indiana | B118: 2013 | C118: 77 | D118: 14
A119: Indiana | B119: 2014 | C119: 78 | D119: 12
A120: Indiana | B120: 2015 | C120: 96 | D120: 12
A121: Indiana | B121: 2016 | C121: 83 | D121: 19
A122: Iowa | B122: 2009 | C122: 21 | D122: 2
A123: Iowa | B123: 2010 | C123: 18 | D123: 8
A124: Iowa | B124: 2011 | C124: 25 | D124: 5
A125: Iowa | B125: 2012 | C125: 20 | D125: 3
A126: Iowa | B126: 2013 | C126: 20 | D126: 3
A127: Iowa | B127: 2014 | C127: 19 | D127: 4
A128: Iowa | B128: 2015 | C128: 25 | D128: 5
A129: Iowa | B129: 2016 | C129: 22 | D129: 8
A130: Kansas | B130: 2009 | C130: 22 | D130: 5
A131: Kansas | B131: 2010 | C131: 15 | D131: 1
A132: Kansas | B132: 2011 | C132: 14 | D132: 2
A133: Kansas | B133: 2012 | C133: 26 | D133: 7
A134: Kansas | B134: 2013 | C134: 25 | D134: 6
A135: Kansas | B135: 2014 | C135: 23 | D135: 7
A136: Kansas | B136: 2015 | C136: 24 | D136: 3
A137: Kansas | B137: 2016 | C137: 41 | D137: 5
A138: Kentucky | B138: 2009 | C138: 41 | D138: 5
A139: Kentucky | B139: 2010 | C139: 61 | D139: 7
A140: Kentucky | B140: 2011 | C140: 50 | D140: 2
A141: Kentucky | B141: 2012 | C141: 49 | D141: 6
A142: Kentucky | B142: 2013 | C142: 55 | D142: 3
A143: Kentucky | B143: 2014 | C143: 57 | D143: 4
A144: Kentucky | B144: 2015 | C144: 67 | D144: 7
A145: Kentucky | B145: 2016 | C145: 81 | D145: 9
A146: Louisiana | B146: 2009 | C146: 108 | D146: 13
A147: Louisiana | B147: 2010 | C147: 77 | D147: 11
A148: Louisiana | B148: 2011 | C148: 90 | D148: 18
A149: Louisiana | B149: 2012 | C149: 120 | D149: 23
A150: Louisiana | B150: 2013 | C150: 97 | D150: 14
A151: Louisiana | B151: 2014 | C151: 105 | D151: 13
A152: Louisiana | B152: 2015 | C152: 106 | D152: 34
A153: Louisiana | B153: 2016 | C153: 126 | D153: 22
A154: Maine | B154: 2009 | C154: 11
A155: Maine | B155: 2010 | C155: 12 | D155: 1
A156: Maine | B156: 2011 | C156: 10
A157: Maine | B157: 2012 | C157: 9 | D157: 1
A158: Maine | B158: 2013 | C158: 11 | D158: 4
A159: Maine | B159: 2014 | C159: 9 | D159: 2
A160: Maine | B160: 2015 | C160: 19
A161: Maine | B161: 2016 | C161: 16 | D161: 4
A162: Maryland | B162: 2009 | C162: 114 | D162: 10
A163: Maryland | B163: 2010 | C163: 102 | D163: 8
A164: Maryland | B164: 2011 | C164: 102 | D164: 5
A165: Maryland | B165: 2012 | C165: 98 | D165: 5
A166: Maryland | B166: 2013 | C166: 109 | D166: 6
A167: Maryland | B167: 2014 | C167: 100 | D167: 5
A168: Maryland | B168: 2015 | C168: 98 | D168: 10
A169: Maryland | B169: 2016 | C169: 104 | D169: 17
A170: Massachusetts | B170: 2009 | C170: 46 | D170: 6
A171: Massachusetts | B171: 2010 | C171: 67 | D171: 7
A172: Massachusetts | B172: 2011 | C172: 67 | D172: 5
A173: Massachusetts | B173: 2012 | C173: 81 | D173: 15
A174: Massachusetts | B174: 2013 | C174: 77 | D174: 6
A175: Massachusetts | B175: 2014 | C175: 73 | D175: 8
A176: Massachusetts | B176: 2015 | C176: 78 | D176: 11
A177: Massachusetts | B177: 2016 | C177: 77 | D177: 8
A178: Michigan | B178: 2009 | C178: 118 | D178: 19
A179: Michigan | B179: 2010 | C179: 127 | D179: 29
A180: Michigan | B180: 2011 | C180: 137 | D180: 24
A181: Michigan | B181: 2012 | C181: 129 | D181: 19
A182: Michigan | B182: 2013 | C182: 148 | D182: 27
A183: Michigan | B183: 2014 | C183: 148 | D183: 22
A184: Michigan | B184: 2015 | C184: 166 | D184: 33
A185: Michigan | B185: 2016 | C185: 162 | D185: 38
A186: Minnesota | B186: 2009 | C186: 42 | D186: 10
A187: Minnesota | B187: 2010 | C187: 35 | D187: 9
A188: Minnesota | B188: 2011 | C188: 39 | D188: 5
A189: Minnesota | B189: 2012 | C189: 37 | D189: 7
A190: Minnesota | B190: 2013 | C190: 32 | D190: 6
A191: Minnesota | B191: 2014 | C191: 15 | D191: 5
A192: Minnesota | B192: 2015 | C192: 39 | D192: 10
A193: Minnesota | B193: 2016 | C193: 58 | D193: 7
A194: Mississippi | B194: 2009 | C194: 58 | D194: 10
A195: Mississippi | B195: 2010 | C195: 50 | D195: 4
A196: Mississippi | B196: 2011 | C196: 47 | D196: 7
A197: Mississippi | B197: 2012 | C197: 47 | D197: 4
A198: Mississippi | B198: 2013 | C198: 53 | D198: 6
A199: Mississippi | B199: 2014 | C199: 53 | D199: 6
A200: Mississippi | B200: 2015 | C200: 63 | D200: 5
... 209 more rows

Sheet States MPOs (hidden)
A1: Alabama | B1: Alaska | C1: Arizona | D1: Arkansas | E1: California | F1: Colorado | G1: Connecticut | H1: Delaware | I1: District of Columbia | J1: Florida | K1: Georgia | L1: Hawaii | M1: Idaho | N1: Illinois | O1: Indiana | P1: Iowa | Q1: Kansas | R1: Kentucky | S1: Louisiana | T1: Maine | U1: Maryland | V1: Massachusetts | W1: Michigan | X1: Minnesota | Y1: Mississippi | Z1: Missouri | AA1: Montana | AB1: Nebraska | AC1: Nevada | AD1: New Hampshire | AE1: New Jersey | AF1: New Mexico | AG1: New York | AH1: North Carolina | AI1: North Dakota | AJ1: Ohio | AK1: Oklahoma | AL1: Oregon | AM1: Pennsylvania | AN1: Rhode Island | AO1: South Carolina | AP1: South Dakota | AQ1: Tennessee | AR1: Texas | AS1: Utah | AT1: Vermont | AU1: Virginia | AV1: Washington | AW1: West Virginia | AX1: Wisconsin | AY1: Wyoming | AZ1: Puerto Rico | BA1: State | BB1: List
A2: Auburn - Opelika MPO | B2: Anchorage Metropolitan Area Transportation Solutions | C2: Central Yavapai MPO | D2: Frontier MPO | E2: Association of Monterey Bay Area Governments | F2: Denver Regional COG | G2: Capital Region COG | H2: Dover / Kent County MPO | I2: National Capital Region Transportation Planning Board | J2: Bay County Transportation Planning Organization | K2: Atlanta Regional Commission | L2: Maui MPO | M2: Bannock Transportation Planning Organization | N2: Champaign County Regional Planning Commission | O2: Area Plan Commission of Tippecanoe County | P2: Ames Area MPO | Q2: Flint Hills Metropolitan Planning Organization | R2: Bowling Green-Warren County MPO | S2: Alexandria-Pineville MPO | T2: Androscoggin Transportation Resource Center | U2: Baltimore Regional Transportation Board | V2: Berkshire MPO | W2: Battle Creek Area Transportation Study | X2: Duluth-Superior Metropolitan Interstate Council | Y2: Central Mississippi Planning & Development District | Z2: Capital Area MPO (MO) | AA2: Great Falls Planning and Community Development Department | AB2: Grand Island Area Metropolitan Planning Organization | AC2: Carson Area Metropolitan Planning Organization | AD2: Nashua Regional Planning Commission | AE2: North Jersey Transportation Planning Authority | AF2: Farmington MPO | AG2: Adirondack/Glens Falls Transportation Council | AH2: Burlington-Graham MPO | AI2: Bismarck-Mandan MPO | AJ2: Akron Metropolitan Area Transportation Study | AK2: Association of Central Oklahoma Governments | AL2: Albany Area Metropolitan Planning Organization | AM2: Adams County Transportation Planning Organization | AN2: State Planning Council | AO2: Anderson Area Transportation Study | AP2: Rapid City Area MPO | AQ2: Bristol MPO | AR2: Abilene MPO | AS2: Cache MPO | AT2: Chittenden County RPC | AU2: Blacksburg-Christiansburg-Montgomery Area MPO | AV2: Longview-Kelso-Rainier MPO | AW2: Belmont-Ohio-Marshall Transportation Study | AX2: Appleton/Fox Cities MPO | AY2: Casper Area MPO | AZ2: Puerto Rico Metropolitan Planning Organization | BA2: Alabama | BB2: AL
A3: Birmingham MPO | B3: Fairbanks Metropolitan Area Transportation System | C3: Flagstaff MPO | D3: Jonesboro MPO | E3: Butte County Association of Governments | F3: Grand Valley Metropolitan Planning Organization | G3: Greater Bridgeport / Valley MPO | H3: Salisbury-Wicomico MPO | J3: Broward MPO | K3: Augusta Regional Transportation Study | L3: Oahu MPO | M3: Bonneville MPO | N3: Danville Area Transportation Study | O3: Bloomington/Monroe County Metropolitan Planning Organization | P3: Bi-State Regional Commission | Q3: Lawrence-Douglas County Metropolitan Planning Office | R3: Lexington Area MPO | S3: Capital Regional Planning Commission | T3: Bangor Area Comprehensive Transportation System | U3: Cumberland Area MPO | V3: Boston Region MPO | W3: Bay City Area Transportation Study | X3: Mankato / North Mankato Area Planning Organization | Y3: Gulf Regional Planning Commission | Z3: Columbia Area Transportation Study Organization | AA3: Missoula Metropolitan Planning Organization | AB3: Lincoln Area MPO | AC3: Regional Transportation Commission of Southern Nevada | AD3: Rockingham Planning Commission | AE3: South Jersey Transportation Planning Organization | AF3: Mesilla Valley MPO | AG3: Binghamton Metropolitan Transportation Study | AH3: Cabarrus-Rowan MPO | AI3: Fargo-Moorhead Metropolitan COG | AJ3: Brook-Hancock-Jefferson Metropolitan Planning Commission | AK3: Indian Nations COG | AL3: Bend MPO | AM3: Blair County Planning Commission | AO3: Charleston Area Transportation Study | AP3: South Eastern COG | AQ3: Chattanooga-Hamilton County/North Georgia Transportation Planning Orga | AR3: Alamo Area MPO | AS3: Dixie MPO | AU3: Central Virginia MPO | AV3: Puget Sound Regional Council | AW3: Fayette/Raleigh MPO (FRMPO) | AX3: Chippewa-Eau Claire MPO | AY3: Cheyenne MPO | BA3: Alaska | BB3: AK
A4: Calhoun Area Metropolitan Planning Organization | C4: Lake Havasu Metropolitan Planning Organization | D4: Metroplan | E4: Fresno Council of Governments | F4: North Front Range MPO | G4: Housatonic Valley MPO | H4: Wilmington Area Planning Council | J4: Capital Region Transportation Planning Agency | K4: Brunswick Area Transportation Study | M4: Community Planning Association of Southwest Idaho | N4: Decatur Urbanized Area Transportation Study | O4: Columbus Area MPO | P4: Black Hawk Metropolitan Area Transportation Policy Board | Q4: Metropolitan Topeka Planning Organization | R4: Louisville Area MPO | S4: Houma-Thibodaux MPO | T4: Kittery Area Comprehensive Transportation System | U4: Hagerstown-Eastern Panhandle MPO | V4: Cape Cod MPO | W4: Genesee County Metropolitan Planning Commission | X4: Metropolitan Council | Y4: Hattiesburg-Petal-Forrest-Lamar MPO | Z4: East-West Gateway Council of Government | AA4: Yellowstone County Planning Board | AB4: Metropolitan Area Planning Agency | AC4: Regional Transportation Commission of Washoe County | AD4: Southern New Hampshire Planning Commission | AF4: Mid-Region COG | AG4: Capital District Transportation Committee | AH4: Capital Area MPO (NC) | AI4: Grand Forks-East Grand Forks MPO | AJ4: Clark County-Springfield Transportation Study | AK4: Lawton MPO | AL4: Central Lane MPO | AM4: Cambria County MPO | AO4: Columbia Area Transportation Study | AQ4: Clarksville Urbanized Area MPO | AR4: Amarillo MPO | AS4: Mountainland Association of Governments | AU4: Charlottesville-Albemarle MPO | AV4: Skagit MPO | AW4: KYOVA Interstate Planning Commission | AX4: Fond du Lac Area MPO | BA4: Arizona | BB4: AZ
A5: Decatur Area MPO | C5: Maricopa Association of Governments | D5: Northwest Arkansas Regional Planning Commission | E5: Kern COG | F5: Pikes Peak Area COG | G5: Lower Connecticut River Valley MPO | J5: Charlotte-Punta Gorda MPO | K5: Cartersville-Bartow Metropolitan Planning Organization | M5: Kootenai MPO | N5: DeKalb Sycamore Area Transportation Study | O5: Delaware-Muncie Metropolitan Plan Commission | P5: Corridor Metropolitan Planning Organization | Q5: Wichita Area MPO | R5: Owensboro-Daviess County MPO | S5: Imperial Calcasieu Regional Planning & Development Commission | T5: Portland Area Comprehensive Transportation System (ME) | V5: Central Massachusetts MPO | W5: Grand Valley Metropolitan Council | X5: Rochester-Olmsted COG | Z5: Joplin Area Transportation Study Organization | AC5: Tahoe MPO | AD5: Strafford Regional Planning Commission | AF5: Santa Fe MPO | AG5: Elmira-Chemung Transportation Council | AH5: Charlotte Regional Transportation Planning Organization | AJ5: Eastgate Regional COG | AL5: Corvallis Area MPO | AM5: Centre County MPO | AO5: Florence Area Transportation Study | AQ5: Cleveland Area MPO | AR5: Brownsville MPO | AS5: Wasatch Front Regional Council | AU5: Danville MPO | AV5: Southwest Washington Regional Transportation Council | AW5: Morgantown Monongalia MPO | AX5: Green Bay MPO | BA5: Arkansas | BB5: AR
A6: Eastern Shore MPO | C6: Pima Association of Governments | D6: Southeast Arkansas Regional Planning Commission | E6: Kings County Association of Governments | F6: Pueblo Area COG MPO and TPR | G6: Naugatuck Valley Council of Governments | J6: Collier MPO | K6: Coastal Region MPO | M6: Lewis-Clark Valley MPO | N6: Kankakee County Regional Planning Commission | O6: Evansville MPO | P6: Des Moines Area MPO | R6: Radcliff-Elizabethtown MPO | S6: Lafayette Area MPO | V6: Merrimack Valley MPO | W6: Kalamazoo Area Transportation Study | X6: St. Cloud Area Planning Organization | Z6: Mid-America Regional Council | AG6: Genesee Transportation Council | AH6: Durham-Chapel Hill-Carrboro MPO | AJ6: Licking County Area Transportation Study | AL6: Middle Rogue MPO | AM6: Delaware Valley Regional Planning Commission | AO6: Grand-Strand Area Transportation Study | AQ6: Jackson Urban Area MPO | AR6: Bryan-College Station MPO | AU6: Fredericksburg Area MPO | AV6: Spokane Regional Transportation Council | AW6: Regional Intergovernmental Council | AX6: Janesville Area MPO | BA6: California | BB6: CA
A7: Gadsden-Etowah MPO | C7: Sierra Vista Metropolitan Planning Organization | D7: Tri-Lakes MPO | E7: Madera County Transportation Commission | G7: South Central Regional COG | J7: Florida-Alabama Transportation Planning Organization | K7: Columbus-Phenix City Metropolitan Planning Organization | N7: McLean County Regional Planning Commission | O7: Indianapolis MPO | P7: East Central Intergovernmental Association | S7: Northwest Louisiana COG | V7: Montachusett MPO | W7: Macatawa Area Coordinating Council | Z7: Ozarks Transportation Organization | AG7: Greater Buffalo-Niagara Regional Transportation Council | AH7: Fayetteville Area MPO | AJ7: Lima-Allen County Regional Planning Commission | AL7: Portland Area Comprehensive Transportation System (OR) | AM7: Erie MPO | AO7: Greenville-Pickens Area Transportation Study | AQ7: Johnson City Metropolitan Transportation Planning Organization | AR7: Capital Area MPO (TX) | AU7: Hampton Roads Transportation Planning Organization | AV7: Thurston Regional Planning Council | AW7: Wood-Washington-Wirt Interstate Planning Commission | AX7: La Crosse Area Planning Committee | BA7: Colorado | BB7: CO
A8: Huntsville MPO | C8: Sun Corridor Metropolitan Planning Organization | D8: West Memphis Area Transportation Study | E8: Merced County Association of Governments | G8: South Western MPO | J8: Gainesville MTPO | K8: Dougherty Area Regional Transportation Study | N8: Rockford Metropolitan Agency for Planning | O8: Kokomo & Howard County Governmental Coordinating Council | P8: Johnson County COG | S8: Ouachata Council of Governments | V8: Northern Middlesex MPO | W8: Midland Area Transportation Study | Z8: Southeast Metropolitan Planning Organization (SEMPO) | AG8: Herkimer-Oneida Counties Transportation Study | AH8: French Broad River MPO | AJ8: Miami Valley Regional Planning Commission | AL8: Rogue Valley MPO | AM8: Franklin County MPO | AO8: Lowcountry Area Transportation Study | AQ8: Kingsport MTPO | AR8: Corpus Christi MPO | AU8: Harrisonburg-Rockingham MPO | AV8: Tri-Cities Metropolitan Area Transportation Study | AX8: Madison Area Transportation Planning Board | BA8: Connecticut | BB8: CT
A9: Mobile Area Transportation Study | C9: Yuma MPO | E9: Metropolitan Transportation Commission | G9: Southeastern Connecticut COG | J9: Heartland Regional TPO | K9: Floyd-Rome Urban Transportation Study | N9: Southern Illinois Metropolitan Planning Organization | O9: Madison County COG | P9: Sioux City MPO | S9: Regional Planning Commission | V9: Old Colony MPO | W9: Region 2 Planning Commission | Z9: St. Joseph Area Transportation Study Organization | AG9: Ithaca-Tompkins County Transportation Council | AH9: Gaston Cleveland Lincoln MPO | AJ9: Mid-Ohio Regional Planning Commission | AL9: Salem-Keizer Area Transportation Study | AM9: Harrisburg Area Transportation Study | AO9: Rock Hill-Fort Mill Area Transportation Study | AQ9: Knoxville Regional Transportation Planning Organization | AR9: El Paso MPO | AU9: Richmond Area MPO | AV9: Walla Walla Valley MPO | AX9: Oshkosh MPO | BA9: Delaware | BB9: DE
A10: Montgomery MPO | E10: Sacramento Area COG | J10: Hernando/Citrus County MPO | K10: Gainesville-Hall MPO | N10: Springfield Area Transportation Study | O10: Michiana Area COG | S10: South Tangipahoa MPO | V10: Pioneer Valley MPO | W10: Saginaw Metropolitan Area Transportation Study | AG10: New York Metropolitan Transportation Council | AH10: Goldsboro Urban Area MPO | AJ10: Northeast Ohio Areawide Coordinating Agency | AM10: Lackawanna-Luzerne Transportation Study | AO10: Spartanburg Area Transportation Study | AQ10: Lakeway MPO | AR10: Harlingen-San Benito MPO | AU10: Roanoke Valley MPO | AV10: Wenatchee Valley Transportation Council | AX10: Sheboygan MPO | BA10: District of Columbia | BB10: DC
A11: Shoals Area MPO | E11: San Diego Association of Governments | J11: Hillsborough MPO | K11: Greater Dalton MPO | N11: The Chicago Metropolitan Agency for Planning | O11: Northeastern Indiana Regional Coordinating Council | V11: Southeastern Massachusetts MPO | W11: Southeast Michigan COG | AG11: Orange County Transportation Council | AH11: Greater Hickory MPO | AJ11: Ohio-Kentucky-Indiana Regional Council of Governments | AM11: Lancaster County Transportation Coordinating Committee | AO11: Sumter Urban Area Transportation Study | AQ11: Memphis Urban Area MPO | AR11: Hidalgo County MPO | AU11: Staunton-Augusta-Waynesboro MPO | AV11: Whatcom COG | AX11: Southeastern Wisconsin Regional Planning Commission | BA11: Florida | BB11: FL
A12: Southeast Wiregrass Area MPO | E12: San Joaquin COG | J12: Indian River County MPO | K12: Hinesville Area MPO | N12: Tri-County Regional Planning Commission (IL) | O12: Northwest Indiana Regional Planning Commission | W12: Southwest Michigan Planning Commission | AG12: Poughkeepsie-Dutchess County Transportation Council | AH12: Greensboro Urban Area MPO | AJ12: Policy Committee of the Erie Regional Planning Commission | AM12: Lebanon County MPO | AQ12: Nashville Area MPO | AR12: Houston-Galveston Area Council | AU12: Tri Cities Area MPO | AV12: Yakima Valley MPO | AX12: State Line Area Transportation Study | BA12: Georgia | BB12: GA
A13: Tuscaloosa Area MPO | E13: San Luis Obispo COG | J13: Lake-Sumter MPO | K13: Macon Area Transportation Study | O13: West Central Indiana Economic Development District, Inc. | W13: Tri-County Regional Planning Commission (MI) | AG13: Syracuse Metropolitan Transportation Council | AH13: Greenville Urban Area MPO | AJ13: Richland County Regional Planning Commission | AM13: Lehigh Valley Transportation Study | AR13: Killeen-Temple Metropolitan Planning Organization | AU13: Winchester-Frederick County MPO | AX13: Wausau Metropolitan Planning Organization | BA13: Hawaii | BB13: HI
E14: Santa Barbara County Association of Governments | J14: Lee County MPO | K14: Madison Athens-Clarke Oconee Regional Transportation Study | W14: West Michigan Shoreline Regional Development Commission | AG14: Ulster County Transportation Council | AH14: High Point Urban Area MPO | AJ14: Stark County Area Transportation Study | AM14: Northeastern Pennsylvania Planning Alliance MPO | AR14: Laredo Urban Transportation Study | BA14: Idaho | BB14: ID
E15: Shasta Regional Transportation Agency | J15: Martin MPO | K15: Valdosta-Lowndes MPO | AG15: Watertown-Jefferson County Transportation Council | AH15: Jacksonville Urban Area MPO | AJ15: Toledo Metropolitan Area COG | AM15: Reading Area Transportation Study | AR15: Longview MPO | BA15: Illinois | BB15: IL
E16: Southern California Association of Governments | J16: METROPLAN Orlando | K16: Warner Robins Area Transportation Study | AH16: New Bern Area MPO | AM16: Shenango Valley Area Transportation Study | AR16: Lubbock MPO | BA16: Indiana | BB16: IN
E17: Stanislaus COG | J17: Miami-Dade MPO | AH17: Rocky Mount Urban Area MPO | AM17: Southwestern Pennsylvania Commission | AR17: North Central Texas COG | BA17: Iowa | BB17: IA
E18: Tulare County Association of Governments | J18: North Florida Transportation Planning Organization | AH18: Wilmington Urban Area MPO | AM18: Susquehanna Economic Development Association Council of Governments | AR18: Permian Basin MPO | BA18: Kansas | BB18: KS
J19: Ocala - Marion County Tranportation Planning Organization | AH19: Winston-Salem Urban Area MPO | AM19: Williamsport Area Transportation Study | AR19: San Angelo MPO | BA19: Kentucky | BB19: KY
J20: Okaloosa-Walton Transportation Planning Organization | AM20: York Area MPO | AR20: Sherman-Denison MPO | BA20: Louisiana | BB20: LA
J21: Palm Beach MPO | AR21: South East Texas Regional Planning Commission | BA21: Maine | BB21: ME
J22: Pasco County MPO | AR22: Texarkana MPO | BA22: Maryland | BB22: MD
J23: Pinellas County MPO | AR23: Tyler Area MPO | BA23: Massachusetts | BB23: MA
J24: Polk County Transportation Planning Organization | AR24: Victoria MPO | BA24: Michigan | BB24: MI
J25: River to Sea Transporation Planning Organization | AR25: Waco MPO | BA25: Minnesota | BB25: MN
J26: Sarasota-Manatee MPO | AR26: Wichita Falls MPO | BA26: Mississippi | BB26: MS
J27: Space Coast Transportation Planning Organization | BA27: Missouri | BB27: MO
J28: St. Lucie Transportation Planning Organization | BA28: Montana | BB28: MT
BA29: Nebraska | BB29: NE
BA30: Nevada | BB30: NV
BA31: New Hampshire | BB31: NH
BA32: New Jersey | BB32: NJ
BA33: New Mexico | BB33: NM
BA34: New York | BB34: NY
BA35: North Carolina | BB35: NC
BA36: North Dakota | BB36: ND
BA37: Ohio | BB37: OH
BA38: Oklahoma | BB38: OK
BA39: Oregon | BB39: OR
BA40: Pennsylvania | BB40: PA
BA41: Rhode Island | BB41: RI
BA42: South Carolina | BB42: SC
BA43: South Dakota | BB43: SD
BA44: Tennessee | BB44: TN
BA45: Texas | BB45: TX
BA46: Utah | BB46: UT
BA47: Vermont | BB47: VT
BA48: Virginia | BB48: VA
BA49: Washington | BB49: WA
BA50: West Virginia | BB50: WV
BA51: Wisconsin | BB51: WI
BA52: Wyoming | BB52: WY
BA53: Puerto Rico | BB53: PR

Sheet Final Table (hidden)
A1: MPO | B1: State | C1: Year | D1: Population | E1: Total Commuters | F1: Bike Commuters | G1: Walk Commuters | H1: Percent Bike Commute | I1: Percent Walk Commute | J1: CBSA Bike Grouping | K1: CBSA Walk Grouping | L1: Bike FARS | M1: Walk FARS
A2: Abilene MPO | B2: TX | C2: 2009 | D2: 122150.3895 | E2: 55442.48424 | F2: 264.8597044 | G2: 1391.519922 | H2: 0.4777197632 | I2: 2.509844104 | J2: 3 | K2: 4 | L2: 0 | M2: 1
A3: Abilene MPO | B3: TX | C3: 2010 | D3: 124073.4213 | E3: 57023.31753 | F3: 283.4768761 | G3: 1464.848256 | H3: 0.4971244893 | I3: 2.568858354 | J3: 3 | K3: 4 | L3: 2 | M3: 1
A4: Abilene MPO | B4: TX | C4: 2011 | D4: 125456.252 | E4: 56546.54809 | F4: 222.5577918 | G4: 1441.997141 | H4: 0.3935833385 | I4: 2.550106398 | J4: 3 | K4: 4 | L4: 0 | M4: 1
A5: Abilene MPO | B5: TX | C5: 2012 | D5: 126649.104 | E5: 56638.36704 | F5: 228.557457 | G5: 1698.159278 | H5: 0.403538218 | I5: 2.998249008 | J5: 3 | K5: 4 | L5: 0 | M5: 1
A6: Abilene MPO | B6: TX | C6: 2013 | D6: 127827.9819 | E6: 56577.35932 | F6: 155.4329335 | G6: 1493.910903 | H6: 0.2747263841 | I6: 2.640474777 | J6: 2 | K6: 4 | L6: 0 | M6: 3
A7: Abilene MPO | B7: TX | C7: 2014 | D7: 128720.7714 | E7: 56486.47543 | F7: 135.2487462 | G7: 1495.907601 | H7: 0.2394356262 | I7: 2.648257994 | J7: 2 | K7: 4 | L7: 2 | M7: 2
A8: Abilene MPO | B8: TX | C8: 2015 | D8: 130087.6466 | E8: 57547.06726 | F8: 134.0814648 | G8: 1362.532216 | H8: 0.232994436 | I8: 2.367683152 | J8: 2 | K8: 4 | L8: 0 | M8: 2
A9: Abilene MPO | B9: TX | C9: 2016 | D9: 130383.7296 | E9: 58222.11708 | F9: 109 | G9: 1342.94888 | H9: 0.1872140786 | I9: 2.306595754 | J9: 1 | K9: 4 | L9: 3 | M9: 2
A10: Adams County Transportation Planning Organization | B10: PA | C10: 2009 | D10: 101080.4499 | E10: 50521.32112 | F10: 149.3220277 | G10: 2054.465005 | H10: 0.2955623971 | I10: 4.066530643 | J10: 2 | K10: 5 | L10: 0 | M10: 3
A11: Adams County Transportation Planning Organization | B11: PA | C11: 2010 | D11: 100908.0546 | E11: 50803.74171 | F11: 151.0709364 | G11: 1973.876649 | H11: 0.2973618307 | I11: 3.885297781 | J11: 2 | K11: 5 | L11: 0 | M11: 0
A12: Adams County Transportation Planning Organization | B12: PA | C12: 2011 | D12: 101200.751 | E12: 50736.347 | F12: 134.4816251 | G12: 2201.564432 | H12: 0.2650597314 | I12: 4.339225352 | J12: 2 | K12: 5 | L12: 0 | M12: 0
A13: Adams County Transportation Planning Organization | B13: PA | C13: 2012 | D13: 101420.3804 | E13: 50396.31196 | F13: 107.4782373 | G13: 2161.744485 | H13: 0.2132660767 | I13: 4.289489451 | J13: 1 | K13: 5 | L13: 0 | M13: 0
A14: Adams County Transportation Planning Organization | B14: PA | C14: 2013 | D14: 101557.8075 | E14: 50202.44712 | F14: 115.4310584 | G14: 2133.028541 | H14: 0.2299311388 | I14: 4.248853718 | J14: 2 | K14: 5 | L14: 1 | M14: 1
A15: Adams County Transportation Planning Organization | B15: PA | C15: 2014 | D15: 101589.7441 | E15: 49599.76359 | F15: 114.7231343 | G15: 1955.095874 | H15: 0.2312977442 | I15: 3.94174434 | J15: 2 | K15: 5 | L15: 0 | M15: 1
A16: Adams County Transportation Planning Organization | B16: PA | C16: 2015 | D16: 101789.0275 | E16: 49542.50032 | F16: 147.6344205 | G16: 1982.509154 | H16: 0.2979954979 | I16: 4.001633226 | J16: 2 | K16: 5 | L16: 1 | M16: 0
A17: Adams County Transportation Planning Organization | B17: PA | C17: 2016 | D17: 101782.3945 | E17: 49609.37791 | F17: 141.1955438 | G17: 1816.615198 | H17: 0.2846146229 | I17: 3.661838294 | J17: 2 | K17: 5 | L17: 1 | M17: 1
A18: Adirondack/Glens Falls Transportation Council | B18: NY | C18: 2009 | D18: 142419.4369 | E18: 65481.87879 | F18: 217.9993566 | G18: 1714.176919 | H18: 0.3329155495 | I18: 2.617788235 | J18: 3 | K18: 4 | L18: 0 | M18: 2
A19: Adirondack/Glens Falls Transportation Council | B19: NY | C19: 2010 | D19: 143396.8591 | E19: 66266.56081 | F19: 212.0012626 | G19: 1843.133394 | H19: 0.3199219336 | I19: 2.781392864 | J19: 3 | K19: 4 | L19: 0 | M19: 3
A20: Adirondack/Glens Falls Transportation Council | B20: NY | C20: 2011 | D20: 143613.8458 | E20: 66668.56993 | F20: 165.9971483 | G20: 1909.101441 | H20: 0.248988614 | I20: 2.86357041 | J20: 2 | K20: 4 | L20: 0 | M20: 2
A21: Adirondack/Glens Falls Transportation Council | B21: NY | C21: 2012 | D21: 143597.8443 | E21: 66472.53753 | F21: 214.9966396 | G21: 1711.105981 | H21: 0.323436787 | I21: 2.574154748 | J21: 3 | K21: 4 | L21: 0 | M21: 1
A22: Adirondack/Glens Falls Transportation Council | B22: NY | C22: 2013 | D22: 143724.8551 | E22: 66449.36279 | F22: 183.9968925 | G22: 1787.078701 | H22: 0.2768979035 | I22: 2.689384256 | J22: 2 | K22: 4 | L22: 0 | M22: 0
A23: Adirondack/Glens Falls Transportation Council | B23: NY | C23: 2014 | D23: 143351.8174 | E23: 66199.49678 | F23: 192.0013185 | G23: 2011.060608 | H23: 0.2900344079 | I23: 3.037878995 | J23: 2 | K23: 4 | L23: 0 | M23: 1
A24: Adirondack/Glens Falls Transportation Council | B24: NY | C24: 2015 | D24: 142942.9207 | E24: 66889.42657 | F24: 173.0026823 | G24: 2049.055304 | H24: 0.2586398048 | I24: 3.063347092 | J24: 2 | K24: 4 | L24: 1 | M24: 1
A25: Adirondack/Glens Falls Transportation Council | B25: NY | C25: 2016 | D25: 142542.109 | E25: 67524.2654 | F25: 294.0020404 | G25: 1990.051928 | H25: 0.4354020568 | I25: 2.94716561 | J25: 3 | K25: 4 | L25: 0 | M25: 0
A26: Akron Metropolitan Area Transportation Study | B26: OH | C26: 2009 | D26: 720042.2539 | E26: 346290.9256 | F26: 530.0624362 | G26: 7709.061223 | H26: 0.153068532 | I26: 2.226180548 | J26: 1 | K26: 3 | L26: 1 | M26: 8
A27: Akron Metropolitan Area Transportation Study | B27: OH | C27: 2010 | D27: 723224.5289 | E27: 344595.9913 | F27: 524.0715987 | G27: 7227.407005 | H27: 0.1520829063 | I27: 2.097356669 | J27: 1 | K27: 3 | L27: 0 | M27: 6
A28: Akron Metropolitan Area Transportation Study | B28: OH | C28: 2011 | D28: 722940.6673 | E28: 341152.2402 | F28: 680.0364155 | G28: 7013.550063 | H28: 0.1993351751 | I28: 2.055841714 | J28: 1 | K28: 3 | L28: 1 | M28: 6
A29: Akron Metropolitan Area Transportation Study | B29: OH | C29: 2012 | D29: 723064.9755 | E29: 338447.7093 | F29: 603.9401579 | G29: 6710.97053 | H29: 0.1784441559 | I29: 1.982867765 | J29: 1 | K29: 3 | L29: 0 | M29: 4
A30: Akron Metropolitan Area Transportation Study | B30: OH | C30: 2013 | D30: 725015.8887 | E30: 337671.5411 | F30: 497.0377946 | G30: 6092.199768 | H30: 0.1471956426 | I30: 1.804179218 | J30: 1 | K30: 3 | L30: 0 | M30: 3
A31: Akron Metropolitan Area Transportation Study | B31: OH | C31: 2014 | D31: 723061.0895 | E31: 338704.8577 | F31: 451.112245 | G31: 5735.470028 | H31: 0.1331874152 | I31: 1.693353342 | J31: 1 | K31: 2 | L31: 1 | M31: 3
A32: Akron Metropolitan Area Transportation Study | B32: OH | C32: 2015 | D32: 723879.5031 | E32: 342093.8796 | F32: 435.0527746 | G32: 5775.938574 | H32: 0.1271735043 | I32: 1.688407457 | J32: 1 | K32: 2 | L32: 1 | M32: 8
A33: Akron Metropolitan Area Transportation Study | B33: OH | C33: 2016 | D33: 723368.4659 | E33: 344117.5461 | F33: 329.9439955 | G33: 6090.817919 | H33: 0.09588118919 | I33: 1.769981795 | J33: 1 | K33: 2 | L33: 2 | M33: 5
A34: Alamo Area MPO | B34: TX | C34: 2009 | D34: 1819360.16 | E34: 811222.4496 | F34: 1206.999651 | G34: 17453.14934 | H34: 0.1487877526 | I34: 2.151462814 | J34: 1 | K34: 3 | L34: 3 | M34: 35
A35: Alamo Area MPO | B35: TX | C35: 2010 | D35: 1894759.915 | E35: 858217.6871 | F35: 1184.991053 | G35: 18022.98223 | H35: 0.1380758135 | I35: 2.100047867 | J35: 1 | K35: 3 | L35: 3 | M35: 33
A36: Alamo Area MPO | B36: TX | C36: 2011 | D36: 1940325.078 | E36: 877498.2142 | F36: 1529.993894 | G36: 17461.86214 | H36: 0.1743586334 | I36: 1.989959849 | J36: 1 | K36: 3 | L36: 2 | M36: 37
A37: Alamo Area MPO | B37: TX | C37: 2012 | D37: 1981433.039 | E37: 898756.2101 | F37: 1420.003155 | G37: 17081.78039 | H37: 0.1579964777 | I37: 1.900602209 | J37: 1 | K37: 3 | L37: 5 | M37: 49
A38: Alamo Area MPO | B38: TX | C38: 2013 | D38: 2022666.457 | E38: 915109.2322 | F38: 1843.036479 | G38: 16825.89383 | H38: 0.2014007087 | I38: 1.838676001 | J38: 1 | K38: 3 | L38: 5 | M38: 52
A39: Alamo Area MPO | B39: TX | C39: 2014 | D39: 2066854.884 | E39: 936100.5707 | F39: 1980.080694 | G39: 16694.80139 | H39: 0.211524355 | I39: 1.783441001 | J39: 1 | K39: 3 | L39: 2 | M39: 66
A40: Alamo Area MPO | B40: TX | C40: 2015 | D40: 2111880.934 | E40: 958806.2343 | F40: 1964.530392 | G40: 16444.66701 | H40: 0.2048933686 | I40: 1.715118908 | J40: 1 | K40: 2 | L40: 5 | M40: 54
A41: Alamo Area MPO | B41: TX | C41: 2016 | D41: 2154371.824 | E41: 985714.7968 | F41: 1690.770177 | G41: 16606.46472 | H41: 0.1715273203 | I41: 1.684712938 | J41: 1 | K41: 2 | L41: 6 | M41: 71
A42: Albany Area Metropolitan Planning Organization | B42: OR | C42: 2009 | D42: 40766.87921 | E42: 18209.29102 | F42: 280.7411944 | G42: 695.5642895 | H42: 1.54174698 | I42: 3.819831803 | J42: 5 | K42: 5 | L42: 0 | M42: 1
A43: Albany Area Metropolitan Planning Organization | B43: OR | C43: 2010 | D43: 41424.44448 | E43: 18087.36577 | F43: 354.4514885 | G43: 744.1142582 | H43: 1.959663408 | I43: 4.114000167 | J43: 5 | K43: 5 | L43: 0 | M43: 1
A44: Albany Area Metropolitan Planning Organization | B44: OR | C44: 2011 | D44: 42256.0527 | E44: 17250.67448 | F44: 321.4802718 | G44: 682.282579 | H44: 1.863580883 | I44: 3.955106681 | J44: 5 | K44: 5 | L44: 0 | M44: 1
A45: Albany Area Metropolitan Planning Organization | B45: OR | C45: 2012 | D45: 42997.62244 | E45: 17577.5487 | F45: 266.5307205 | G45: 785.9338354 | H45: 1.516313366 | I45: 4.471236852 | J45: 5 | K45: 5 | L45: 0 | M45: 1
A46: Albany Area Metropolitan Planning Organization | B46: OR | C46: 2013 | D46: 43388.05622 | E46: 17599.16228 | F46: 296.0083811 | G46: 677.5153302 | H46: 1.681945858 | I46: 3.849702158 | J46: 5 | K46: 5 | L46: 0 | M46: 1
A47: Albany Area Metropolitan Planning Organization | B47: OR | C47: 2014 | D47: 43694.35989 | E47: 17693.52255 | F47: 280.7040967 | G47: 584.8444497 | H47: 1.586479436 | I47: 3.305415573 | J47: 5 | K47: 5 | L47: 0 | M47: 1
A48: Albany Area Metropolitan Planning Organization | B48: OR | C48: 2015 | D48: 43967.35845 | E48: 18367.06033 | F48: 135.740808 | G48: 626.9222812 | H48: 0.7390448206 | I48: 3.413296794 | J48: 4 | K48: 5 | L48: 0 | M48: 1
A49: Albany Area Metropolitan Planning Organization | B49: OR | C49: 2016 | D49: 44173.0465 | E49: 18715.61108 | F49: 145.7071781 | G49: 571.2567536 | H49: 0.778532838 | I49: 3.052300837 | J49: 4 | K49: 4 | L49: 0 | M49: 0
A50: Alexandria-Pineville MPO | B50: LA | C50: 2009 | D50: 132121.849 | E50: 55551.91588 | F50: 73.98421631 | G50: 1316.953822 | H50: 0.1331803146 | I50: 2.370672193 | J50: 1 | K50: 4 | L50: 0 | M50: 3
A51: Alexandria-Pineville MPO | B51: LA | C51: 2010 | D51: 130795.3288 | E51: 53918.43344 | F51: 94.98316333 | G51: 1493.896866 | H51: 0.1761608364 | I51: 2.770660739 | J51: 1 | K51: 4 | L51: 0 | M51: 2
A52: Alexandria-Pineville MPO | B52: LA | C52: 2011 | D52: 131249.0359 | E52: 52771.28102 | F52: 90.99625617 | G52: 945.0199388 | H52: 0.1724351852 | I52: 1.790784534 | J52: 1 | K52: 3 | L52: 0 | M52: 6
A53: Alexandria-Pineville MPO | B53: LA | C53: 2012 | D53: 131649.8113 | E53: 52583.91949 | F53: 145.020814 | G53: 1077.994641 | H53: 0.2757892819 | I53: 2.050046196 | J53: 2 | K53: 3 | L53: 1 | M53: 4
A54: Alexandria-Pineville MPO | B54: LA | C54: 2013 | D54: 132027.71 | E54: 52137.55452 | F54: 134.0032308 | G54: 992.0253289 | H54: 0.2570186347 | I54: 1.902707824 | J54: 2 | K54: 3 | L54: 0 | M54: 3
A55: Alexandria-Pineville MPO | B55: LA | C55: 2014 | D55: 132191.7715 | E55: 51239.74271 | F55: 155.0334459 | G55: 941.0068117 | H55: 0.3025648407 | I55: 1.836478409 | J55: 2 | K55: 3 | L55: 0 | M55: 1
A56: Alexandria-Pineville MPO | B56: LA | C56: 2015 | D56: 132217.322 | E56: 51460.66397 | F56: 165.0168593 | G56: 1025.012228 | H56: 0.3206660127 | I56: 1.991836383 | J56: 3 | K56: 3 | L56: 0 | M56: 4
A57: Alexandria-Pineville MPO | B57: LA | C57: 2016 | D57: 132365.3238 | E57: 52729.43043 | F57: 142.0190965 | G57: 1140.019289 | H57: 0.2693355406 | I57: 2.162017075 | J57: 2 | K57: 3 | L57: 0 | M57: 6
A58: Amarillo MPO | B58: TX | C58: 2009 | D58: 202008.327 | E58: 96627.60448 | F58: 150 | G58: 1206.696451 | H58: 0.155235143 | I58: 1.248811308 | J58: 1 | K58: 1 | L58: 0 | M58: 3
A59: Amarillo MPO | B59: TX | C59: 2010 | D59: 206032.7988 | E59: 98638.91555 | F59: 143 | G59: 1318.469506 | H59: 0.1449732078 | I59: 1.336662613 | J59: 1 | K59: 1 | L59: 1 | M59: 3
A60: Amarillo MPO | B60: TX | C60: 2011 | D60: 208108.4004 | E60: 99032.6799 | F60: 126 | G60: 1394.353479 | H60: 0.1272307284 | I60: 1.407973085 | J60: 1 | K60: 1 | L60: 0 | M60: 5
A61: Amarillo MPO | B61: TX | C61: 2012 | D61: 210882.8773 | E61: 100022.911 | F61: 184 | G61: 1408.783751 | H61: 0.1839578533 | I61: 1.408461058 | J61: 1 | K61: 1 | L61: 2 | M61: 6
A62: Amarillo MPO | B62: TX | C62: 2013 | D62: 212784.8184 | E62: 99259.87847 | F62: 178 | G62: 1345.374402 | H62: 0.1793272395 | I62: 1.355406054 | J62: 1 | K62: 1 | L62: 0 | M62: 4
A63: Amarillo MPO | B63: TX | C63: 2014 | D63: 214910.6732 | E63: 99897.0972 | F63: 280 | G63: 1190.021464 | H63: 0.2802884246 | I63: 1.19124729 | J63: 2 | K63: 1 | L63: 0 | M63: 4
A64: Amarillo MPO | B64: TX | C64: 2015 | D64: 216651.5141 | E64: 100657.999 | F64: 370 | G64: 1163.644499 | H64: 0.3675813186 | I64: 1.156037782 | J64: 3 | K64: 1 | L64: 0 | M64: 0
A65: Amarillo MPO | B65: TX | C65: 2016 | D65: 217737.5394 | E65: 101829.1035 | F65: 235 | G65: 1162.761941 | H65: 0.2307788166 | I65: 1.14187585 | J65: 2 | K65: 1 | L65: 0 | M65: 7
A66: Ames Area MPO | B66: IA | C66: 2009 | D66: 50872.63187 | E66: 28906.81429 | F66: 598.3297538 | G66: 3658.71161 | H66: 2.06985712 | I66: 12.65691741 | J66: 5 | K66: 5 | L66: 0 | M66: 1
A67: Ames Area MPO | B67: IA | C67: 2010 | D67: 52801.33094 | E67: 29594.75883 | F67: 724.9475182 | G67: 3491.697421 | H67: 2.44958076 | I67: 11.79836417 | J67: 5 | K67: 5 | L67: 0 | M67: 1
A68: Ames Area MPO | B68: IA | C68: 2011 | D68: 53638.05539 | E68: 29338.64555 | F68: 794.7540869 | G68: 3340.876527 | H68: 2.708898356 | I68: 11.38728958 | J68: 5 | K68: 5 | L68: 0 | M68: 1
A69: Ames Area MPO | B69: IA | C69: 2012 | D69: 54514.87621 | E69: 29814.99703 | F69: 805.3476289 | G69: 3367.577084 | H69: 2.701149452 | I69: 11.29491001 | J69: 5 | K69: 5 | L69: 0 | M69: 0
A70: Ames Area MPO | B70: IA | C70: 2013 | D70: 55012.88479 | E70: 29414.59857 | F70: 808.3908751 | G70: 3242.360851 | H70: 2.748264177 | I70: 11.02296482 | J70: 5 | K70: 5 | L70: 0 | M70: 1
A71: Ames Area MPO | B71: IA | C71: 2014 | D71: 56370.01751 | E71: 30050.75282 | F71: 851.5313068 | G71: 3003.203023 | H71: 2.833643842 | I71: 9.993769675 | J71: 5 | K71: 5 | L71: 0 | M71: 0
A72: Ames Area MPO | B72: IA | C72: 2015 | D72: 57913.29915 | E72: 30883.14754 | F72: 876.8449816 | G72: 3331.808549 | H72: 2.839234506 | I72: 10.78843581 | J72: 5 | K72: 5 | L72: 0 | M72: 1
A73: Ames Area MPO | B73: IA | C73: 2016 | D73: 59169.7979 | E73: 31522.19327 | F73: 898.50982 | G73: 3447.110224 | H73: 2.85040388 | I73: 10.93550247 | J73: 5 | K73: 5 | L73: 0 | M73: 0
A74: Anchorage Metropolitan Area Transportation Solutions | B74: AK | C74: 2009 | D74: 233265.9562 | E74: 118506.4613 | F74: 1329.215651 | G74: 3508.503733 | H74: 1.121639813 | I74: 2.960601216 | J74: 5 | K74: 4 | L74: 1 | M74: 4
A75: Anchorage Metropolitan Area Transportation Solutions | B75: AK | C75: 2010 | D75: 235131.3858 | E75: 120175.2795 | F75: 1298.060872 | G75: 3337.820211 | H75: 1.080139675 | I75: 2.777459912 | J75: 5 | K75: 4 | L75: 0 | M75: 3
A76: Anchorage Metropolitan Area Transportation Solutions | B76: AK | C76: 2011 | D76: 236795.6856 | E76: 121392.4819 | F76: 1381.393799 | G76: 3338.623059 | H76: 1.137956632 | I76: 2.750271686 | J76: 5 | K76: 4 | L76: 2 | M76: 4
A77: Anchorage Metropolitan Area Transportation Solutions | B77: AK | C77: 2012 | D77: 239524.3713 | E77: 124320.7662 | F77: 1422.778242 | G77: 3449.162507 | H77: 1.14444134 | I77: 2.774405767 | J77: 5 | K77: 4 | L77: 0 | M77: 6
A78: Anchorage Metropolitan Area Transportation Solutions | B78: AK | C78: 2013 | D78: 242021.5065 | E78: 125155.1328 | F78: 1558.571608 | G78: 3535.363077 | H78: 1.245311777 | I78: 2.824784728 | J78: 5 | K78: 4 | L78: 1 | M78: 5
A79: Anchorage Metropolitan Area Transportation Solutions | B79: AK | C79: 2014 | D79: 244099.0785 | E79: 127272.4276 | F79: 1697.082088 | G79: 3621.26255 | H79: 1.33342478 | I79: 2.845284418 | J79: 5 | K79: 4 | L79: 2 | M79: 9
A80: Anchorage Metropolitan Area Transportation Solutions | B80: AK | C80: 2015 | D80: 245340.7327 | E80: 128578.8977 | F80: 1619.549716 | G80: 3819.363501 | H80: 1.259576606 | I80: 2.970443494 | J80: 5 | K80: 4 | L80: 0 | M80: 8
A81: Anchorage Metropolitan Area Transportation Solutions | B81: AK | C81: 2016 | D81: 245828.8586 | E81: 129737.9929 | F81: 1646.239698 | G81: 4134.225602 | H81: 1.268895611 | I81: 3.18659593 | J81: 5 | K81: 5 | L81: 0 | M81: 8
A82: Anderson Area Transportation Study | B82: SC | C82: 2009 | D82: 81573.80884 | E82: 34215.38631 | F82: 38.71010107 | G82: 481.744038 | H82: 0.1131365308 | I82: 1.407974861 | J82: 1 | K82: 1 | L82: 1 | M82: 1
A83: Anderson Area Transportation Study | B83: SC | C83: 2010 | D83: 85658.93417 | E83: 35950.54937 | F83: 52.83223227 | G83: 791.6596252 | H83: 0.1469580666 | I83: 2.202079354 | J83: 1 | K83: 3 | L83: 0 | M83: 5
A84: Anderson Area Transportation Study | B84: SC | C84: 2011 | D84: 86366.58883 | E84: 35771.16972 | F84: 25.83221589 | G84: 614.1574108 | H84: 0.07221518361 | I84: 1.716906144 | J84: 1 | K84: 2 | L84: 0 | M84: 3
A85: Anderson Area Transportation Study | B85: SC | C85: 2012 | D85: 87108.50229 | E85: 36145.71632 | F85: 31.58792044 | G85: 651.075895 | H85: 0.08739049507 | I85: 1.801253264 | J85: 1 | K85: 3 | L85: 1 | M85: 0
A86: Anderson Area Transportation Study | B86: SC | C86: 2013 | D86: 88220.43635 | E86: 35340.33232 | F86: 25.83221589 | G86: 556.1065051 | H86: 0.07309556588 | I86: 1.573574634 | J86: 1 | K86: 2 | L86: 0 | M86: 2
A87: Anderson Area Transportation Study | B87: SC | C87: 2014 | D87: 88036.57255 | E87: 35266.90162 | F87: 33 | G87: 446.0489763 | H87: 0.09357215543 | I87: 1.264780731 | J87: 1 | K87: 1 | L87: 0 | M87: 1
A88: Anderson Area Transportation Study | B88: SC | C88: 2015 | D88: 88184.31819 | E88: 36324.54227 | F88: 14 | G88: 470.7526823 | H88: 0.03854143541 | I88: 1.29596315 | J88: 1 | K88: 1 | L88: 0 | M88: 1
A89: Anderson Area Transportation Study | B89: SC | C89: 2016 | D89: 89139.00897 | E89: 37320.84648 | F89: 51 | G89: 613.7820258 | H89: 0.136652849 | I89: 1.644609069 | J89: 1 | K89: 2 | L89: 0 | M89: 4
A90: Androscoggin Transportation Resource Center | B90: ME | C90: 2009 | D90: 71608.78763 | E90: 32885.09036 | F90: 53.00794763 | G90: 1513.805311 | H90: 0.1611914307 | I90: 4.603318081 | J90: 1 | K90: 5 | L90: 0 | M90: 0
A91: Androscoggin Transportation Resource Center | B91: ME | C91: 2010 | D91: 73173.31103 | E91: 33804.78639 | F91: 93.0069371 | G91: 1693.663461 | H91: 0.2751294921 | I91: 5.010129162 | J91: 2 | K91: 5 | L91: 0 | M91: 0
A92: Androscoggin Transportation Resource Center | B92: ME | C92: 2011 | D92: 72976.26972 | E92: 33852.56542 | F92: 132.0047533 | G92: 1651.712243 | H92: 0.3899401764 | I92: 4.879134632 | J92: 3 | K92: 5 | L92: 0 | M92: 0
A93: Androscoggin Transportation Resource Center | B93: ME | C93: 2012 | D93: 72929.39305 | E93: 33820.64444 | F93: 139.9980517 | G93: 1941.394522 | H93: 0.4139425905 | I93: 5.740264722 | J93: 3 | K93: 5 | L93: 0 | M93: 0
A94: Androscoggin Transportation Resource Center | B94: ME | C94: 2013 | D94: 72721.02873 | E94: 33135.90395 | F94: 120.9983258 | G94: 1957.500889 | H94: 0.3651577636 | I94: 5.907492042 | J94: 3 | K94: 5 | L94: 0 | M94: 1
A95: Androscoggin Transportation Resource Center | B95: ME | C95: 2014 | D95: 72582.1738 | E95: 33047.53317 | F95: 135.998566 | G95: 1764.62345 | H95: 0.4115241078 | I95: 5.339652559 | J95: 3 | K95: 5 | L95: 0 | M95: 0
A96: Androscoggin Transportation Resource Center | B96: ME | C96: 2015 | D96: 72473.51772 | E96: 34120.56365 | F96: 134.9997988 | G96: 1924.846526 | H96: 0.3956552422 | I96: 5.641309287 | J96: 3 | K96: 5 | L96: 0 | M96: 2
A97: Androscoggin Transportation Resource Center | B97: ME | C97: 2016 | D97: 72317.45943 | E97: 34516.29771 | F97: 86.999814 | G97: 2087.29641 | H97: 0.2520543041 | I97: 6.047277805 | J97: 2 | K97: 5 | L97: 1 | M97: 1
A98: Appleton/Fox Cities MPO | B98: WI | C98: 2009 | D98: 202977.1781 | E98: 107030.8126 | F98: 814.0516969 | G98: 2512.256709 | H98: 0.7605769562 | I98: 2.347227538 | J98: 4 | K98: 4 | L98: 0 | M98: 1
A99: Appleton/Fox Cities MPO | B99: WI | C99: 2010 | D99: 214271.8106 | E99: 112168.0067 | F99: 744.2720799 | G99: 2537.304266 | H99: 0.6635333029 | I99: 2.262057016 | J99: 4 | K99: 4 | L99: 0 | M99: 0
A100: Appleton/Fox Cities MPO | B100: WI | C100: 2011 | D100: 216278.4456 | E100: 112327.15 | F100: 673.5481237 | G100: 2637.38504 | H100: 0.5996307428 | I100: 2.347949753 | J100: 4 | K100: 4 | L100: 0 | M100: 3
A101: Appleton/Fox Cities MPO | B101: WI | C101: 2012 | D101: 217880.8747 | E101: 113098.2647 | F101: 675.2373051 | G101: 2720.542162 | H101: 0.5970359555 | I101: 2.405467643 | J101: 4 | K101: 4 | L101: 1 | M101: 0
A102: Appleton/Fox Cities MPO | B102: WI | C102: 2013 | D102: 219735.9912 | E102: 113648.572 | F102: 724.3680896 | G102: 2544.237601 | H102: 0.6373754431 | I102: 2.238688578 | J102: 4 | K102: 3 | L102: 1 | M102: 1
A103: Appleton/Fox Cities MPO | B103: WI | C103: 2014 | D103: 220956.503 | E103: 115649.3702 | F103: 967.6885926 | G103: 2358.398771 | H103: 0.8367435038 | I103: 2.039266419 | J103: 4 | K103: 3 | L103: 0 | M103: 2
A104: Appleton/Fox Cities MPO | B104: WI | C104: 2015 | D104: 221939.0009 | E104: 116956.2531 | F104: 991.8040194 | G104: 2473.173262 | H104: 0.8480128191 | I104: 2.114613965 | J104: 4 | K104: 3 | L104: 1 | M104: 1
A105: Appleton/Fox Cities MPO | B105: WI | C105: 2016 | D105: 223234.8719 | E105: 118405.7845 | F105: 939.6364707 | G105: 2427.908101 | H105: 0.7935731135 | I105: 2.05049788 | J105: 4 | K105: 3 | L105: 1 | M105: 1
A106: Area Plan Commission of Tippecanoe County | B106: IN | C106: 2009 | D106: 162513.1907 | E106: 74717.89686 | F106: 670.9892547 | G106: 4681.999805 | H106: 0.898030168 | I106: 6.266236072 | J106: 5 | K106: 5 | L106: 0 | M106: 1
A107: Area Plan Commission of Tippecanoe County | B107: IN | C107: 2010 | D107: 168622.9205 | E107: 78962.67199 | F107: 662.9867138 | G107: 4445.983495 | H107: 0.8396204145 | I107: 5.63048765 | J107: 4 | K107: 5 | L107: 0 | M107: 3
A108: Area Plan Commission of Tippecanoe County | B108: IN | C108: 2011 | D108: 170952.5459 | E108: 80603.36902 | F108: 698.9863154 | G108: 4509.986403 | H108: 0.8671924312 | I108: 5.595282751 | J108: 5 | K108: 5 | L108: 0 | M108: 1
A109: Area Plan Commission of Tippecanoe County | B109: IN | C109: 2012 | D109: 173304.085 | E109: 81577.19759 | F109: 890.9829041 | G109: 4464.970759 | H109: 1.092196018 | I109: 5.473307359 | J109: 5 | K109: 5 | L109: 0 | M109: 1
A110: Area Plan Commission of Tippecanoe County | B110: IN | C110: 2013 | D110: 175614.8391 | E110: 81319.24288 | F110: 985.0012298 | G110: 4704.963096 | H110: 1.211276931 | I110: 5.785793041 | J110: 5 | K110: 5 | L110: 1 | M110: 5
A111: Area Plan Commission of Tippecanoe County | B111: IN | C111: 2014 | D111: 178121.6268 | E111: 82178.16325 | F111: 993.9812905 | G111: 4648.948595 | H111: 1.209544301 | I111: 5.657158071 | J111: 5 | K111: 5 | L111: 0 | M111: 1
A112: Area Plan Commission of Tippecanoe County | B112: IN | C112: 2015 | D112: 180938.4635 | E112: 84747.07937 | F112: 1198.984684 | G112: 5307.943235 | H112: 1.414779946 | I112: 6.263275707 | J112: 5 | K112: 5 | L112: 0 | M112: 2
A113: Area Plan Commission of Tippecanoe County | B113: IN | C113: 2016 | D113: 183383.1993 | E113: 86133.20128 | F113: 1282.987244 | G113: 5628.953484 | H113: 1.489538558 | I113: 6.535172732 | J113: 5 | K113: 5 | L113: 0 | M113: 0
A114: Association of Central Oklahoma Governments | B114: OK | C114: 2009 | D114: 1077982.885 | E114: 516110.8645 | F114: 1611.787302 | G114: 8293.618924 | H114: 0.3122947826 | I114: 1.606945231 | J114: 2 | K114: 2 | L114: 2 | M114: 9
A115: Association of Central Oklahoma Governments | B115: OK | C115: 2010 | D115: 1104383.167 | E115: 530368.9565 | F115: 1601.853502 | G115: 8094.658606 | H115: 0.3020262559 | I115: 1.526231599 | J115: 2 | K115: 1 | L115: 3 | M115: 21
A116: Association of Central Oklahoma Governments | B116: OK | C116: 2011 | D116: 1121658.63 | E116: 537688.7633 | F116: 1578.901922 | G116: 8635.805125 | H116: 0.29364607 | I116: 1.606097377 | J116: 2 | K116: 2 | L116: 0 | M116: 8
A117: Association of Central Oklahoma Governments | B117: OK | C117: 2012 | D117: 1139799.421 | E117: 544714.9026 | F117: 1600.987243 | G117: 8937.971987 | H117: 0.2939128773 | I117: 1.640853214 | J117: 2 | K117: 2 | L117: 1 | M117: 26
A118: Association of Central Oklahoma Governments | B118: OK | C118: 2013 | D118: 1159281.954 | E118: 547335.2657 | F118: 1745.977841 | G118: 8854.258884 | H118: 0.3189960432 | I118: 1.617702976 | J118: 3 | K118: 2 | L118: 6 | M118: 20
A119: Association of Central Oklahoma Governments | B119: OK | C119: 2014 | D119: 1178072.023 | E119: 555920.5156 | F119: 1970.771468 | G119: 8767.572244 | H119: 0.3545059793 | I119: 1.577126945 | J119: 3 | K119: 2 | L119: 3 | M119: 15
A120: Association of Central Oklahoma Governments | B120: OK | C120: 2015 | D120: 1197101.115 | E120: 568322.0531 | F120: 1920.389593 | G120: 8845.74251 | H120: 0.3379051688 | I120: 1.556466525 | J120: 3 | K120: 2 | L120: 0 | M120: 18
A121: Association of Central Oklahoma Governments | B121: OK | C121: 2016 | D121: 1214638.148 | E121: 579222.9555 | F121: 2012.085282 | G121: 8820.589245 | H121: 0.3473766471 | I121: 1.522831435 | J121: 3 | K121: 1 | L121: 2 | M121: 29
A122: Association of Monterey Bay Area Governments | B122: CA | C122: 2009 | D122: 652093.4946 | E122: 293156.2097 | F122: 3919.4611 | G122: 11570.83172 | H122: 1.336987234 | I122: 3.946985034 | J122: 5 | K122: 5 | L122: 3 | M122: 8
A123: Association of Monterey Bay Area Governments | B123: CA | C123: 2010 | D123: 699104.6422 | E123: 312283.4203 | F123: 4609.236162 | G123: 11926.68623 | H123: 1.475978506 | I123: 3.819186501 | J123: 5 | K123: 5 | L123: 0 | M123: 9
A124: Association of Monterey Bay Area Governments | B124: CA | C124: 2011 | D124: 705414.0171 | E124: 313347.5537 | F124: 4920.492298 | G124: 11074.10094 | H124: 1.570298616 | I124: 3.534127142 | J124: 5 | K124: 5 | L124: 4 | M124: 9
A125: Association of Monterey Bay Area Governments | B125: CA | C125: 2012 | D125: 713823.9784 | E125: 315288.9432 | F125: 5301.013936 | G125: 10917.36104 | H125: 1.681319326 | I125: 3.46265268 | J125: 5 | K125: 5 | L125: 0 | M125: 5
A126: Association of Monterey Bay Area Governments | B126: CA | C126: 2013 | D126: 720536.0739 | E126: 314453.539 | F126: 5043.132439 | G126: 10287.92229 | H126: 1.603776652 | I126: 3.271682781 | J126: 5 | K126: 5 | L126: 5 | M126: 9
A127: Association of Monterey Bay Area Governments | B127: CA | C127: 2014 | D127: 727711.7592 | E127: 317023.6698 | F127: 5301.585535 | G127: 10585.91465 | H127: 1.672299592 | I127: 3.339155923 | J127: 5 | K127: 5 | L127: 4 | M127: 15
A128: Association of Monterey Bay Area Governments | B128: CA | C128: 2015 | D128: 734548.1453 | E128: 322017.7835 | F128: 5796.80365 | G128: 10459.55932 | H128: 1.800150162 | I128: 3.248130961 | J128: 5 | K128: 5 | L128: 2 | M128: 18
A129: Association of Monterey Bay Area Governments | B129: CA | C129: 2016 | D129: 738160.9065 | E129: 326608.5629 | F129: 5741.123032 | G129: 11265.91464 | H129: 1.7577993 | I129: 3.449362912 | J129: 5 | K129: 5 | L129: 2 | M129: 17
A130: Atlanta Regional Commission | B130: GA | C130: 2009 | D130: 4777153.819 | E130: 2294418.756 | F130: 3615.765348 | G130: 32648.56184 | H130: 0.1575896004 | I130: 1.422955673 | J130: 1 | K130: 1 | L130: 3 | M130: 70
A131: Atlanta Regional Commission | B131: GA | C131: 2010 | D131: 4666634.665 | E131: 2229222.998 | F131: 3434.655389 | G131: 30506.33503 | H131: 0.1540741053 | I131: 1.368473906 | J131: 1 | K131: 1 | L131: 3 | M131: 79
A132: Atlanta Regional Commission | B132: GA | C132: 2011 | D132: 4750461.337 | E132: 2240272.494 | F132: 3798.004553 | G132: 30664.34981 | H132: 0.1695331512 | I132: 1.368777678 | J132: 1 | K132: 1 | L132: 5 | M132: 68
A133: Atlanta Regional Commission | B133: GA | C133: 2012 | D133: 4824140.712 | E133: 2246744.589 | F133: 3978.890729 | G133: 30761.38018 | H133: 0.1770958189 | I133: 1.369153411 | J133: 1 | K133: 1 | L133: 5 | M133: 77
A134: Atlanta Regional Commission | B134: GA | C134: 2013 | D134: 4893179.692 | E134: 2242622.936 | F134: 4524.985203 | G134: 31624.79506 | H134: 0.2017720024 | I134: 1.410169965 | J134: 1 | K134: 1 | L134: 12 | M134: 97
A135: Atlanta Regional Commission | B135: GA | C135: 2014 | D135: 4967480.819 | E135: 2277935.332 | F135: 4366.950927 | G135: 31830.38425 | H135: 0.1917065364 | I135: 1.397334849 | J135: 1 | K135: 1 | L135: 4 | M135: 81
A136: Atlanta Regional Commission | B136: GA | C136: 2015 | D136: 5046614.283 | E136: 2343232.49 | F136: 4602.966935 | G136: 33449.88623 | H136: 0.19643663 | I136: 1.427510346 | J136: 1 | K136: 1 | L136: 4 | M136: 106
A137: Atlanta Regional Commission | B137: GA | C137: 2016 | D137: 5120791.792 | E137: 2412091.279 | F137: 4707.973365 | G137: 34089.48163 | H137: 0.1951822224 | I137: 1.413274942 | J137: 1 | K137: 1 | L137: 7 | M137: 138
A138: Auburn - Opelika MPO | B138: AL | C138: 2009 | D138: 83729.7506 | E138: 37151.91511 | F138: 340.7746299 | G138: 1319.7719 | H138: 0.9172464701 | I138: 3.552365729 | J138: 5 | K138: 5 | L138: 0 | M138: 2
A139: Auburn - Opelika MPO | B139: AL | C139: 2010 | D139: 82483.24008 | E139: 36961.79036 | F139: 446.9682307 | G139: 1437.06396 | H139: 1.209271051 | I139: 3.88797173 | J139: 5 | K139: 5 | L139: 0 | M139: 1
A140: Auburn - Opelika MPO | B140: AL | C140: 2011 | D140: 84113.00384 | E140: 37399.48157 | F140: 483.9700995 | G140: 1338.645407 | H140: 1.294055637 | I140: 3.579315409 | J140: 5 | K140: 5 | L140: 0 | M140: 0
A141: Auburn - Opelika MPO | B141: AL | C141: 2012 | D141: 85940.41205 | E141: 38175.60541 | F141: 498.9644931 | G141: 1597.316559 | H141: 1.307024441 | I141: 4.184128953 | J141: 5 | K141: 5 | L141: 0 | M141: 1
A142: Auburn - Opelika MPO | B142: AL | C142: 2013 | D142: 88697.16058 | E142: 39003.38496 | F142: 411.9850497 | G142: 1570.060372 | H142: 1.056280244 | I142: 4.025446442 | J142: 5 | K142: 5 | L142: 0 | M142: 1
A143: Auburn - Opelika MPO | B143: AL | C143: 2014 | D143: 91140.40331 | E143: 40386.46231 | F143: 383.9994174 | G143: 1469.363221 | H143: 0.9508122165 | I143: 3.638256825 | J143: 5 | K143: 5 | L143: 0 | M143: 3
A144: Auburn - Opelika MPO | B144: AL | C144: 2015 | D144: 92806.21254 | E144: 41338.04818 | F144: 201.9993342 | G144: 1439.428179 | H144: 0.4886523266 | I144: 3.482090331 | J144: 3 | K144: 5 | L144: 0 | M144: 1
A145: Auburn - Opelika MPO | B145: AL | C145: 2016 | D145: 94351.07815 | E145: 42931.91879 | F145: 171.999251 | G145: 1420.399234 | H145: 0.4006325733 | I145: 3.308492314 | J145: 3 | K145: 5 | L145: 0 | M145: 2
A146: Augusta Regional Transportation Study | B146: GA | C146: 2009 | D146: 411074.3677 | E146: 178518.8314 | F146: 490.9646725 | G146: 5962.737753 | H146: 0.2750212225 | I146: 3.340116954 | J146: 2 | K146: 5 | L146: 0 | M146: 11
A147: Augusta Regional Transportation Study | B147: GA | C147: 2010 | D147: 421514.0053 | E147: 184947.4932 | F147: 434.9877858 | G147: 4875.468851 | H147: 0.2351952861 | I147: 2.636136758 | J147: 2 | K147: 4 | L147: 1 | M147: 8
A148: Augusta Regional Transportation Study | B148: GA | C148: 2011 | D148: 427854.9216 | E148: 185922.7805 | F148: 329.9895244 | G148: 4298.799906 | H148: 0.1774874082 | I148: 2.312142651 | J148: 1 | K148: 4 | L148: 3 | M148: 9
A149: Augusta Regional Transportation Study | B149: GA | C149: 2012 | D149: 433209.8143 | E149: 186797.0839 | F149: 379.9975967 | G149: 4048.663892 | H149: 0.2034280134 | I149: 2.167412792 | J149: 1 | K149: 3 | L149: 1 | M149: 16
A150: Augusta Regional Transportation Study | B150: GA | C150: 2013 | D150: 439318.4398 | E150: 185794.3327 | F150: 397.993653 | G150: 3776.933764 | H150: 0.2142119445 | I150: 2.032857358 | J150: 1 | K150: 3 | L150: 2 | M150: 10
A151: Augusta Regional Transportation Study | B151: GA | C151: 2014 | D151: 443491.7757 | E151: 186466.0306 | F151: 450.9345342 | G151: 3860.219516 | H151: 0.2418320017 | I151: 2.070199867 | J151: 2 | K151: 3 | L151: 1 | M151: 8
A152: Augusta Regional Transportation Study | B152: GA | C152: 2015 | D152: 447925.7018 | E152: 188824.7076 | F152: 527.9411011 | G152: 3650.966766 | H152: 0.2795932311 | I152: 1.933521737 | J152: 2 | K152: 3 | L152: 2 | M152: 9
A153: Augusta Regional Transportation Study | B153: GA | C153: 2016 | D153: 452446.5661 | E153: 190191.4286 | F153: 548.9080339 | G153: 3599.124267 | H153: 0.288608187 | I153: 1.892369332 | J153: 2 | K153: 3 | L153: 1 | M153: 5
A154: Baltimore Regional Transportation Board | B154: MD | C154: 2009 | D154: 2585429.684 | E154: 1266294.159 | F154: 3201.647347 | G154: 37375.95089 | H154: 0.2528359879 | I154: 2.951600987 | J154: 2 | K154: 4 | L154: 4 | M154: 61
A155: Baltimore Regional Transportation Board | B155: MD | C155: 2010 | D155: 2631170.605 | E155: 1294040.482 | F155: 3365.426848 | G155: 38157.87181 | H155: 0.2600712183 | I155: 2.948738648 | J155: 2 | K155: 4 | L155: 4 | M155: 46
A156: Baltimore Regional Transportation Board | B156: MD | C156: 2011 | D156: 2645435.361 | E156: 1298026.38 | F156: 3173.450868 | G156: 35965.61817 | H156: 0.2444827715 | I156: 2.770792545 | J156: 2 | K156: 4 | L156: 3 | M156: 43
A157: Baltimore Regional Transportation Board | B157: MD | C157: 2012 | D157: 2663192.043 | E157: 1307828.389 | F157: 3514.060347 | G157: 35275.19665 | H157: 0.2686943008 | I157: 2.697234357 | J157: 2 | K157: 4 | L157: 2 | M157: 41
A158: Baltimore Regional Transportation Board | B158: MD | C158: 2013 | D158: 2681342.779 | E158: 1310145.216 | F158: 3529.209277 | G158: 34782.77848 | H158: 0.2693754275 | I158: 2.654879631 | J158: 2 | K158: 4 | L158: 2 | M158: 53
A159: Baltimore Regional Transportation Board | B159: MD | C159: 2014 | D159: 2699720.551 | E159: 1319874.806 | F159: 3638.915921 | G159: 34616.10125 | H159: 0.2757015973 | I159: 2.622680659 | J159: 2 | K159: 4 | L159: 1 | M159: 45
A160: Baltimore Regional Transportation Board | B160: MD | C160: 2015 | D160: 2716153.088 | E160: 1332085.694 | F160: 3808.764921 | G160: 36398.26154 | H160: 0.2859249175 | I160: 2.732426429 | J160: 2 | K160: 4 | L160: 3 | M160: 47
A161: Baltimore Regional Transportation Board | B161: MD | C161: 2016 | D161: 2727040.186 | E161: 1348974.174 | F161: 4209.615713 | G161: 37041.10652 | H161: 0.3120605119 | I161: 2.745872178 | J161: 2 | K161: 4 | L161: 5 | M161: 58
A162: Bangor Area Comprehensive Transportation System | B162: ME | C162: 2009 | D162: 57079.07553 | E162: 28394.78407 | F162: 231.9912499 | G162: 2257.042429 | H162: 0.8170206519 | I162: 7.948792367 | J162: 4 | K162: 5 | L162: 0 | M162: 0
A163: Bangor Area Comprehensive Transportation System | B163: ME | C163: 2010 | D163: 59624.65324 | E163: 30234.42917 | F163: 197.671012 | G163: 2382.83213 | H163: 0.653794424 | I163: 7.881187757 | J163: 4 | K163: 5 | L163: 0 | M163: 2
A164: Bangor Area Comprehensive Transportation System | B164: ME | C164: 2011 | D164: 59643.80378 | E164: 29862.3577 | F164: 159.4146063 | G164: 2204.770577 | H164: 0.5338312797 | I164: 7.383109528 | J164: 4 | K164: 5 | L164: 0 | M164: 0
A165: Bangor Area Comprehensive Transportation System | B165: ME | C165: 2012 | D165: 59804.41721 | E165: 29720.9366 | F165: 219.8434182 | G165: 2182.305207 | H165: 0.7396920935 | I165: 7.342652877 | J165: 4 | K165: 5 | L165: 0 | M165: 2
A166: Bangor Area Comprehensive Transportation System | B166: ME | C166: 2013 | D166: 59608.37703 | E166: 28688.50345 | F166: 254.2879653 | G166: 1865.333804 | H166: 0.8863758466 | I166: 6.502025481 | J166: 5 | K166: 5 | L166: 0 | M166: 1
A167: Bangor Area Comprehensive Transportation System | B167: ME | C167: 2014 | D167: 59286.55756 | E167: 28316.83871 | F167: 210.4595049 | G167: 1900.859839 | H167: 0.7432309343 | I167: 6.712825041 | J167: 4 | K167: 5 | L167: 0 | M167: 1
A168: Bangor Area Comprehensive Transportation System | B168: ME | C168: 2015 | D168: 59060.08482 | E168: 27628.46611 | F168: 167.0511376 | G168: 1797.051315 | H168: 0.6046341368 | I168: 6.504347031 | J168: 4 | K168: 5 | L168: 0 | M168: 2
A169: Bangor Area Comprehensive Transportation System | B169: ME | C169: 2016 | D169: 58751.88805 | E169: 27985.40435 | F169: 171.3814498 | G169: 1691.870138 | H169: 0.6123958318 | I169: 6.04554473 | J169: 4 | K169: 5 | L169: 0 | M169: 1
A170: Bannock Transportation Planning Organization | B170: ID | C170: 2009 | D170: 70033.27862 | E170: 32838.92929 | F170: 398.5467744 | G170: 1075.087634 | H170: 1.213641196 | I170: 3.273820606 | J170: 5 | K170: 5 | L170: 0 | M170: 1
A171: Bannock Transportation Planning Organization | B171: ID | C171: 2010 | D171: 70747.16707 | E171: 32745.26357 | F171: 424.3360053 | G171: 1020.139195 | H171: 1.295869873 | I171: 3.115379398 | J171: 5 | K171: 5 | L171: 0 | M171: 0
A172: Bannock Transportation Planning Organization | B172: ID | C172: 2011 | D172: 71429.15335 | E172: 32801.88847 | F172: 429.6785059 | G172: 746.5972787 | H172: 1.309920026 | I172: 2.276080169 | J172: 5 | K172: 4 | L172: 0 | M172: 1
A173: Bannock Transportation Planning Organization | B173: ID | C173: 2012 | D173: 72252.01691 | E173: 33010.26391 | F173: 382.2857214 | G173: 906.118196 | H173: 1.158081385 | I173: 2.744958957 | J173: 5 | K173: 4 | L173: 0 | M173: 0
A174: Bannock Transportation Planning Organization | B174: ID | C174: 2013 | D174: 72571.51308 | E174: 32437.7497 | F174: 367.9736176 | G174: 1134.635106 | H174: 1.134399337 | I174: 3.49788477 | J174: 5 | K174: 5 | L174: 0 | M174: 1
A175: Bannock Transportation Planning Organization | B175: ID | C175: 2014 | D175: 72723.96707 | E175: 32521.76398 | F175: 319.9794032 | G175: 1360.428688 | H175: 0.983893135 | I175: 4.183133145 | J175: 5 | K175: 5 | L175: 0 | M175: 1
A176: Bannock Transportation Planning Organization | B176: ID | C176: 2015 | D176: 73116.36511 | E176: 32094.98343 | F176: 335.9864848 | G176: 1388.6644 | H176: 1.04685047 | I176: 4.326733501 | J176: 5 | K176: 5 | L176: 0 | M176: 0
A177: Bannock Transportation Planning Organization | B177: ID | C177: 2016 | D177: 73093.05 | E177: 31859.58623 | F177: 438.0030737 | G177: 1405.190799 | H177: 1.374792097 | I177: 4.41057454 | J177: 5 | K177: 5 | L177: 0 | M177: 2
A178: Battle Creek Area Transportation Study | B178: MI | C178: 2009 | D178: 93931.266 | E178: 41063.06624 | F178: 139.0002002 | G178: 1017.989245 | H178: 0.3385041911 | I178: 2.479087264 | J178: 3 | K178: 4 | L178: 0 | M178: 0
A179: Battle Creek Area Transportation Study | B179: MI | C179: 2010 | D179: 94549.35238 | E179: 40122.10762 | F179: 128.0004694 | G179: 1082.009889 | H179: 0.3190272819 | I179: 2.69679225 | J179: 3 | K179: 4 | L179: 0 | M179: 1
A180: Battle Creek Area Transportation Study | B180: MI | C180: 2011 | D180: 94196.31493 | E180: 38739.19987 | F180: 107.0004838 | G180: 984.0063623 | H180: 0.2762072632 | I180: 2.54007921 | J180: 2 | K180: 4 | L180: 0 | M180: 1
A181: Battle Creek Area Transportation Study | B181: MI | C181: 2012 | D181: 93889.17938 | E181: 38613.16492 | F181: 104.9999289 | G181: 1089.005405 | H181: 0.2719277974 | I181: 2.820295635 | J181: 2 | K181: 4 | L181: 0 | M181: 1
A182: Battle Creek Area Transportation Study | B182: MI | C182: 2013 | D182: 93598.17563 | E182: 38344.16696 | F182: 114.0001521 | G182: 958.0038824 | H182: 0.2973076771 | I182: 2.498434464 | J182: 2 | K182: 4 | L182: 0 | M182: 0
A183: Battle Creek Area Transportation Study | B183: MI | C183: 2014 | D183: 93451.16689 | E183: 38460.1865 | F183: 56.00022067 | G183: 875.0020372 | H183: 0.1456056919 | I183: 2.275085268 | J183: 1 | K183: 4 | L183: 0 | M183: 2
A184: Battle Creek Area Transportation Study | B184: MI | C184: 2015 | D184: 93257.10264 | E184: 38160.35653 | F184: 42.0001209 | G184: 782.9989437 | H184: 0.1100621816 | I184: 2.051864854 | J184: 1 | K184: 3 | L184: 1 | M184: 0
A185: Battle Creek Area Transportation Study | B185: MI | C185: 2016 | D185: 93216.21951 | E185: 39267.30717 | F185: 60.98887281 | G185: 806.9998164 | H185: 0.1553171766 | I185: 2.055144278 | J185: 1 | K185: 3 | L185: 0 | M185: 1
A186: Bay City Area Transportation Study | B186: MI | C186: 2009 | D186: 76834.83411 | E186: 33763.1862 | F186: 242.5348451 | G186: 825.7141435 | H186: 0.7183411059 | I186: 2.445604922 | J186: 4 | K186: 4 | L186: 2 | M186: 0
A187: Bay City Area Transportation Study | B187: MI | C187: 2010 | D187: 79509.99432 | E187: 34498.90459 | F187: 204.6942367 | G187: 923.5603261 | H187: 0.5933354672 | I187: 2.677071452 | J187: 4 | K187: 4 | L187: 0 | M187: 0
A188: Bay City Area Transportation Study | B188: MI | C188: 2011 | D188: 79426.81525 | E188: 34086.0797 | F188: 222.6905083 | G188: 679.6318734 | H188: 0.6533180415 | I188: 1.993869285 | J188: 4 | K188: 3 | L188: 0 | M188: 2
A189: Bay City Area Transportation Study | B189: MI | C189: 2012 | D189: 79252.32517 | E189: 33512.03917 | F189: 246.657966 | G189: 727.4636876 | H189: 0.7360279235 | I189: 2.170753274 | J189: 4 | K189: 3 | L189: 1 | M189: 2
A190: Bay City Area Transportation Study | B190: MI | C190: 2013 | D190: 78980.803 | E190: 32844.89738 | F190: 137.577295 | G190: 691.2416807 | H190: 0.4188696143 | I190: 2.104563375 | J190: 3 | K190: 3 | L190: 0 | M190: 0
A191: Bay City Area Transportation Study | B191: MI | C191: 2014 | D191: 78785.2234 | E191: 32799.32183 | F191: 193.5249518 | G191: 647.9279476 | H191: 0.5900272964 | I191: 1.975430928 | J191: 4 | K191: 3 | L191: 0 | M191: 1
A192: Bay City Area Transportation Study | B192: MI | C192: 2015 | D192: 78438.26912 | E192: 32902.90874 | F192: 134.2567029 | G192: 556.5246564 | H192: 0.4080390095 | I192: 1.691414764 | J192: 3 | K192: 2 | L192: 0 | M192: 0
A193: Bay City Area Transportation Study | B193: MI | C193: 2016 | D193: 77955.43017 | E193: 32683.57516 | F193: 118.5593796 | G193: 569.2706228 | H193: 0.362749115 | I193: 1.741763623 | J193: 3 | K193: 2 | L193: 0 | M193: 2
A194: Bay County Transportation Planning Organization | B194: FL | C194: 2009 | D194: 163450.9204 | E194: 77415.96389 | F194: 261.9996782 | G194: 1197.999627 | H194: 0.3384310742 | I194: 1.547483965 | J194: 3 | K194: 2 | L194: 3 | M194: 8
A195: Bay County Transportation Planning Organization | B195: FL | C195: 2010 | D195: 166797.9548 | E195: 78808.98002 | F195: 354 | G195: 1334.999649 | H195: 0.4491873895 | I195: 1.693968947 | J195: 3 | K195: 2 | L195: 0 | M195: 1
A196: Bay County Transportation Planning Organization | B196: FL | C196: 2011 | D196: 167644.9511 | E196: 79333.9787 | F196: 403 | G196: 1435.000002 | H196: 0.5079790609 | I196: 1.808808818 | J196: 4 | K196: 3 | L196: 2 | M196: 6
A197: Bay County Transportation Planning Organization | B197: FL | C197: 2012 | D197: 168956.9508 | E197: 78600.97839 | F197: 403 | G197: 1499.000003 | H197: 0.5127162642 | I197: 1.907100946 | J197: 4 | K197: 3 | L197: 3 | M197: 7
A198: Bay County Transportation Planning Organization | B198: FL | C198: 2013 | D198: 170703.9447 | E198: 77510.97508 | F198: 480 | G198: 1224.999755 | H198: 0.6192671418 | I198: 1.580421036 | J198: 4 | K198: 2 | L198: 0 | M198: 3
A199: Bay County Transportation Planning Organization | B199: FL | C199: 2014 | D199: 172987.9435 | E199: 77276.97464 | F199: 519 | G199: 1377.999826 | H199: 0.6716101432 | I199: 1.783195878 | J199: 4 | K199: 3 | L199: 1 | M199: 7
A200: Bay County Transportation Planning Organization | B200: FL | C200: 2015 | D200: 175352.9447 | E200: 78767.97548 | F200: 496 | G200: 1340.999736 | H200: 0.629697535 | I200: 1.702468201 | J200: 4 | K200: 2 | L200: 3 | M200: 9
... 3033 more rows

Sheet cbsa_walk_grouping (hidden)
A1: cbsa_walk_grouping | B1: acs09_walk_pct | C1: nhts09_walk_trips | D1: walk_avg_trip_rate | E1: walk_avg_trip_length | F1: walk_avg_trip_length_stddev | G1: walk_avg_trip_duration | H1: walk_avg_trip_duration_stddev
A2: 1 | C2: 10692 | D2: 0.3302238241 | E2: 0.702758033 | F2: 0.833272804 | G2: 14.35407448 | H2: 15.03478343
A3: 2 | C3: 6023 | D3: 0.4020840117 | E3: 0.6687512683 | F3: 0.835286688 | G3: 14.54866536 | H3: 19.23881736
A4: 3 | C4: 7854 | D4: 0.392744944 | E4: 0.7349192202 | F4: 0.8868439609 | G4: 15.92621408 | H4: 15.87534829
A5: 4 | C5: 13552 | D5: 0.4799543 | E5: 0.7163395317 | F5: 0.8984491918 | G5: 15.95756698 | H5: 20.18325619
A6: 5 | C6: 14211 | D6: 0.6315582371 | E6: 0.6797785753 | F6: 1.129470881 | G6: 14.49607066 | H6: 18.42732532

Sheet cbsa_bike_grouping (hidden)
A1: cbsa_bike_grouping | B1: acs09_bike_pct | C1: nhts09_bike_trips | D1: bike_avg_trip_rate | E1: bike_avg_trip_length | F1: bike_avg_trip_length_stddev | G1: bike_avg_trip_duration | H1: bike_avg_trip_duration_stddev
A2: 1 | C2: 531 | D2: 0.02668298654 | E2: 2.433668131 | F2: 14.19739895 | G2: 18.29020333 | H2: 22.38176499
A3: 2 | C3: 609 | D3: 0.03395548784 | E3: 2.469439883 | F3: 6.234798245 | G3: 21.15458937 | H3: 30.27676527
A4: 3 | C4: 662 | D4: 0.03144683003 | E4: 2.771315878 | F4: 5.580443515 | G4: 21.45321637 | H4: 29.05549552
A5: 4 | C5: 1406 | D5: 0.04304916445 | E5: 2.815315315 | F5: 5.864087172 | G5: 22.07491166 | H5: 34.45818304
A6: 5 | C6: 1430 | D6: 0.0543934609 | E6: 3.076573427 | F6: 5.016769503 | G6: 22.69772257 | H6: 27.15798879
